{"text_format":"1","workbook":"xlsx","n_sheets":5,"sheets":["Synthèse réservation","GestionLISTE","LV 5","Menu","TX Location"],"not_rendered":{"charts":0,"images":4,"macros":1,"external_links":4,"defined_names":240,"comments":2,"pivot_tables":1},"unopened":[],"bounds":{"document_bytes":16777216,"sheet_cells":100000,"rows_first":2000,"rows_last":500,"rows_between":2000,"halvings":0,"cell_chars":16384,"cell_head_chars":4096},"cells_cut":0,"cells_raw":0,"read":"whole","date_system":"1900"}

{"sheet":"Synthèse réservation","index":0,"n_rows":9,"n_cols":29,"rows_kept":9,"cut":false,"hidden":false,"merged":[]}
["N° ID","N° de facture","Date d'enregistrement de la réservation","Heure d'enregistrement de la réservation","Nom Locataire","Prix de la Location","Type de pension","Nombre de nuitées","Date arrivée","Heure arrivée","Date départ","Heure départ","Date début mois arrivée","Durée réservation","Nombre d'accompagnants","Nombre d'usagers","Nombre Total de personnes","Adresse","Code postal","Ville","Téléphone 1","Téléphone 2","Adresse mail","Total à payer","Avance Paiement","Reste à payer","Payé","Commentaires","Liens documents attachés"]
[1,"MAS _00000001","21/03/2018","22:00","redge",120,null,"","2018-03-30","14:00:00","2018-03-30","17:00:00",{"$f":"BD[[#This Row],[Date arrivée]]-DAY(BD[[#This Row],[Date arrivée]])+1","v":"2018-03-01"},{"$f":"BD[[#This Row],[Date départ]]+BD[[#This Row],[Heure départ]]-(BD[[#This Row],[Date arrivée]]+BD[[#This Row],[Heure arrivée]])","v":0.125},"2","","","ttrrt","","","","","",100,100,{"$f":"BD[[#This Row],[Total à payer]]-BD[[#This Row],[Avance Paiement]]","v":0},{"$f":"IF(BD[[#This Row],[Reste à payer]]>0,0,1)","v":1},"trtrt",""]
[2,"MAS _00000002","27/03/2018","08:32","redge",null,null,"","2018-04-25","08:00:00","2018-04-28","10:00:00",{"$f":"BD[[#This Row],[Date arrivée]]-DAY(BD[[#This Row],[Date arrivée]])+1","v":"2018-04-01"},{"$f":"BD[[#This Row],[Date départ]]+BD[[#This Row],[Heure départ]]-(BD[[#This Row],[Date arrivée]]+BD[[#This Row],[Heure arrivée]])","v":3.0833333333284827},"","","","","","","","","",200,0,{"$f":"BD[[#This Row],[Total à payer]]-BD[[#This Row],[Avance Paiement]]","v":200},{"$f":"IF(BD[[#This Row],[Reste à payer]]>0,0,1)","v":0},"fefrre"]
[3,"MAS _00000003","27/03/2018","11:03","redge",null,null,"","2018-05-09","08:00:00","2018-05-11","08:00:00",{"$f":"BD[[#This Row],[Date arrivée]]-DAY(BD[[#This Row],[Date arrivée]])+1","v":"2018-05-01"},{"$f":"BD[[#This Row],[Date départ]]+BD[[#This Row],[Heure départ]]-(BD[[#This Row],[Date arrivée]]+BD[[#This Row],[Heure arrivée]])","v":2},"","","","","","","","","",150,0,{"$f":"BD[[#This Row],[Total à payer]]-BD[[#This Row],[Avance Paiement]]","v":150},{"$f":"IF(BD[[#This Row],[Reste à payer]]>0,0,1)","v":0},"jjjj"]
[4,"MAS _00000004","27/03/2018","13:10","redge",null,null,"","2018-05-23","08:00:00","2018-05-26","08:00:00",{"$f":"BD[[#This Row],[Date arrivée]]-DAY(BD[[#This Row],[Date arrivée]])+1","v":"2018-05-01"},{"$f":"BD[[#This Row],[Date départ]]+BD[[#This Row],[Heure départ]]-(BD[[#This Row],[Date arrivée]]+BD[[#This Row],[Heure arrivée]])","v":3},"","","","","","","","","",150,0,{"$f":"BD[[#This Row],[Total à payer]]-BD[[#This Row],[Avance Paiement]]","v":150},{"$f":"IF(BD[[#This Row],[Reste à payer]]>0,0,1)","v":0},"",""]
[5,"MAS _00000005","27/03/2018","15:09","redge",null,null,"","2018-03-27","14:00:00","2018-03-27","15:00:00",{"$f":"BD[[#This Row],[Date arrivée]]-DAY(BD[[#This Row],[Date arrivée]])+1","v":"2018-03-01"},{"$f":"BD[[#This Row],[Date départ]]+BD[[#This Row],[Heure départ]]-(BD[[#This Row],[Date arrivée]]+BD[[#This Row],[Heure arrivée]])","v":4.1666666664241347E-2},"","","","","","","","","",150,150,{"$f":"BD[[#This Row],[Total à payer]]-BD[[#This Row],[Avance Paiement]]","v":0},{"$f":"IF(BD[[#This Row],[Reste à payer]]>0,0,1)","v":1},"",""]
[6,"MAS _00000006","29/03/2018","10:24","redge",null,null,"","2018-04-09","08:00:00","2018-04-11","08:00:00",{"$f":"BD[[#This Row],[Date arrivée]]-DAY(BD[[#This Row],[Date arrivée]])+1","v":"2018-04-01"},{"$f":"BD[[#This Row],[Date départ]]+BD[[#This Row],[Heure départ]]-(BD[[#This Row],[Date arrivée]]+BD[[#This Row],[Heure arrivée]])","v":2},"","","","","","","","","",110,0,{"$f":"BD[[#This Row],[Total à payer]]-BD[[#This Row],[Avance Paiement]]","v":110},{"$f":"IF(BD[[#This Row],[Reste à payer]]>0,0,1)","v":0},"","documents_6"]
[7,"MAS _00000007","30/03/2018","09:37","ezrzerzer",null,null,"","2018-03-30","11:00:00","2018-03-30","12:00:00",{"$f":"BD[[#This Row],[Date arrivée]]-DAY(BD[[#This Row],[Date arrivée]])+1","v":"2018-03-01"},{"$f":"BD[[#This Row],[Date départ]]+BD[[#This Row],[Heure départ]]-(BD[[#This Row],[Date arrivée]]+BD[[#This Row],[Heure arrivée]])","v":4.1666666664241347E-2},"","","","","","","","","",200,0,{"$f":"BD[[#This Row],[Total à payer]]-BD[[#This Row],[Avance Paiement]]","v":200},{"$f":"IF(BD[[#This Row],[Reste à payer]]>0,0,1)","v":0},"","documents_7"]
[8,"MAS _00000008","30/03/2018","11:59","redge",null,"Complète 37 € / Jour / personne","","2018-03-30","22:00:00","2018-03-30","22:30:00",{"$f":"BD[[#This Row],[Date arrivée]]-DAY(BD[[#This Row],[Date arrivée]])+1","v":"2018-03-01"},{"$f":"BD[[#This Row],[Date départ]]+BD[[#This Row],[Heure départ]]-(BD[[#This Row],[Date arrivée]]+BD[[#This Row],[Heure arrivée]])","v":2.0833333335758653E-2},"","","","","","","","","",12,0,{"$f":"BD[[#This Row],[Total à payer]]-BD[[#This Row],[Avance Paiement]]","v":12},{"$f":"IF(BD[[#This Row],[Reste à payer]]>0,0,1)","v":0},"","documents_8"]

{"sheet":"GestionLISTE","index":1,"n_rows":33528,"n_cols":19,"rows_kept":4500,"cut":true,"hidden":false,"merged":[[1,0,1,3]],"bounds":{"rows_first":2000,"rows_last":500,"rows_between":2000,"halvings":0}}
[]
["Paramètre GMAO",null,null,null,"Type de pension","Liste ville",null,"Liste de Fonction",null,"Liste Lieu de Vie",null,"Heure de Départ ou de Retour",null,"Liste Résidents",null,{"$f":"YEAR(TODAY())","v":2018},null,null,"Chemin pour sauvegarde auto"]
["Couleur de fond des userform Valeurs RGB",96,138,195,"Complète 37 €/Jour/personne","AAST",null,"AMP",null,"LV 1",null,"00:15:00.288",null,null,null,{"$f":"DATE(P2,1,1)","v":"2018-01-01"},"1er  Janvier"]
[null,null,null,null,"1/2 Pension 30 €/jour/personne","ABAINVILLE",null,"AS",null,"LV 2",null,"00:29:59.712",null,null,null,{"$f":"ROUND(DATE(P2,4,MOD(234-11*MOD(P2,19),30))/7,)*7-6","v":"2018-04-01"},"Pâques"]
["Sauvegarde pour multi utilisateur 1=Yes 2=No",1,null,null,"Nuitée 23 €/nuit/personne ","ABANCOURT",null,"COORDINATRICE ",null,"LV 3",null,"00:45:00",null,null,null,{"$f":"SUM(P4+1)","v":"2018-04-02"},"Lundi de Pâques"]
[null,null,null,null,"Repas seul 8 €","ABAUCOURT",null,"COORDINATRICE SOINS",null,"LV 4",null,"01:00:00.288",null,null,null,{"$f":"DATE(P2,5,1)","v":"2018-05-01"},"1er  Mai"]
["Liste intervenant",2,null,null,null,"ABAUCOURT HAUTECOURT",null,"IDE",null,"LV 5",null,"01:14:59.712",null,null,null,{"$f":"DATE(P2,5,8)","v":"2018-05-08"}," 8 Mai Victoire 1945"]
[null,null,null,null,null,"ABBANS DESSOUS",null,"REMPLACANTE",null,null,null,"01:30:00",null,null,null,{"$f":"P4+39","v":"2018-05-10"},"Jeudi de l'Ascension"]
["blocage des touches 1= ok , autres = noOk","No",null,null,null,"ABBANS DESSUS",null,"AGENT D'ENTRETIEN",null,null,null,"01:45:00.288",null,null,null,{"$f":"P4+49","v":"2018-05-20"},"Pentecôte"]
["date de la dernière purge du fichier synthèse","2018-01-12",null,null,null,"ABBARETZ",null,"COMPTABLE",null,null,null,"01:59:59.712",null,null,null,{"$f":"SUM(P9+1)","v":"2018-05-21"},"Lundi de Pentecôte"]
["Dernière mise à jour date","2018-03-01",null,null,null,"ABBECOURT",null,"CHEF DE SERVICE",null,null,null,"02:15:00",null,null,null,{"$f":"DATE(P2,7,14)","v":"2018-07-14"},"Fête Nationale France"]
["Durée Maxi du prêt",360,null,null,null,"ABBENANS",null,"DIRECTEUR",null,null,null,"02:30:00.288",null,null,null,{"$f":"DATE(P2,8,15)","v":"2018-08-15"},"Assomption"]
["Préfix Facture",null,null,null,null,"ABBEVILLE",null,"SECRETARIAT",null,null,null,"02:44:59.712",null,null,null,{"$f":"DATE(P2,11,1)","v":"2018-11-01"},"Toussaint"]
["MAS _",null,null,null,null,"ABBEVILLE LA RIVIERE",null,null,null,null,null,"03:00:00",null,null,null,{"$f":"DATE(P2,11,11)","v":"2018-11-11"},"Armistice 1918"]
["Sufixe monnaie",null,null,null,null,"ABBEVILLE LES CONFLANS",null,null,null,null,null,"03:15:00.288",null,null,null,{"$f":"DATE(P2,12,25)","v":"2018-12-25"},"Noël"]
[" €",null,null,null,null,"ABBEVILLE ST LUCIEN",null,null,null,null,null,"03:29:59.712"]
["N° Réservation",null,null,null,null,"ABBEVILLERS",null,null,null,null,null,"03:45:00"]
[{"$f":"MAX(BD[N° ID])","v":8},null,null,null,null,"ABEILHAN",null,null,null,null,null,"04:00:00.288"]
[null,null,null,null,null,"ABELCOURT",null,null,null,null,null,"04:15:00"]
[null,null,null,null,null,"ABERE",null,null,null,null,null,"04:30:00"]
[null,null,null,null,null,"ABERGEMENT LA RONCE",null,null,null,null,null,"04:45:00.288"]
[null,null,null,null,null,"ABERGEMENT LE GRAND",null,null,null,null,null,"04:59:59.712"]
[null,null,null,null,null,"ABERGEMENT LE PETIT",null,null,null,null,null,"05:15:00"]
[null,null,null,null,null,"ABERGEMENT LES THESY",null,null,null,null,null,"05:30:00.288"]
[null,null,null,null,null,"ABIDOS",null,null,null,null,null,"05:44:59.712"]
[null,null,null,null,null,"ABILLY",null,null,null,null,null,"06:00:00"]
[null,null,null,null,null,"ABITAIN",null,null,null,null,null,"06:15:00.288"]
[null,null,null,null,null,"ABJAT SUR BANDIAT",null,null,null,null,null,"06:29:59.712"]
[null,null,null,null,null,"ABLAIN ST NAZAIRE",null,null,null,null,null,"06:45:00"]
[null,null,null,null,null,"ABLAINCOURT PRESSOIR",null,null,null,null,null,"07:00:00.288"]
[null,null,null,null,null,"ABLAINZEVELLE",null,null,null,null,null,"07:14:59.712"]
[null,null,null,null,null,"ABLANCOURT",null,null,null,null,null,"07:30:00"]
[null,null,null,null,null,"ABLEIGES",null,null,null,null,null,"07:45:00.288"]
[null,null,null,null,null,"ABLIS",null,null,null,null,null,"07:59:59.712"]
[null,null,null,null,null,"ABLON",null,null,null,null,null,"08:15:00"]
[null,null,null,null,null,"ABLON SUR SEINE",null,null,null,null,null,"08:30:00.288"]
[null,null,null,null,null,"ABOEN",null,null,null,null,null,"08:44:59.712"]
[null,null,null,null,null,"ABONCOURT",null,null,null,null,null,"09:00:00"]
[null,null,null,null,null,"ABONCOURT GESINCOURT",null,null,null,null,null,"09:15:00.288"]
[null,null,null,null,null,"ABONCOURT SUR SEILLE",null,null,null,null,null,"09:29:59.712"]
[null,null,null,null,null,"ABONDANCE",null,null,null,null,null,"09:45:00"]
[null,null,null,null,null,"ABONDANT",null,null,null,null,null,"10:00:00.288"]
[null,null,null,null,null,"ABOS",null,null,null,null,null,"10:14:59.712"]
[null,null,null,null,null,"ABRESCHVILLER",null,null,null,null,null,"10:30:00"]
[null,null,null,null,null,"ABREST",null,null,null,null,null,"10:45:00.288"]
[null,null,null,null,null,"ABRIES",null,null,null,null,null,"10:59:59.712"]
[null,null,null,null,null,"ABSCON",null,null,null,null,null,"11:15:00"]
[null,null,null,null,null,"ABZAC",null,null,null,null,null,"11:30:00.288"]
[null,null,null,null,null,"ACCOLANS",null,null,null,null,null,"11:44:59.712"]
[null,null,null,null,null,"ACCOLAY",null,null,null,null,null,"12:00:00"]
[null,null,null,null,null,"ACCONS",null,null,null,null,null,"12:15:00.288"]
[null,null,null,null,null,"ACCOUS",null,null,null,null,null,"12:29:59.712"]
[null,null,null,null,null,"ACHAIN",null,null,null,null,null,"12:45:00"]
[null,null,null,null,null,"ACHEN",null,null,null,null,null,"13:00:00.288"]
[null,null,null,null,null,"ACHENHEIM",null,null,null,null,null,"13:14:59.712"]
[null,null,null,null,null,"ACHERES",null,null,null,null,null,"13:30:00"]
[null,null,null,null,null,"ACHERES LA FORET",null,null,null,null,null,"13:45:00.288"]
[null,null,null,null,null,"ACHERY",null,null,null,null,null,"13:59:59.712"]
[null,null,null,null,null,"ACHEUX EN AMIENOIS",null,null,null,null,null,"14:15:00"]
[null,null,null,null,null,"ACHEUX EN VIMEU",null,null,null,null,null,"14:30:00.288"]
[null,null,null,null,null,"ACHEVILLE",null,null,null,null,null,"14:45:00"]
[null,null,null,null,null,"ACHEY",null,null,null,null,null,"15:00:00"]
[null,null,null,null,null,"ACHICOURT",null,null,null,null,null,"15:15:00"]
[null,null,null,null,null,"ACHIET LE GRAND",null,null,null,null,null,"15:29:59.712"]
[null,null,null,null,null,"ACHIET LE PETIT",null,null,null,null,null,"15:45:00"]
[null,null,null,null,null,"ACHUN",null,null,null,null,null,"16:00:00.288"]
[null,null,null,null,null,"ACHY",null,null,null,null,null,"16:14:59.712"]
[null,null,null,null,null,"ACIGNE",null,null,null,null,null,"16:30:00"]
[null,null,null,null,null,"ACLOU",null,null,null,null,null,"16:45:00"]
[null,null,null,null,null,"ACON",null,null,null,null,null,"16:59:59.712"]
[null,null,null,null,null,"ACOUA",null,null,null,null,null,"17:15:00"]
[null,null,null,null,null,"ACQ",null,null,null,null,null,"17:30:00.288"]
[null,null,null,null,null,"ACQUEVILLE",null,null,null,null,null,"17:44:59.712"]
[null,null,null,null,null,"ACQUIGNY",null,null,null,null,null,"18:00:00"]
[null,null,null,null,null,"ACQUIN WESTBECOURT",null,null,null,null,null,"18:15:00.288"]
[null,null,null,null,null,"ACY",null,null,null,null,null,"18:29:59.712"]
[null,null,null,null,null,"ACY EN MULTIEN",null,null,null,null,null,"18:45:00"]
[null,null,null,null,null,"ACY ROMANCE",null,null,null,null,null,"19:00:00.288"]
[null,null,null,null,null,"ADAINCOURT",null,null,null,null,null,"19:14:59.712"]
[null,null,null,null,null,"ADAINVILLE",null,null,null,null,null,"19:30:00"]
[null,null,null,null,null,"ADAM LES PASSAVANT",null,null,null,null,null,"19:45:00.288"]
[null,null,null,null,null,"ADAM LES VERCEL",null,null,null,null,null,"19:59:59.712"]
[null,null,null,null,null,"ADAMSWILLER",null,null,null,null,null,"20:15:00"]
[null,null,null,null,null,"ADAST",null,null,null,null,null,"20:30:00.288"]
[null,null,null,null,null,"ADE",null,null,null,null,null,"20:44:59.712"]
[null,null,null,null,null,"ADELANGE",null,null,null,null,null,"21:00:00"]
[null,null,null,null,null,"ADELANS ET LE VAL DE BITHAINE",null,null,null,null,null,"21:15:00.288"]
[null,null,null,null,null,"ADERVIELLE POUCHERGUES",null,null,null,null,null,"21:29:59.712"]
[null,null,null,null,null,"ADILLY",null,null,null,null,null,"21:45:00"]
[null,null,null,null,null,"ADINFER",null,null,null,null,null,"22:00:00.288"]
[null,null,null,null,null,"ADISSAN",null,null,null,null,null,"22:14:59.712"]
[null,null,null,null,null,"ADON",null,null,null,null,null,"22:30:00"]
[null,null,null,null,null,"ADRIERS",null,null,null,null,null,"22:45:00.288"]
[null,null,null,null,null,"AFA",null,null,null,null,null,"22:59:59.712"]
[null,null,null,null,null,"AFFIEUX",null,null,null,null,null,"23:15:00"]
[null,null,null,null,null,"AFFLEVILLE",null,null,null,null,null,"23:30:00.288"]
[null,null,null,null,null,"AFFOUX",null,null,null,null,null,"23:45:00"]
[null,null,null,null,null,"AFFRACOURT",null,null,null,null,null,1]
[null,null,null,null,null,"AFFRINGUES",null,null,null,null,null,"     "]
[null,null,null,null,null,"AGASSAC"]
[null,null,null,null,null,"AGDE"]
[null,null,null,null,null,"AGEL"]
[null,null,null,null,null,"AGEN"]
[null,null,null,null,null,"AGEN D AVEYRON"]
[null,null,null,null,null,"AGENCOURT"]
[null,null,null,null,null,"AGENVILLE"]
[null,null,null,null,null,"AGENVILLERS"]
[null,null,null,null,null,"AGEVILLE"]
[null,null,null,null,null,"AGEY"]
[null,null,null,null,null,"AGHIONE"]
[null,null,null,null,null,"AGINCOURT"]
[null,null,null,null,null,"AGME"]
[null,null,null,null,null,"AGNAC"]
[null,null,null,null,null,"AGNAT"]
[null,null,null,null,null,"AGNEAUX"]
[null,null,null,null,null,"AGNETZ"]
[null,null,null,null,null,"AGNEZ LES DUISANS"]
[null,null,null,null,null,"AGNICOURT ET SECHELLES"]
[null,null,null,null,null,"AGNIERES"]
[null,null,null,null,null,"AGNIN"]
[null,null,null,null,null,"AGNOS"]
[null,null,null,null,null,"AGNY"]
[null,null,null,null,null,"AGON COUTAINVILLE"]
[null,null,null,null,null,"AGONAC"]
[null,null,null,null,null,"AGONES"]
[null,null,null,null,null,"AGONGES"]
[null,null,null,null,null,"AGOS VIDALOS"]
[null,null,null,null,null,"AGRIS"]
[null,null,null,null,null,"AGUDELLE"]
[null,null,null,null,null,"AGUESSAC"]
[null,null,null,null,null,"AGUILCOURT"]
[null,null,null,null,null,"AGUTS"]
[null,null,null,null,null,"AGY"]
[null,null,null,null,null,"AHAXE ALCIETTE BASCASSAN"]
[null,null,null,null,null,"AHETZE"]
[null,null,null,null,null,"AHEVILLE"]
[null,null,null,null,null,"AHUILLE"]
[null,null,null,null,null,"AHUN"]
[null,null,null,null,null,"AHUY"]
[null,null,null,null,null,"AIBES"]
[null,null,null,null,null,"AIBRE"]
[null,null,null,null,null,"AICIRITS CAMOU SUHAST"]
[null,null,null,null,null,"AIFFRES"]
[null,null,null,null,null,"AIGALIERS"]
[null,null,null,null,null,"AIGLEMONT"]
[null,null,null,null,null,"AIGLEPIERRE"]
[null,null,null,null,null,"AIGLEVILLE"]
[null,null,null,null,null,"AIGLUN"]
[null,null,null,null,null,"AIGNAN"]
[null,null,null,null,null,"AIGNAY LE DUC"]
[null,null,null,null,null,"AIGNE"]
[null,null,null,null,null,"AIGNERVILLE"]
[null,null,null,null,null,"AIGNES"]
[null,null,null,null,null,"AIGNES ET PUYPEROUX"]
[null,null,null,null,null,"AIGNEVILLE"]
[null,null,null,null,null,"AIGNY"]
[null,null,null,null,null,"AIGONNAY"]
[null,null,null,null,null,"AIGRE"]
[null,null,null,null,null,"AIGREFEUILLE"]
[null,null,null,null,null,"AIGREFEUILLE D AUNIS"]
[null,null,null,null,null,"AIGREFEUILLE SUR MAINE"]
[null,null,null,null,null,"AIGREMONT"]
[null,null,null,null,null,"AIGUEBELETTE LE LAC"]
[null,null,null,null,null,"AIGUEBELLE"]
[null,null,null,null,null,"AIGUEBLANCHE"]
[null,null,null,null,null,"AIGUEFONDE"]
[null,null,null,null,null,"AIGUEPERSE"]
[null,null,null,null,null,"AIGUES JUNTES"]
[null,null,null,null,null,"AIGUES MORTES"]
[null,null,null,null,null,"AIGUES VIVES"]
[null,null,null,null,null,"AIGUEZE"]
[null,null,null,null,null,"AIGUILHE"]
[null,null,null,null,null,"AIGUILLES"]
[null,null,null,null,null,"AIGUILLON"]
[null,null,null,null,null,"AIGUINES"]
[null,null,null,null,null,"AIGURANDE"]
[null,null,null,null,null,"AILHON"]
[null,null,null,null,null,"AILLANT SUR MILLERON"]
[null,null,null,null,null,"AILLANT SUR THOLON"]
[null,null,null,null,null,"AILLAS"]
[null,null,null,null,null,"AILLEUX"]
[null,null,null,null,null,"AILLEVANS"]
[null,null,null,null,null,"AILLEVILLE"]
[null,null,null,null,null,"AILLEVILLERS ET LYAUMONT"]
[null,null,null,null,null,"AILLIANVILLE"]
[null,null,null,null,null,"AILLIERES BEAUVOIR"]
[null,null,null,null,null,"AILLON LE JEUNE"]
[null,null,null,null,null,"AILLON LE VIEUX"]
[null,null,null,null,null,"AILLONCOURT"]
[null,null,null,null,null,"AILLY"]
[null,null,null,null,null,"AILLY LE HAUT CLOCHER"]
[null,null,null,null,null,"AILLY SUR NOYE"]
[null,null,null,null,null,"AILLY SUR SOMME"]
[null,null,null,null,null,"AIMARGUES"]
[null,null,null,null,null,"AIME LA PLAGNE"]
[null,null,null,null,null,"AINAY LE CHATEAU"]
[null,null,null,null,null,"AINAY LE VIEIL"]
[null,null,null,null,null,"AINCILLE"]
[null,null,null,null,null,"AINCOURT"]
[null,null,null,null,null,"AINCREVILLE"]
[null,null,null,null,null,"AINGERAY"]
[null,null,null,null,null,"AINGEVILLE"]
[null,null,null,null,null,"AINGOULAINCOURT"]
[null,null,null,null,null,"AINHARP"]
[null,null,null,null,null,"AINHICE MONGELOS"]
[null,null,null,null,null,"AINHOA"]
[null,null,null,null,null,"AINVELLE"]
[null,null,null,null,null,"AIRAINES"]
[null,null,null,null,null,"AIRAN"]
[null,null,null,null,null,"AIRE"]
[null,null,null,null,null,"AIRE SUR L ADOUR"]
[null,null,null,null,null,"AIRE SUR LA LYS"]
[null,null,null,null,null,"AIREL"]
[null,null,null,null,null,"AIRION"]
[null,null,null,null,null,"AIRON NOTRE DAME"]
[null,null,null,null,null,"AIRON ST VAAST"]
[null,null,null,null,null,"AIROUX"]
[null,null,null,null,null,"AIRVAULT"]
[null,null,null,null,null,"AISEREY"]
[null,null,null,null,null,"AISEY ET RICHECOURT"]
[null,null,null,null,null,"AISEY SUR SEINE"]
[null,null,null,null,null,"AISONVILLE ET BERNOVILLE"]
[null,null,null,null,null,"AISSEY"]
[null,null,null,null,null,"AISY SOUS THIL"]
[null,null,null,null,null,"AISY SUR ARMANCON"]
[null,null,null,null,null,"AITI"]
[null,null,null,null,null,"AITON"]
[null,null,null,null,null,"AIX"]
[null,null,null,null,null,"AIX EN ERGNY"]
[null,null,null,null,null,"AIX EN ISSART"]
[null,null,null,null,null,"AIX EN PROVENCE"]
[null,null,null,null,null,"AIX LA FAYETTE"]
[null,null,null,null,null,"AIX LES BAINS"]
[null,null,null,null,null,"AIX NOULETTE"]
[null,null,null,null,null,"AIX VILLEMAUR PALIS"]
[null,null,null,null,null,"AIXE SUR VIENNE"]
[null,null,null,null,null,"AIZAC"]
[null,null,null,null,null,"AIZANVILLE"]
[null,null,null,null,null,"AIZE"]
[null,null,null,null,null,"AIZECOURT LE BAS"]
[null,null,null,null,null,"AIZECOURT LE HAUT"]
[null,null,null,null,null,"AIZELLES"]
[null,null,null,null,null,"AIZENAY"]
[null,null,null,null,null,"AIZIER"]
[null,null,null,null,null,"AIZY JOUY"]
[null,null,null,null,null,"AJAC"]
[null,null,null,null,null,"AJACCIO"]
[null,null,null,null,null,"AJAIN"]
[null,null,null,null,null,"AJAT"]
[null,null,null,null,null,"AJONCOURT"]
[null,null,null,null,null,"AJOUX"]
[null,null,null,null,null,"ALAIGNE"]
[null,null,null,null,null,"ALAINCOURT"]
[null,null,null,null,null,"ALAINCOURT LA COTE"]
[null,null,null,null,null,"ALAIRAC"]
[null,null,null,null,null,"ALAN"]
[null,null,null,null,null,"ALANDO"]
[null,null,null,null,null,"ALATA"]
[null,null,null,null,null,"ALBA LA ROMAINE"]
[null,null,null,null,null,"ALBAN"]
[null,null,null,null,null,"ALBARET LE COMTAL"]
[null,null,null,null,null,"ALBARET STE MARIE"]
[null,null,null,null,null,"ALBAS"]
[null,null,null,null,null,"ALBE"]
[null,null,null,null,null,"ALBEFEUILLE LAGARDE"]
[null,null,null,null,null,"ALBEPIERRE BREDONS"]
[null,null,null,null,null,"ALBERT"]
[null,null,null,null,null,"ALBERTACCE"]
[null,null,null,null,null,"ALBERTVILLE"]
[null,null,null,null,null,"ALBESTROFF"]
[null,null,null,null,null,"ALBI"]
[null,null,null,null,null,"ALBIAC"]
[null,null,null,null,null,"ALBIAS"]
[null,null,null,null,null,"ALBIERES"]
[null,null,null,null,null,"ALBIES"]
[null,null,null,null,null,"ALBIEZ LE JEUNE"]
[null,null,null,null,null,"ALBIEZ MONTROND"]
[null,null,null,null,null,"ALBIGNAC"]
[null,null,null,null,null,"ALBIGNY SUR SAONE"]
[null,null,null,null,null,"ALBINE"]
[null,null,null,null,null,"ALBITRECCIA"]
[null,null,null,null,null,"ALBON"]
[null,null,null,null,null,"ALBON D ARDECHE"]
[null,null,null,null,null,"ALBOUSSIERE"]
[null,null,null,null,null,"ALBUSSAC"]
[null,null,null,null,null,"ALBY SUR CHERAN"]
[null,null,null,null,null,"ALCAY ALCABEHETY SUNHARETTE"]
[null,null,null,null,null,"ALDUDES"]
[null,null,null,null,null,"ALEMBON"]
[null,null,null,null,null,"ALENCON"]
[null,null,null,null,null,"ALENYA"]
[null,null,null,null,null,"ALERIA"]
[null,null,null,null,null,"ALES"]
[null,null,null,null,null,"ALET LES BAINS"]
[null,null,null,null,null,"ALETTE"]
[null,null,null,null,null,"ALEU"]
[null,null,null,null,null,"ALEX"]
[null,null,null,null,null,"ALEXAIN"]
[null,null,null,null,null,"ALEYRAC"]
[null,null,null,null,null,"ALFORTVILLE"]
[null,null,null,null,null,"ALGAJOLA"]
[null,null,null,null,null,"ALGANS"]
[null,null,null,null,null,"ALGOLSHEIM"]
[null,null,null,null,null,"ALGRANGE"]
[null,null,null,null,null,"ALIEZE"]
[null,null,null,null,null,"ALIGNAN DU VENT"]
[null,null,null,null,null,"ALINCOURT"]
[null,null,null,null,null,"ALINCTHUN"]
[null,null,null,null,null,"ALISE STE REINE"]
[null,null,null,null,null,"ALISSAS"]
[null,null,null,null,null,"ALIX"]
[null,null,null,null,null,"ALIXAN"]
[null,null,null,null,null,"ALIZAY"]
[null,null,null,null,null,"ALLAIN"]
[null,null,null,null,null,"ALLAINES"]
[null,null,null,null,null,"ALLAINES MERVILLIERS"]
[null,null,null,null,null,"ALLAINVILLE"]
[null,null,null,null,null,"ALLAIRE"]
[null,null,null,null,null,"ALLAMONT"]
[null,null,null,null,null,"ALLAMPS"]
[null,null,null,null,null,"ALLAN"]
[null,null,null,null,null,"ALLANCHE"]
[null,null,null,null,null,"ALLAND HUY ET SAUSSEUIL"]
[null,null,null,null,null,"ALLARMONT"]
[null,null,null,null,null,"ALLAS BOCAGE"]
[null,null,null,null,null,"ALLAS CHAMPAGNE"]
[null,null,null,null,null,"ALLAS LES MINES"]
[null,null,null,null,null,"ALLASSAC"]
[null,null,null,null,null,"ALLAUCH"]
[null,null,null,null,null,"ALLEGRE"]
[null,null,null,null,null,"ALLEGRE LES FUMADES"]
[null,null,null,null,null,"ALLEINS"]
[null,null,null,null,null,"ALLEMAGNE EN PROVENCE"]
[null,null,null,null,null,"ALLEMANCHE LAUNAY ET SOYER"]
[null,null,null,null,null,"ALLEMANS"]
[null,null,null,null,null,"ALLEMANS DU DROPT"]
[null,null,null,null,null,"ALLEMANT"]
[null,null,null,null,null,"ALLEMOND"]
[null,null,null,null,null,"ALLENAY"]
[null,null,null,null,null,"ALLENC"]
[null,null,null,null,null,"ALLENJOIE"]
[null,null,null,null,null,"ALLENNES LES MARAIS"]
[null,null,null,null,null,"ALLEREY"]
[null,null,null,null,null,"ALLEREY SUR SAONE"]
[null,null,null,null,null,"ALLERIOT"]
[null,null,null,null,null,"ALLERY"]
[null,null,null,null,null,"ALLES SUR DORDOGNE"]
[null,null,null,null,null,"ALLEUZE"]
[null,null,null,null,null,"ALLEVARD"]
[null,null,null,null,null,"ALLEVES"]
[null,null,null,null,null,"ALLEX"]
[null,null,null,null,null,"ALLEYRAC"]
[null,null,null,null,null,"ALLEYRAS"]
[null,null,null,null,null,"ALLEYRAT"]
[null,null,null,null,null,"ALLEZ ET CAZENEUVE"]
[null,null,null,null,null,"ALLIANCELLES"]
[null,null,null,null,null,"ALLIAT"]
[null,null,null,null,null,"ALLIBAUDIERES"]
[null,null,null,null,null,"ALLICHAMPS"]
[null,null,null,null,null,"ALLIER"]
[null,null,null,null,null,"ALLIERES"]
[null,null,null,null,null,"ALLIGNY COSNE"]
[null,null,null,null,null,"ALLIGNY EN MORVAN"]
[null,null,null,null,null,"ALLINEUC"]
[null,null,null,null,null,"ALLINGES"]
[null,null,null,null,null,"ALLOGNY"]
[null,null,null,null,null,"ALLONDANS"]
[null,null,null,null,null,"ALLONDAZ"]
[null,null,null,null,null,"ALLONDRELLE LA MALMAISON"]
[null,null,null,null,null,"ALLONNE"]
[null,null,null,null,null,"ALLONNES"]
[null,null,null,null,null,"ALLONS"]
[null,null,null,null,null,"ALLONVILLE"]
[null,null,null,null,null,"ALLONZIER LA CAILLE"]
[null,null,null,null,null,"ALLOS"]
[null,null,null,null,null,"ALLOUAGNE"]
[null,null,null,null,null,"ALLOUE"]
[null,null,null,null,null,"ALLOUIS"]
[null,null,null,null,null,"ALLOUVILLE BELLEFOSSE"]
[null,null,null,null,null,"ALLUY"]
[null,null,null,null,null,"ALLUYES"]
[null,null,null,null,null,"ALLY"]
[null,null,null,null,null,"ALMAYRAC"]
[null,null,null,null,null,"ALMENECHES"]
[null,null,null,null,null,"ALMONT LES JUNIES"]
[null,null,null,null,null,"ALO"]
[null,null,null,null,null,"ALOS"]
[null,null,null,null,null,"ALOS SIBAS ABENSE"]
[null,null,null,null,null,"ALOXE CORTON"]
[null,null,null,null,null,"ALQUINES"]
[null,null,null,null,null,"ALRANCE"]
[null,null,null,null,null,"ALSTING"]
[null,null,null,null,null,"ALTAGENE"]
[null,null,null,null,null,"ALTECKENDORF"]
[null,null,null,null,null,"ALTENACH"]
[null,null,null,null,null,"ALTENHEIM"]
[null,null,null,null,null,"ALTHEN DES PALUDS"]
[null,null,null,null,null,"ALTIANI"]
[null,null,null,null,null,"ALTIER"]
[null,null,null,null,null,"ALTILLAC"]
[null,null,null,null,null,"ALTKIRCH"]
[null,null,null,null,null,"ALTORF"]
[null,null,null,null,null,"ALTRIPPE"]
[null,null,null,null,null,"ALTVILLER"]
[null,null,null,null,null,"ALTWILLER"]
[null,null,null,null,null,"ALUZE"]
[null,null,null,null,null,"ALVIGNAC"]
[null,null,null,null,null,"ALVIMARE"]
[null,null,null,null,null,"ALZEN"]
[null,null,null,null,null,"ALZI"]
[null,null,null,null,null,"ALZING"]
[null,null,null,null,null,"ALZON"]
[null,null,null,null,null,"ALZONNE"]
[null,null,null,null,null,"AMAGE"]
[null,null,null,null,null,"AMAGNE"]
[null,null,null,null,null,"AMAGNEY"]
[null,null,null,null,null,"AMAILLOUX"]
[null,null,null,null,null,"AMANCE"]
[null,null,null,null,null,"AMANCEY"]
[null,null,null,null,null,"AMANCY"]
[null,null,null,null,null,"AMANGE"]
[null,null,null,null,null,"AMANLIS"]
[null,null,null,null,null,"AMANTY"]
[null,null,null,null,null,"AMANVILLERS"]
[null,null,null,null,null,"AMANZE"]
[null,null,null,null,null,"AMARENS"]
[null,null,null,null,null,"AMATHAY VESIGNEUX"]
[null,null,null,null,null,"AMAYE SUR ORNE"]
[null,null,null,null,null,"AMAYE SUR SEULLES"]
[null,null,null,null,null,"AMAZY"]
[null,null,null,null,null,"AMBACOURT"]
[null,null,null,null,null,"AMBARES ET LAGRAVE"]
[null,null,null,null,null,"AMBAX"]
[null,null,null,null,null,"AMBAZAC"]
[null,null,null,null,null,"AMBEL"]
[null,null,null,null,null,"AMBENAY"]
[null,null,null,null,null,"AMBERAC"]
[null,null,null,null,null,"AMBERIEU EN BUGEY"]
[null,null,null,null,null,"AMBERIEUX"]
[null,null,null,null,null,"AMBERIEUX EN DOMBES"]
[null,null,null,null,null,"AMBERNAC"]
[null,null,null,null,null,"AMBERRE"]
[null,null,null,null,null,"AMBERT"]
[null,null,null,null,null,"AMBES"]
[null,null,null,null,null,"AMBEYRAC"]
[null,null,null,null,null,"AMBIALET"]
[null,null,null,null,null,"AMBIEGNA"]
[null,null,null,null,null,"AMBIERLE"]
[null,null,null,null,null,"AMBIEVILLERS"]
[null,null,null,null,null,"AMBILLOU"]
[null,null,null,null,null,"AMBILLY"]
[null,null,null,null,null,"AMBLAINVILLE"]
[null,null,null,null,null,"AMBLANS ET VELOTTE"]
[null,null,null,null,null,"AMBLENY"]
[null,null,null,null,null,"AMBLEON"]
[null,null,null,null,null,"AMBLETEUSE"]
[null,null,null,null,null,"AMBLEVILLE"]
[null,null,null,null,null,"AMBLIE"]
[null,null,null,null,null,"AMBLOY"]
[null,null,null,null,null,"AMBLY FLEURY"]
[null,null,null,null,null,"AMBLY SUR MEUSE"]
[null,null,null,null,null,"AMBOISE"]
[null,null,null,null,null,"AMBON"]
[null,null,null,null,null,"AMBONIL"]
[null,null,null,null,null,"AMBONNAY"]
[null,null,null,null,null,"AMBONVILLE"]
[null,null,null,null,null,"AMBRAULT"]
[null,null,null,null,null,"AMBRES"]
[null,null,null,null,null,"AMBRICOURT"]
[null,null,null,null,null,"AMBRIEF"]
[null,null,null,null,null,"AMBRIERES"]
[null,null,null,null,null,"AMBRIERES LES VALLEES"]
[null,null,null,null,null,"AMBRINES"]
[null,null,null,null,null,"AMBRONAY"]
[null,null,null,null,null,"AMBRUGEAT"]
[null,null,null,null,null,"AMBRUMESNIL"]
[null,null,null,null,null,"AMBRUS"]
[null,null,null,null,null,"AMBUTRIX"]
[null,null,null,null,null,"AMECOURT"]
[null,null,null,null,null,"AMEL SUR L ETANG"]
[null,null,null,null,null,"AMELECOURT"]
[null,null,null,null,null,"AMELIE LES BAINS PALALDA"]
[null,null,null,null,null,"AMENDEUIX ONEIX"]
[null,null,null,null,null,"AMENONCOURT"]
[null,null,null,null,null,"AMENUCOURT"]
[null,null,null,null,null,"AMES"]
[null,null,null,null,null,"AMETTES"]
[null,null,null,null,null,"AMEUGNY"]
[null,null,null,null,null,"AMEUVELLE"]
[null,null,null,null,null,"AMFREVILLE"]
[null,null,null,null,null,"AMFREVILLE LA MI VOIE"]
[null,null,null,null,null,"AMFREVILLE LES CHAMPS"]
[null,null,null,null,null,"AMFREVILLE SOUS LES MONTS"]
[null,null,null,null,null,"AMFREVILLE ST AMAND"]
[null,null,null,null,null,"AMFREVILLE SUR ITON"]
[null,null,null,null,null,"AMFROIPRET"]
[null,null,null,null,null,"AMIENS"]
[null,null,null,null,null,"AMIFONTAINE"]
[null,null,null,null,null,"AMIGNY"]
[null,null,null,null,null,"AMIGNY ROUY"]
[null,null,null,null,null,"AMILLIS"]
[null,null,null,null,null,"AMILLY"]
[null,null,null,null,null,"AMIONS"]
[null,null,null,null,null,"AMIRAT"]
[null,null,null,null,null,"AMMERSCHWIHR"]
[null,null,null,null,null,"AMMERTZWILLER"]
[null,null,null,null,null,"AMNE"]
[null,null,null,null,null,"AMNEVILLE"]
[null,null,null,null,null,"AMONCOURT"]
[null,null,null,null,null,"AMONDANS"]
[null,null,null,null,null,"AMONT ET EFFRENEY"]
[null,null,null,null,null,"AMOROTS SUCCOS"]
[null,null,null,null,null,"AMOU"]
[null,null,null,null,null,"AMPILLY LE SEC"]
[null,null,null,null,null,"AMPILLY LES BORDES"]
[null,null,null,null,null,"AMPLEPUIS"]
[null,null,null,null,null,"AMPLIER"]
[null,null,null,null,null,"AMPOIGNE"]
[null,null,null,null,null,"AMPONVILLE"]
[null,null,null,null,null,"AMPRIANI"]
[null,null,null,null,null,"AMPUIS"]
[null,null,null,null,null,"AMPUS"]
[null,null,null,null,null,"AMURE"]
[null,null,null,null,null,"AMY"]
[null,null,null,null,null,"ANAA"]
[null,null,null,null,null,"ANAIS"]
[null,null,null,null,null,"ANAN"]
[null,null,null,null,null,"ANCE"]
[null,null,null,null,null,"ANCEAUMEVILLE"]
[null,null,null,null,null,"ANCELLE"]
[null,null,null,null,null,"ANCEMONT"]
[null,null,null,null,null,"ANCENIS"]
[null,null,null,null,null,"ANCERVILLE"]
[null,null,null,null,null,"ANCERVILLER"]
[null,null,null,null,null,"ANCEY"]
[null,null,null,null,null,"ANCHAMPS"]
[null,null,null,null,null,"ANCHE"]
[null,null,null,null,null,"ANCHENONCOURT ET CHAZEL"]
[null,null,null,null,null,"ANCIENVILLE"]
[null,null,null,null,null,"ANCIER"]
[null,null,null,null,null,"ANCINNES"]
[null,null,null,null,null,"ANCIZAN"]
[null,null,null,null,null,"ANCONE"]
[null,null,null,null,null,"ANCOURT"]
[null,null,null,null,null,"ANCOURTEVILLE SUR HERICOURT"]
[null,null,null,null,null,"ANCRETIEVILLE ST VICTOR"]
[null,null,null,null,null,"ANCRETTEVILLE SUR MER"]
[null,null,null,null,null,"ANCTEVILLE"]
[null,null,null,null,null,"ANCTOVILLE"]
[null,null,null,null,null,"ANCTOVILLE SUR BOSCQ"]
[null,null,null,null,null,"ANCY"]
[null,null,null,null,null,"ANCY DORNOT"]
[null,null,null,null,null,"ANCY LE FRANC"]
[null,null,null,null,null,"ANCY LE LIBRE"]
[null,null,null,null,null,"ANDAINVILLE"]
[null,null,null,null,null,"ANDANCE"]
[null,null,null,null,null,"ANDANCETTE"]
[null,null,null,null,null,"ANDE"]
[null,null,null,null,null,"ANDECHY"]
[null,null,null,null,null,"ANDEL"]
[null,null,null,null,null,"ANDELAIN"]
[null,null,null,null,null,"ANDELAROCHE"]
[null,null,null,null,null,"ANDELARRE"]
[null,null,null,null,null,"ANDELARROT"]
[null,null,null,null,null,"ANDELAT"]
[null,null,null,null,null,"ANDELNANS"]
[null,null,null,null,null,"ANDELOT BLANCHEVILLE"]
[null,null,null,null,null,"ANDELOT EN MONTAGNE"]
[null,null,null,null,null,"ANDELOT MORVAL"]
[null,null,null,null,null,"ANDELU"]
[null,null,null,null,null,"ANDERNAY"]
[null,null,null,null,null,"ANDERNOS LES BAINS"]
[null,null,null,null,null,"ANDERNY"]
[null,null,null,null,null,"ANDERT ET CONDON"]
[null,null,null,null,null,"ANDEVILLE"]
[null,null,null,null,null,"ANDILLAC"]
[null,null,null,null,null,"ANDILLY"]
[null,null,null,null,null,"ANDILLY EN BASSIGNY"]
[null,null,null,null,null,"ANDIRAN"]
[null,null,null,null,null,"ANDLAU"]
[null,null,null,null,null,"ANDOINS"]
[null,null,null,null,null,"ANDOLSHEIM"]
[null,null,null,null,null,"ANDON"]
[null,null,null,null,null,"ANDONVILLE"]
[null,null,null,null,null,"ANDORNAY"]
[null,null,null,null,null,"ANDOUILLE"]
[null,null,null,null,null,"ANDOUILLE NEUVILLE"]
[null,null,null,null,null,"ANDOUQUE"]
[null,null,null,null,null,"ANDREIN"]
[null,null,null,null,null,"ANDRES"]
[null,null,null,null,null,"ANDREST"]
[null,null,null,null,null,"ANDRESY"]
[null,null,null,null,null,"ANDREZEL"]
[null,null,null,null,null,"ANDREZIEUX BOUTHEON"]
[null,null,null,null,null,"ANDRYES"]
[null,null,null,null,null,"ANDUZE"]
[null,null,null,null,null,"ANERES"]
[null,null,null,null,null,"ANET"]
[null,null,null,null,null,"ANGAIS"]
[null,null,null,null,null,"ANGE"]
[null,null,null,null,null,"ANGEAC CHAMPAGNE"]
[null,null,null,null,null,"ANGEAC CHARENTE"]
[null,null,null,null,null,"ANGECOURT"]
[null,null,null,null,null,"ANGEDUC"]
[null,null,null,null,null,"ANGELY"]
[null,null,null,null,null,"ANGEOT"]
[null,null,null,null,null,"ANGERS"]
[null,null,null,null,null,"ANGERVILLE"]
[null,null,null,null,null,"ANGERVILLE BAILLEUL"]
[null,null,null,null,null,"ANGERVILLE L ORCHER"]
[null,null,null,null,null,"ANGERVILLE LA CAMPAGNE"]
[null,null,null,null,null,"ANGERVILLE LA MARTEL"]
[null,null,null,null,null,"ANGERVILLIERS"]
[null,null,null,null,null,"ANGEVILLE"]
[null,null,null,null,null,"ANGEVILLERS"]
[null,null,null,null,null,"ANGICOURT"]
[null,null,null,null,null,"ANGIENS"]
[null,null,null,null,null,"ANGIREY"]
[null,null,null,null,null,"ANGIVILLERS"]
[null,null,null,null,null,"ANGLADE"]
[null,null,null,null,null,"ANGLARDS DE SALERS"]
[null,null,null,null,null,"ANGLARDS DE ST FLOUR"]
[null,null,null,null,null,"ANGLARS"]
[null,null,null,null,null,"ANGLARS JUILLAC"]
[null,null,null,null,null,"ANGLARS NOZAC"]
[null,null,null,null,null,"ANGLARS ST FELIX"]
[null,null,null,null,null,"ANGLEFORT"]
[null,null,null,null,null,"ANGLEMONT"]
[null,null,null,null,null,"ANGLES"]
[null,null,null,null,null,"ANGLES SUR L ANGLIN"]
[null,null,null,null,null,"ANGLESQUEVILLE L ESNEVAL"]
[null,null,null,null,null,"ANGLESQUEVILLE LA BRAS LONG"]
[null,null,null,null,null,"ANGLET"]
[null,null,null,null,null,"ANGLIERS"]
[null,null,null,null,null,"ANGLURE"]
[null,null,null,null,null,"ANGLURE SOUS DUN"]
[null,null,null,null,null,"ANGLUZELLES ET COURCELLES"]
[null,null,null,null,null,"ANGOISSE"]
[null,null,null,null,null,"ANGOMONT"]
[null,null,null,null,null,"ANGOS"]
[null,null,null,null,null,"ANGOULEME"]
[null,null,null,null,null,"ANGOULINS"]
[null,null,null,null,null,"ANGOUME"]
[null,null,null,null,null,"ANGOUS"]
[null,null,null,null,null,"ANGOUSTRINE VILLENEUVE DES ESCALDES"]
[null,null,null,null,null,"ANGOVILLE"]
[null,null,null,null,null,"ANGRES"]
[null,null,null,null,null,"ANGRESSE"]
[null,null,null,null,null,"ANGRIE"]
[null,null,null,null,null,"ANGUILCOURT LE SART"]
[null,null,null,null,null,"ANGY"]
[null,null,null,null,null,"ANHAUX"]
[null,null,null,null,null,"ANHIERS"]
[null,null,null,null,null,"ANIANE"]
[null,null,null,null,null,"ANICHE"]
[null,null,null,null,null,"ANISY"]
[null,null,null,null,null,"ANIZY LE CHATEAU"]
[null,null,null,null,null,"ANJEUX"]
[null,null,null,null,null,"ANJOU"]
[null,null,null,null,null,"ANJOUIN"]
[null,null,null,null,null,"ANJOUTEY"]
[null,null,null,null,null,"ANLA"]
[null,null,null,null,null,"ANLEZY"]
[null,null,null,null,null,"ANLHIAC"]
[null,null,null,null,null,"ANNAY"]
[null,null,null,null,null,"ANNAY LA COTE"]
[null,null,null,null,null,"ANNAY SUR SEREIN"]
[null,null,null,null,null,"ANNEBAULT"]
[null,null,null,null,null,"ANNECY"]
[null,null,null,null,null,"ANNECY LE VIEUX"]
[null,null,null,null,null,"ANNELLES"]
[null,null,null,null,null,"ANNEMASSE"]
[null,null,null,null,null,"ANNEOT"]
[null,null,null,null,null,"ANNEPONT"]
[null,null,null,null,null,"ANNEQUIN"]
[null,null,null,null,null,"ANNESSE ET BEAULIEU"]
[null,null,null,null,null,"ANNET SUR MARNE"]
[null,null,null,null,null,"ANNEUX"]
[null,null,null,null,null,"ANNEVILLE AMBOURVILLE"]
[null,null,null,null,null,"ANNEVILLE EN SAIRE"]
[null,null,null,null,null,"ANNEVILLE LA PRAIRIE"]
[null,null,null,null,null,"ANNEVILLE SUR MER"]
[null,null,null,null,null,"ANNEVILLE SUR SCIE"]
[null,null,null,null,null,"ANNEYRON"]
[null,null,null,null,null,"ANNEZAY"]
[null,null,null,null,null,"ANNEZIN"]
[null,null,null,null,null,"ANNOEULLIN"]
[null,null,null,null,null,"ANNOIRE"]
[null,null,null,null,null,"ANNOIS"]
[null,null,null,null,null,"ANNOISIN CHATELANS"]
[null,null,null,null,null,"ANNOIX"]
[null,null,null,null,null,"ANNONAY"]
[null,null,null,null,null,"ANNONVILLE"]
[null,null,null,null,null,"ANNOT"]
[null,null,null,null,null,"ANNOUVILLE VILMESNIL"]
[null,null,null,null,null,"ANNOUX"]
[null,null,null,null,null,"ANNOVILLE"]
[null,null,null,null,null,"ANOR"]
[null,null,null,null,null,"ANOS"]
[null,null,null,null,null,"ANOST"]
[null,null,null,null,null,"ANOULD"]
[null,null,null,null,null,"ANOUX"]
[null,null,null,null,null,"ANOYE"]
[null,null,null,null,null,"ANQUETIERVILLE"]
[null,null,null,null,null,"ANROSEY"]
[null,null,null,null,null,"ANSAC SUR VIENNE"]
[null,null,null,null,null,"ANSACQ"]
[null,null,null,null,null,"ANSAN"]
[null,null,null,null,null,"ANSAUVILLE"]
[null,null,null,null,null,"ANSAUVILLERS"]
[null,null,null,null,null,"ANSE"]
[null,null,null,null,null,"ANSE BERTRAND"]
[null,null,null,null,null,"ANSIGNAN"]
[null,null,null,null,null,"ANSOST"]
[null,null,null,null,null,"ANSOUIS"]
[null,null,null,null,null,"ANSTAING"]
[null,null,null,null,null,"ANTAGNAC"]
[null,null,null,null,null,"ANTERRIEUX"]
[null,null,null,null,null,"ANTEUIL"]
[null,null,null,null,null,"ANTEZANT LA CHAPELLE"]
[null,null,null,null,null,"ANTHE"]
[null,null,null,null,null,"ANTHELUPT"]
[null,null,null,null,null,"ANTHENAY"]
[null,null,null,null,null,"ANTHENY"]
[null,null,null,null,null,"ANTHEUIL"]
[null,null,null,null,null,"ANTHEUIL PORTES"]
[null,null,null,null,null,"ANTHIEN"]
[null,null,null,null,null,"ANTHON"]
[null,null,null,null,null,"ANTHY SUR LEMAN"]
[null,null,null,null,null,"ANTIBES"]
[null,null,null,null,null,"ANTICHAN"]
[null,null,null,null,null,"ANTICHAN DE FRONTIGNES"]
[null,null,null,null,null,"ANTIGNAC"]
[null,null,null,null,null,"ANTIGNY"]
[null,null,null,null,null,"ANTIGNY LA VILLE"]
[null,null,null,null,null,"ANTILLY"]
[null,null,null,null,null,"ANTIN"]
[null,null,null,null,null,"ANTISANTI"]
[null,null,null,null,null,"ANTIST"]
[null,null,null,null,null,"ANTOGNY LE TILLAC"]
[null,null,null,null,null,"ANTOIGNE"]
[null,null,null,null,null,"ANTOINGT"]
[null,null,null,null,null,"ANTONNE ET TRIGONANT"]
[null,null,null,null,null,"ANTONY"]
[null,null,null,null,null,"ANTRAIGUES SUR VOLANE"]
[null,null,null,null,null,"ANTRAIN"]
[null,null,null,null,null,"ANTRAN"]
[null,null,null,null,null,"ANTRAS"]
[null,null,null,null,null,"ANTRENAS"]
[null,null,null,null,null,"ANTUGNAC"]
[null,null,null,null,null,"ANTULLY"]
[null,null,null,null,null,"ANVEVILLE"]
[null,null,null,null,null,"ANVILLE"]
[null,null,null,null,null,"ANVIN"]
[null,null,null,null,null,"ANY MARTIN RIEUX"]
[null,null,null,null,null,"ANZAT LE LUGUET"]
[null,null,null,null,null,"ANZELING"]
[null,null,null,null,null,"ANZEME"]
[null,null,null,null,null,"ANZEX"]
[null,null,null,null,null,"ANZIN"]
[null,null,null,null,null,"ANZIN ST AUBIN"]
[null,null,null,null,null,"ANZY LE DUC"]
[null,null,null,null,null,"AOSTE"]
[null,null,null,null,null,"AOUGNY"]
[null,null,null,null,null,"AOUSTE"]
[null,null,null,null,null,"AOUSTE SUR SYE"]
[null,null,null,null,null,"AOUZE"]
[null,null,null,null,null,"APACH"]
[null,null,null,null,null,"APATOU"]
[null,null,null,null,null,"APCHAT"]
[null,null,null,null,null,"APCHON"]
[null,null,null,null,null,"APINAC"]
[null,null,null,null,null,"APPELLE"]
[null,null,null,null,null,"APPENAI SOUS BELLEME"]
[null,null,null,null,null,"APPENANS"]
[null,null,null,null,null,"APPENWIHR"]
[null,null,null,null,null,"APPEVILLE"]
[null,null,null,null,null,"APPEVILLE ANNEBAULT"]
[null,null,null,null,null,"APPIETTO"]
[null,null,null,null,null,"APPILLY"]
[null,null,null,null,null,"APPOIGNY"]
[null,null,null,null,null,"APPRIEU"]
[null,null,null,null,null,"APPY"]
[null,null,null,null,null,"APREMONT"]
[null,null,null,null,null,"APREMONT LA FORET"]
[null,null,null,null,null,"APREMONT SUR ALLIER"]
[null,null,null,null,null,"APREY"]
[null,null,null,null,null,"APT"]
[null,null,null,null,null,"ARABAUX"]
[null,null,null,null,null,"ARACHES LA FRASSE"]
[null,null,null,null,null,"ARAGNOUET"]
[null,null,null,null,null,"ARAGON"]
[null,null,null,null,null,"ARAMITS"]
[null,null,null,null,null,"ARAMON"]
[null,null,null,null,null,"ARANC"]
[null,null,null,null,null,"ARANCOU"]
[null,null,null,null,null,"ARANDAS"]
[null,null,null,null,null,"ARANDON"]
[null,null,null,null,null,"ARAUJUZON"]
[null,null,null,null,null,"ARAULES"]
[null,null,null,null,null,"ARAUX"]
[null,null,null,null,null,"ARBANATS"]
[null,null,null,null,null,"ARBAS"]
[null,null,null,null,null,"ARBECEY"]
[null,null,null,null,null,"ARBELLARA"]
[null,null,null,null,null,"ARBENT"]
[null,null,null,null,null,"ARBEOST"]
[null,null,null,null,null,"ARBERATS SILLEGUE"]
[null,null,null,null,null,"ARBIGNY"]
[null,null,null,null,null,"ARBIGNY SOUS VARENNES"]
[null,null,null,null,null,"ARBIN"]
[null,null,null,null,null,"ARBIS"]
[null,null,null,null,null,"ARBLADE LE BAS"]
[null,null,null,null,null,"ARBLADE LE HAUT"]
[null,null,null,null,null,"ARBOIS"]
[null,null,null,null,null,"ARBON"]
[null,null,null,null,null,"ARBONNE"]
[null,null,null,null,null,"ARBONNE LA FORET"]
[null,null,null,null,null,"ARBORAS"]
[null,null,null,null,null,"ARBORI"]
[null,null,null,null,null,"ARBOT"]
[null,null,null,null,null,"ARBOUANS"]
[null,null,null,null,null,"ARBOUCAVE"]
[null,null,null,null,null,"ARBOUET SUSSAUTE"]
[null,null,null,null,null,"ARBOURSE"]
[null,null,null,null,null,"ARBOUSSOLS"]
[null,null,null,null,null,"ARBOYS EN BUGEY"]
[null,null,null,null,null,"ARBRISSEL"]
[null,null,null,null,null,"ARBUS"]
[null,null,null,null,null,"ARBUSIGNY"]
[null,null,null,null,null,"ARC EN BARROIS"]
[null,null,null,null,null,"ARC ET SENANS"]
[null,null,null,null,null,"ARC LES GRAY"]
[null,null,null,null,null,"ARC SOUS CICON"]
[null,null,null,null,null,"ARC SOUS MONTENOT"]
[null,null,null,null,null,"ARC SUR TILLE"]
[null,null,null,null,null,"ARCACHON"]
[null,null,null,null,null,"ARCAIS"]
[null,null,null,null,null,"ARCAMBAL"]
[null,null,null,null,null,"ARCANGUES"]
[null,null,null,null,null,"ARCAY"]
[null,null,null,null,null,"ARCEAU"]
[null,null,null,null,null,"ARCENANT"]
[null,null,null,null,null,"ARCENS"]
[null,null,null,null,null,"ARCES"]
[null,null,null,null,null,"ARCES DILO"]
[null,null,null,null,null,"ARCEY"]
[null,null,null,null,null,"ARCHAIL"]
[null,null,null,null,null,"ARCHAMPS"]
[null,null,null,null,null,"ARCHELANGE"]
[null,null,null,null,null,"ARCHES"]
[null,null,null,null,null,"ARCHETTES"]
[null,null,null,null,null,"ARCHIAC"]
[null,null,null,null,null,"ARCHIGNAC"]
[null,null,null,null,null,"ARCHIGNAT"]
[null,null,null,null,null,"ARCHIGNY"]
[null,null,null,null,null,"ARCHINGEAY"]
[null,null,null,null,null,"ARCHON"]
[null,null,null,null,null,"ARCINGES"]
[null,null,null,null,null,"ARCINS"]
[null,null,null,null,null,"ARCIS LE PONSART"]
[null,null,null,null,null,"ARCIS SUR AUBE"]
[null,null,null,null,null,"ARCIZAC ADOUR"]
[null,null,null,null,null,"ARCIZAC EZ ANGLES"]
[null,null,null,null,null,"ARCIZANS AVANT"]
[null,null,null,null,null,"ARCIZANS DESSUS"]
[null,null,null,null,null,"ARCOMPS"]
[null,null,null,null,null,"ARCON"]
[null,null,null,null,null,"ARCONCEY"]
[null,null,null,null,null,"ARCONNAY"]
[null,null,null,null,null,"ARCONSAT"]
[null,null,null,null,null,"ARCONVILLE"]
[null,null,null,null,null,"ARCUEIL"]
[null,null,null,null,null,"ARCY STE RESTITUE"]
[null,null,null,null,null,"ARCY SUR CURE"]
[null,null,null,null,null,"ARDELLES"]
[null,null,null,null,null,"ARDELU"]
[null,null,null,null,null,"ARDENAIS"]
[null,null,null,null,null,"ARDENAY SUR MERIZE"]
[null,null,null,null,null,"ARDENGOST"]
[null,null,null,null,null,"ARDENTES"]
[null,null,null,null,null,"ARDES"]
[null,null,null,null,null,"ARDEUIL ET MONTFAUXELLES"]
[null,null,null,null,null,"ARDIEGE"]
[null,null,null,null,null,"ARDILLEUX"]
[null,null,null,null,null,"ARDILLIERES"]
[null,null,null,null,null,"ARDIN"]
[null,null,null,null,null,"ARDIZAS"]
[null,null,null,null,null,"ARDOIX"]
[null,null,null,null,null,"ARDON"]
[null,null,null,null,null,"ARDOUVAL"]
[null,null,null,null,null,"ARDRES"]
[null,null,null,null,null,"AREGNO"]
[null,null,null,null,null,"AREINES"]
[null,null,null,null,null,"ARELAUNE EN SEINE"]
[null,null,null,null,null,"AREN"]
[null,null,null,null,null,"ARENGOSSE"]
[null,null,null,null,null,"ARENTHON"]
[null,null,null,null,null,"ARES"]
[null,null,null,null,null,"ARESCHES"]
[null,null,null,null,null,"ARESSY"]
[null,null,null,null,null,"ARETTE"]
[null,null,null,null,null,"ARFEUILLE CHATAIN"]
[null,null,null,null,null,"ARFEUILLES"]
[null,null,null,null,null,"ARFONS"]
[null,null,null,null,null,"ARGAGNON"]
[null,null,null,null,null,"ARGANCHY"]
[null,null,null,null,null,"ARGANCON"]
[null,null,null,null,null,"ARGANCY"]
[null,null,null,null,null,"ARGEIN"]
[null,null,null,null,null,"ARGELES BAGNERES"]
[null,null,null,null,null,"ARGELES GAZOST"]
[null,null,null,null,null,"ARGELES SUR MER"]
[null,null,null,null,null,"ARGELIERS"]
[null,null,null,null,null,"ARGELLIERS"]
[null,null,null,null,null,"ARGELOS"]
[null,null,null,null,null,"ARGELOUSE"]
[null,null,null,null,null,"ARGENCES"]
[null,null,null,null,null,"ARGENCES EN AUBRAC"]
[null,null,null,null,null,"ARGENS MINERVOIS"]
[null,null,null,null,null,"ARGENT SUR SAULDRE"]
[null,null,null,null,null,"ARGENTAN"]
[null,null,null,null,null,"ARGENTAT"]
[null,null,null,null,null,"ARGENTENAY"]
[null,null,null,null,null,"ARGENTEUIL"]
[null,null,null,null,null,"ARGENTEUIL SUR ARMANCON"]
[null,null,null,null,null,"ARGENTIERES"]
[null,null,null,null,null,"ARGENTINE"]
[null,null,null,null,null,"ARGENTON"]
[null,null,null,null,null,"ARGENTON L EGLISE"]
[null,null,null,null,null,"ARGENTON NOTRE DAME"]
[null,null,null,null,null,"ARGENTON SUR CREUSE"]
[null,null,null,null,null,"ARGENTONAY"]
[null,null,null,null,null,"ARGENTRE"]
[null,null,null,null,null,"ARGENTRE DU PLESSIS"]
[null,null,null,null,null,"ARGENVIERES"]
[null,null,null,null,null,"ARGENVILLIERS"]
[null,null,null,null,null,"ARGERS"]
[null,null,null,null,null,"ARGET"]
[null,null,null,null,null,"ARGIESANS"]
[null,null,null,null,null,"ARGILLIERES"]
[null,null,null,null,null,"ARGILLIERS"]
[null,null,null,null,null,"ARGILLY"]
[null,null,null,null,null,"ARGIS"]
[null,null,null,null,null,"ARGIUSTA MORICCIO"]
[null,null,null,null,null,"ARGOEUVES"]
[null,null,null,null,null,"ARGOL"]
[null,null,null,null,null,"ARGONAY"]
[null,null,null,null,null,"ARGOUGES"]
[null,null,null,null,null,"ARGOULES"]
[null,null,null,null,null,"ARGUEIL"]
[null,null,null,null,null,"ARGUEL"]
[null,null,null,null,null,"ARGUENOS"]
[null,null,null,null,null,"ARGUT DESSOUS"]
[null,null,null,null,null,"ARGY"]
[null,null,null,null,null,"ARHANSUS"]
[null,null,null,null,null,"ARIES ESPENAN"]
[null,null,null,null,null,"ARIFAT"]
[null,null,null,null,null,"ARIGNAC"]
[null,null,null,null,null,"ARINTHOD"]
[null,null,null,null,null,"ARITH"]
[null,null,null,null,null,"ARJUZANX"]
[null,null,null,null,null,"ARLANC"]
[null,null,null,null,null,"ARLAY"]
[null,null,null,null,null,"ARLEBOSC"]
[null,null,null,null,null,"ARLEMPDES"]
[null,null,null,null,null,"ARLES"]
[null,null,null,null,null,"ARLES SUR TECH"]
[null,null,null,null,null,"ARLET"]
[null,null,null,null,null,"ARLEUF"]
[null,null,null,null,null,"ARLEUX"]
[null,null,null,null,null,"ARLEUX EN GOHELLE"]
[null,null,null,null,null,"ARLOS"]
[null,null,null,null,null,"ARMAILLE"]
[null,null,null,null,null,"ARMANCOURT"]
[null,null,null,null,null,"ARMAUCOURT"]
[null,null,null,null,null,"ARMBOUTS CAPPEL"]
[null,null,null,null,null,"ARMEAU"]
[null,null,null,null,null,"ARMENDARITS"]
[null,null,null,null,null,"ARMENTIERES"]
[null,null,null,null,null,"ARMENTIERES EN BRIE"]
[null,null,null,null,null,"ARMENTIERES SUR AVRE"]
[null,null,null,null,null,"ARMENTIERES SUR OURCQ"]
[null,null,null,null,null,"ARMENTIEUX"]
[null,null,null,null,null,"ARMES"]
[null,null,null,null,null,"ARMILLAC"]
[null,null,null,null,null,"ARMISSAN"]
[null,null,null,null,null,"ARMIX"]
[null,null,null,null,null,"ARMOUS ET CAU"]
[null,null,null,null,null,"ARMOY"]
[null,null,null,null,null,"ARNAC"]
[null,null,null,null,null,"ARNAC LA POSTE"]
[null,null,null,null,null,"ARNAC POMPADOUR"]
[null,null,null,null,null,"ARNAC SUR DOURDOU"]
[null,null,null,null,null,"ARNAGE"]
[null,null,null,null,null,"ARNANCOURT"]
[null,null,null,null,null,"ARNAS"]
[null,null,null,null,null,"ARNAUD GUILHEM"]
[null,null,null,null,null,"ARNAVE"]
[null,null,null,null,null,"ARNAVILLE"]
[null,null,null,null,null,"ARNAY LE DUC"]
[null,null,null,null,null,"ARNAY SOUS VITTEAUX"]
[null,null,null,null,null,"ARNAYON"]
[null,null,null,null,null,"ARNE"]
[null,null,null,null,null,"ARNEGUY"]
[null,null,null,null,null,"ARNEKE"]
[null,null,null,null,null,"ARNICOURT"]
[null,null,null,null,null,"ARNIERES SUR ITON"]
[null,null,null,null,null,"ARNOS"]
[null,null,null,null,null,"ARNOUVILLE"]
[null,null,null,null,null,"ARNOUVILLE LES MANTES"]
[null,null,null,null,null,"AROFFE"]
[null,null,null,null,null,"AROMAS"]
[null,null,null,null,null,"ARON"]
[null,null,null,null,null,"AROUE ITHOROTS OLHAIBY"]
[null,null,null,null,null,"AROZ"]
[null,null,null,null,null,"ARPAILLARGUES ET AUREILLAC"]
[null,null,null,null,null,"ARPAJON"]
[null,null,null,null,null,"ARPAJON SUR CERE"]
[null,null,null,null,null,"ARPAVON"]
[null,null,null,null,null,"ARPENANS"]
[null,null,null,null,null,"ARPHEUILLES"]
[null,null,null,null,null,"ARPHEUILLES ST PRIEST"]
[null,null,null,null,null,"ARPHY"]
[null,null,null,null,null,"ARQUENAY"]
[null,null,null,null,null,"ARQUES"]
[null,null,null,null,null,"ARQUES LA BATAILLE"]
[null,null,null,null,null,"ARQUETTES EN VAL"]
[null,null,null,null,null,"ARQUEVES"]
[null,null,null,null,null,"ARQUIAN"]
[null,null,null,null,null,"ARRACOURT"]
[null,null,null,null,null,"ARRADON"]
[null,null,null,null,null,"ARRAINCOURT"]
[null,null,null,null,null,"ARRANCOURT"]
[null,null,null,null,null,"ARRANCY"]
[null,null,null,null,null,"ARRANCY SUR CRUSNE"]
[null,null,null,null,null,"ARRANS"]
[null,null,null,null,null,"ARRAS"]
[null,null,null,null,null,"ARRAS EN LAVEDAN"]
[null,null,null,null,null,"ARRAS SUR RHONE"]
[null,null,null,null,null,"ARRAST LARREBIEU"]
[null,null,null,null,null,"ARRAUTE CHARRITTE"]
[null,null,null,null,null,"ARRAYE ET HAN"]
[null,null,null,null,null,"ARRAYOU LAHITTE"]
[null,null,null,null,null,"ARRE"]
[null,null,null,null,null,"ARREAU"]
[null,null,null,null,null,"ARRELLES"]
[null,null,null,null,null,"ARREMBECOURT"]
[null,null,null,null,null,"ARRENES"]
[null,null,null,null,null,"ARRENS MARSOUS"]
[null,null,null,null,null,"ARRENTES DE CORCIEUX"]
[null,null,null,null,null,"ARRENTIERES"]
[null,null,null,null,null,"ARREST"]
[null,null,null,null,null,"ARREUX"]
[null,null,null,null,null,"ARRIANCE"]
[null,null,null,null,null,"ARRICAU BORDES"]
[null,null,null,null,null,"ARRIEN"]
[null,null,null,null,null,"ARRIEN EN BETHMALE"]
[null,null,null,null,null,"ARRIGAS"]
[null,null,null,null,null,"ARRIGNY"]
[null,null,null,null,null,"ARRO"]
[null,null,null,null,null,"ARRODETS"]
[null,null,null,null,null,"ARRODETS EZ ANGLES"]
[null,null,null,null,null,"ARROMANCHES LES BAINS"]
[null,null,null,null,null,"ARRONNES"]
[null,null,null,null,null,"ARRONVILLE"]
[null,null,null,null,null,"ARROS DE NAY"]
[null,null,null,null,null,"ARROSES"]
[null,null,null,null,null,"ARROU"]
[null,null,null,null,null,"ARROUEDE"]
[null,null,null,null,null,"ARROUT"]
[null,null,null,null,null,"ARRY"]
[null,null,null,null,null,"ARS"]
[null,null,null,null,null,"ARS EN RE"]
[null,null,null,null,null,"ARS LAQUENEXY"]
[null,null,null,null,null,"ARS LES FAVETS"]
[null,null,null,null,null,"ARS SUR FORMANS"]
[null,null,null,null,null,"ARS SUR MOSELLE"]
[null,null,null,null,null,"ARSAC"]
[null,null,null,null,null,"ARSAC EN VELAY"]
[null,null,null,null,null,"ARSAGUE"]
[null,null,null,null,null,"ARSANS"]
[null,null,null,null,null,"ARSONVAL"]
[null,null,null,null,null,"ARSURE ARSURETTE"]
[null,null,null,null,null,"ARSY"]
[null,null,null,null,null,"ART SUR MEURTHE"]
[null,null,null,null,null,"ARTAGNAN"]
[null,null,null,null,null,"ARTAISE LE VIVIER"]
[null,null,null,null,null,"ARTAIX"]
[null,null,null,null,null,"ARTALENS SOUIN"]
[null,null,null,null,null,"ARTANNES SUR INDRE"]
[null,null,null,null,null,"ARTANNES SUR THOUET"]
[null,null,null,null,null,"ARTAS"]
[null,null,null,null,null,"ARTASSENX"]
[null,null,null,null,null,"ARTEMARE"]
[null,null,null,null,null,"ARTEMPS"]
[null,null,null,null,null,"ARTENAY"]
[null,null,null,null,null,"ARTHAZ PONT NOTRE DAME"]
[null,null,null,null,null,"ARTHEL"]
[null,null,null,null,null,"ARTHEMONAY"]
[null,null,null,null,null,"ARTHENAC"]
[null,null,null,null,null,"ARTHES"]
[null,null,null,null,null,"ARTHEZ D ARMAGNAC"]
[null,null,null,null,null,"ARTHEZ D ASSON"]
[null,null,null,null,null,"ARTHEZ DE BEARN"]
[null,null,null,null,null,"ARTHEZE"]
[null,null,null,null,null,"ARTHIES"]
[null,null,null,null,null,"ARTHON"]
[null,null,null,null,null,"ARTHONNAY"]
[null,null,null,null,null,"ARTHUN"]
[null,null,null,null,null,"ARTIGAT"]
[null,null,null,null,null,"ARTIGNOSC SUR VERDON"]
[null,null,null,null,null,"ARTIGUE"]
[null,null,null,null,null,"ARTIGUELOUTAN"]
[null,null,null,null,null,"ARTIGUELOUVE"]
[null,null,null,null,null,"ARTIGUEMY"]
[null,null,null,null,null,"ARTIGUES"]
[null,null,null,null,null,"ARTIGUES PRES BORDEAUX"]
[null,null,null,null,null,"ARTINS"]
[null,null,null,null,null,"ARTIX"]
[null,null,null,null,null,"ARTOLSHEIM"]
[null,null,null,null,null,"ARTONNE"]
[null,null,null,null,null,"ARTRES"]
[null,null,null,null,null,"ARTZENHEIM"]
[null,null,null,null,null,"ARUDY"]
[null,null,null,null,null,"ARUE"]
[null,null,null,null,null,"ARUTUA"]
[null,null,null,null,null,"ARVERT"]
[null,null,null,null,null,"ARVEYRES"]
[null,null,null,null,null,"ARVIEU"]
[null,null,null,null,null,"ARVIEUX"]
[null,null,null,null,null,"ARVIGNA"]
[null,null,null,null,null,"ARVILLARD"]
[null,null,null,null,null,"ARVILLE"]
[null,null,null,null,null,"ARVILLERS"]
[null,null,null,null,null,"ARX"]
[null,null,null,null,null,"ARZACQ ARRAZIGUET"]
[null,null,null,null,null,"ARZAL"]
[null,null,null,null,null,"ARZANO"]
[null,null,null,null,null,"ARZAY"]
[null,null,null,null,null,"ARZEMBOUY"]
[null,null,null,null,null,"ARZENC D APCHER"]
[null,null,null,null,null,"ARZENC DE RANDON"]
[null,null,null,null,null,"ARZENS"]
[null,null,null,null,null,"ARZILLIERES NEUVILLE"]
[null,null,null,null,null,"ARZON"]
[null,null,null,null,null,"ARZVILLER"]
[null,null,null,null,null,"ASASP ARROS"]
[null,null,null,null,null,"ASCAIN"]
[null,null,null,null,null,"ASCARAT"]
[null,null,null,null,null,"ASCHBACH"]
[null,null,null,null,null,"ASCHERES LE MARCHE"]
[null,null,null,null,null,"ASCO"]
[null,null,null,null,null,"ASCOU"]
[null,null,null,null,null,"ASCOUX"]
[null,null,null,null,null,"ASCROS"]
[null,null,null,null,null,"ASFELD"]
[null,null,null,null,null,"ASLONNES"]
[null,null,null,null,null,"ASNAN"]
[null,null,null,null,null,"ASNANS BEAUVOISIN"]
[null,null,null,null,null,"ASNELLES"]
[null,null,null,null,null,"ASNIERES"]
[null,null,null,null,null,"ASNIERES EN BESSIN"]
[null,null,null,null,null,"ASNIERES EN MONTAGNE"]
[null,null,null,null,null,"ASNIERES EN POITOU"]
[null,null,null,null,null,"ASNIERES LA GIRAUD"]
[null,null,null,null,null,"ASNIERES LES DIJON"]
[null,null,null,null,null,"ASNIERES SOUS BOIS"]
[null,null,null,null,null,"ASNIERES SUR BLOUR"]
[null,null,null,null,null,"ASNIERES SUR NOUERE"]
[null,null,null,null,null,"ASNIERES SUR OISE"]
[null,null,null,null,null,"ASNIERES SUR SAONE"]
[null,null,null,null,null,"ASNIERES SUR SEINE"]
[null,null,null,null,null,"ASNIERES SUR VEGRE"]
[null,null,null,null,null,"ASNOIS"]
[null,null,null,null,null,"ASPACH"]
[null,null,null,null,null,"ASPACH LE BAS"]
[null,null,null,null,null,"ASPACH MICHELBACH"]
[null,null,null,null,null,"ASPERES"]
[null,null,null,null,null,"ASPERJOC"]
[null,null,null,null,null,"ASPET"]
[null,null,null,null,null,"ASPIN AURE"]
[null,null,null,null,null,"ASPIN EN LAVEDAN"]
[null,null,null,null,null,"ASPIRAN"]
[null,null,null,null,null,"ASPREMONT"]
[null,null,null,null,null,"ASPRES LES CORPS"]
[null,null,null,null,null,"ASPRES SUR BUECH"]
[null,null,null,null,null,"ASPRET SARRAT"]
[null,null,null,null,null,"ASPRIERES"]
[null,null,null,null,null,"ASQUE"]
[null,null,null,null,null,"ASQUES"]
[null,null,null,null,null,"ASQUINS"]
[null,null,null,null,null,"ASSAC"]
[null,null,null,null,null,"ASSAINVILLERS"]
[null,null,null,null,null,"ASSAIS LES JUMEAUX"]
[null,null,null,null,null,"ASSAS"]
[null,null,null,null,null,"ASSAT"]
[null,null,null,null,null,"ASSAY"]
[null,null,null,null,null,"ASSE LE BERENGER"]
[null,null,null,null,null,"ASSE LE BOISNE"]
[null,null,null,null,null,"ASSE LE RIBOUL"]
[null,null,null,null,null,"ASSENAY"]
[null,null,null,null,null,"ASSENCIERES"]
[null,null,null,null,null,"ASSENONCOURT"]
[null,null,null,null,null,"ASSERAC"]
[null,null,null,null,null,"ASSEVENT"]
[null,null,null,null,null,"ASSEVILLERS"]
[null,null,null,null,null,"ASSIER"]
[null,null,null,null,null,"ASSIEU"]
[null,null,null,null,null,"ASSIGNAN"]
[null,null,null,null,null,"ASSIGNY"]
[null,null,null,null,null,"ASSIS SUR SERRE"]
[null,null,null,null,null,"ASSON"]
[null,null,null,null,null,"ASSWILLER"]
[null,null,null,null,null,"ASTAFFORT"]
[null,null,null,null,null,"ASTAILLAC"]
[null,null,null,null,null,"ASTE"]
[null,null,null,null,null,"ASTE BEON"]
[null,null,null,null,null,"ASTET"]
[null,null,null,null,null,"ASTILLE"]
[null,null,null,null,null,"ASTIS"]
[null,null,null,null,null,"ASTON"]
[null,null,null,null,null,"ASTUGUE"]
[null,null,null,null,null,"ATHEE"]
[null,null,null,null,null,"ATHEE SUR CHER"]
[null,null,null,null,null,"ATHESANS ETROITEFONTAINE"]
[null,null,null,null,null,"ATHIE"]
[null,null,null,null,null,"ATHIENVILLE"]
[null,null,null,null,null,"ATHIES"]
[null,null,null,null,null,"ATHIES SOUS LAON"]
[null,null,null,null,null,"ATHIS"]
[null,null,null,null,null,"ATHIS MONS"]
[null,null,null,null,null,"ATHIS VAL DE ROUVRE"]
[null,null,null,null,null,"ATHOS ASPIS"]
[null,null,null,null,null,"ATTAINVILLE"]
[null,null,null,null,null,"ATTANCOURT"]
[null,null,null,null,null,"ATTENSCHWILLER"]
[null,null,null,null,null,"ATTICHES"]
[null,null,null,null,null,"ATTICHY"]
[null,null,null,null,null,"ATTIGNAT"]
[null,null,null,null,null,"ATTIGNAT ONCIN"]
[null,null,null,null,null,"ATTIGNEVILLE"]
[null,null,null,null,null,"ATTIGNY"]
[null,null,null,null,null,"ATTILLONCOURT"]
[null,null,null,null,null,"ATTILLY"]
[null,null,null,null,null,"ATTIN"]
[null,null,null,null,null,"ATTON"]
[null,null,null,null,null,"ATTRAY"]
[null,null,null,null,null,"ATTRICOURT"]
[null,null,null,null,null,"AUBAGNAN"]
[null,null,null,null,null,"AUBAGNE"]
[null,null,null,null,null,"AUBAINE"]
[null,null,null,null,null,"AUBAIS"]
[null,null,null,null,null,"AUBAREDE"]
[null,null,null,null,null,"AUBAS"]
[null,null,null,null,null,"AUBAZAT"]
[null,null,null,null,null,"AUBAZINES"]
[null,null,null,null,null,"AUBE"]
[null,null,null,null,null,"AUBEGUIMONT"]
[null,null,null,null,null,"AUBENAS"]
[null,null,null,null,null,"AUBENAS LES ALPES"]
[null,null,null,null,null,"AUBENASSON"]
[null,null,null,null,null,"AUBENCHEUL AU BAC"]
[null,null,null,null,null,"AUBENCHEUL AUX BOIS"]
[null,null,null,null,null,"AUBENTON"]
[null,null,null,null,null,"AUBEPIERRE OZOUER LE REPOS"]
[null,null,null,null,null,"AUBEPIERRE SUR AUBE"]
[null,null,null,null,null,"AUBERCHICOURT"]
[null,null,null,null,null,"AUBERCOURT"]
[null,null,null,null,null,"AUBERGENVILLE"]
[null,null,null,null,null,"AUBERIVE"]
[null,null,null,null,null,"AUBERIVES EN ROYANS"]
[null,null,null,null,null,"AUBERIVES SUR VAREZE"]
[null,null,null,null,null,"AUBERMESNIL AUX ERABLES"]
[null,null,null,null,null,"AUBERMESNIL BEAUMAIS"]
[null,null,null,null,null,"AUBERS"]
[null,null,null,null,null,"AUBERTIN"]
[null,null,null,null,null,"AUBERVILLE"]
[null,null,null,null,null,"AUBERVILLE LA MANUEL"]
[null,null,null,null,null,"AUBERVILLE LA RENAULT"]
[null,null,null,null,null,"AUBERVILLIERS"]
[null,null,null,null,null,"AUBETERRE"]
[null,null,null,null,null,"AUBETERRE SUR DRONNE"]
[null,null,null,null,null,"AUBIAC"]
[null,null,null,null,null,"AUBIAT"]
[null,null,null,null,null,"AUBIERE"]
[null,null,null,null,null,"AUBIET"]
[null,null,null,null,null,"AUBIGNAN"]
[null,null,null,null,null,"AUBIGNAS"]
[null,null,null,null,null,"AUBIGNE"]
[null,null,null,null,null,"AUBIGNE RACAN"]
[null,null,null,null,null,"AUBIGNE SUR LAYON"]
[null,null,null,null,null,"AUBIGNOSC"]
[null,null,null,null,null,"AUBIGNY"]
[null,null,null,null,null,"AUBIGNY AU BAC"]
[null,null,null,null,null,"AUBIGNY AUX KAISNES"]
[null,null,null,null,null,"AUBIGNY EN ARTOIS"]
[null,null,null,null,null,"AUBIGNY EN LAONNOIS"]
[null,null,null,null,null,"AUBIGNY EN PLAINE"]
[null,null,null,null,null,"AUBIGNY LA RONCE"]
[null,null,null,null,null,"AUBIGNY LES CLOUZEAUX"]
[null,null,null,null,null,"AUBIGNY LES POTHEES"]
[null,null,null,null,null,"AUBIGNY LES SOMBERNON"]
[null,null,null,null,null,"AUBIGNY SUR NERE"]
[null,null,null,null,null,"AUBILLY"]
[null,null,null,null,null,"AUBIN"]
[null,null,null,null,null,"AUBIN ST VAAST"]
[null,null,null,null,null,"AUBINGES"]
[null,null,null,null,null,"AUBONCOURT VAUZELLES"]
[null,null,null,null,null,"AUBONNE"]
[null,null,null,null,null,"AUBORD"]
[null,null,null,null,null,"AUBOUE"]
[null,null,null,null,null,"AUBOUS"]
[null,null,null,null,null,"AUBRES"]
[null,null,null,null,null,"AUBREVILLE"]
[null,null,null,null,null,"AUBRIVES"]
[null,null,null,null,null,"AUBROMETZ"]
[null,null,null,null,null,"AUBRY DU HAINAUT"]
[null,null,null,null,null,"AUBRY EN EXMES"]
[null,null,null,null,null,"AUBRY LE PANTHOU"]
[null,null,null,null,null,"AUBURE"]
[null,null,null,null,null,"AUBUSSARGUES"]
[null,null,null,null,null,"AUBUSSON"]
[null,null,null,null,null,"AUBUSSON D AUVERGNE"]
[null,null,null,null,null,"AUBVILLERS"]
[null,null,null,null,null,"AUBY"]
[null,null,null,null,null,"AUCALEUC"]
[null,null,null,null,null,"AUCAMVILLE"]
[null,null,null,null,null,"AUCAZEIN"]
[null,null,null,null,null,"AUCELON"]
[null,null,null,null,null,"AUCEY LA PLAINE"]
[null,null,null,null,null,"AUCH"]
[null,null,null,null,null,"AUCHEL"]
[null,null,null,null,null,"AUCHONVILLERS"]
[null,null,null,null,null,"AUCHY AU BOIS"]
[null,null,null,null,null,"AUCHY LA MONTAGNE"]
[null,null,null,null,null,"AUCHY LES HESDIN"]
[null,null,null,null,null,"AUCHY LES MINES"]
[null,null,null,null,null,"AUCHY LEZ ORCHIES"]
[null,null,null,null,null,"AUCUN"]
[null,null,null,null,null,"AUDAUX"]
[null,null,null,null,null,"AUDELANGE"]
[null,null,null,null,null,"AUDELONCOURT"]
[null,null,null,null,null,"AUDEMBERT"]
[null,null,null,null,null,"AUDENGE"]
[null,null,null,null,null,"AUDERVILLE"]
[null,null,null,null,null,"AUDES"]
[null,null,null,null,null,"AUDEUX"]
[null,null,null,null,null,"AUDEVILLE"]
[null,null,null,null,null,"AUDIERNE"]
[null,null,null,null,null,"AUDIGNICOURT"]
[null,null,null,null,null,"AUDIGNIES"]
[null,null,null,null,null,"AUDIGNON"]
[null,null,null,null,null,"AUDIGNY"]
[null,null,null,null,null,"AUDINCOURT"]
[null,null,null,null,null,"AUDINCTHUN"]
[null,null,null,null,null,"AUDINGHEN"]
[null,null,null,null,null,"AUDON"]
[null,null,null,null,null,"AUDOUVILLE LA HUBERT"]
[null,null,null,null,null,"AUDREHEM"]
[null,null,null,null,null,"AUDRESSEIN"]
[null,null,null,null,null,"AUDRESSELLES"]
[null,null,null,null,null,"AUDRIEU"]
[null,null,null,null,null,"AUDRIX"]
[null,null,null,null,null,"AUDRUICQ"]
[null,null,null,null,null,"AUDUN LE ROMAN"]
[null,null,null,null,null,"AUDUN LE TICHE"]
[null,null,null,null,null,"AUENHEIM"]
[null,null,null,null,null,"AUFFARGIS"]
[null,null,null,null,null,"AUFFAY"]
[null,null,null,null,null,"AUFFERVILLE"]
[null,null,null,null,null,"AUFFREVILLE BRASSEUIL"]
[null,null,null,null,null,"AUFLANCE"]
[null,null,null,null,null,"AUGA"]
[null,null,null,null,null,"AUGAN"]
[null,null,null,null,null,"AUGE"]
[null,null,null,null,null,"AUGE ST MEDARD"]
[null,null,null,null,null,"AUGEA"]
[null,null,null,null,null,"AUGER ST VINCENT"]
[null,null,null,null,null,"AUGERANS"]
[null,null,null,null,null,"AUGERES"]
[null,null,null,null,null,"AUGEROLLES"]
[null,null,null,null,null,"AUGERS EN BRIE"]
[null,null,null,null,null,"AUGERVILLE LA RIVIERE"]
[null,null,null,null,null,"AUGICOURT"]
[null,null,null,null,null,"AUGIGNAC"]
[null,null,null,null,null,"AUGIREIN"]
[null,null,null,null,null,"AUGISEY"]
[null,null,null,null,null,"AUGNAT"]
[null,null,null,null,null,"AUGNAX"]
[null,null,null,null,null,"AUGNE"]
[null,null,null,null,null,"AUGNY"]
[null,null,null,null,null,"AUGUAISE"]
[null,null,null,null,null,"AUGY"]
[null,null,null,null,null,"AUGY SUR AUBOIS"]
[null,null,null,null,null,"AUJAC"]
[null,null,null,null,null,"AUJAN MOURNEDE"]
[null,null,null,null,null,"AUJARGUES"]
[null,null,null,null,null,"AUJEURRES"]
[null,null,null,null,null,"AUJOLS"]
[null,null,null,null,null,"AULAN"]
[null,null,null,null,null,"AULAS"]
[null,null,null,null,null,"AULHAT FLAT"]
[null,null,null,null,null,"AULLENE"]
[null,null,null,null,null,"AULNAT"]
[null,null,null,null,null,"AULNAY"]
[null,null,null,null,null,"AULNAY L AITRE"]
[null,null,null,null,null,"AULNAY LA RIVIERE"]
[null,null,null,null,null,"AULNAY SOUS BOIS"]
[null,null,null,null,null,"AULNAY SUR ITON"]
[null,null,null,null,null,"AULNAY SUR MARNE"]
[null,null,null,null,null,"AULNAY SUR MAULDRE"]
[null,null,null,null,null,"AULNOIS"]
[null,null,null,null,null,"AULNOIS EN PERTHOIS"]
[null,null,null,null,null,"AULNOIS SOUS LAON"]
[null,null,null,null,null,"AULNOIS SUR SEILLE"]
[null,null,null,null,null,"AULNOY"]
[null,null,null,null,null,"AULNOY LEZ VALENCIENNES"]
[null,null,null,null,null,"AULNOY SUR AUBE"]
[null,null,null,null,null,"AULNOYE AYMERIES"]
[null,null,null,null,null,"AULON"]
[null,null,null,null,null,"AULOS"]
[null,null,null,null,null,"AULT"]
[null,null,null,null,null,"AULUS LES BAINS"]
[null,null,null,null,null,"AULX LES CROMARY"]
[null,null,null,null,null,"AUMAGNE"]
[null,null,null,null,null,"AUMALE"]
[null,null,null,null,null,"AUMATRE"]
[null,null,null,null,null,"AUMELAS"]
[null,null,null,null,null,"AUMENANCOURT"]
[null,null,null,null,null,"AUMERVAL"]
[null,null,null,null,null,"AUMES"]
[null,null,null,null,null,"AUMESSAS"]
[null,null,null,null,null,"AUMETZ"]
[null,null,null,null,null,"AUMEVILLE LESTRE"]
[null,null,null,null,null,"AUMONT"]
[null,null,null,null,null,"AUMONT AUBRAC"]
[null,null,null,null,null,"AUMONT EN HALATTE"]
[null,null,null,null,null,"AUMUR"]
[null,null,null,null,null,"AUNAC"]
[null,null,null,null,null,"AUNAT"]
[null,null,null,null,null,"AUNAY EN BAZOIS"]
[null,null,null,null,null,"AUNAY LES BOIS"]
[null,null,null,null,null,"AUNAY SOUS AUNEAU"]
[null,null,null,null,null,"AUNAY SOUS CRECY"]
[null,null,null,null,null,"AUNAY SUR ODON"]
[null,null,null,null,null,"AUNEAU BLEURY ST SYMPHORIEN"]
[null,null,null,null,null,"AUNEUIL"]
[null,null,null,null,null,"AUNOU LE FAUCON"]
[null,null,null,null,null,"AUNOU SUR ORNE"]
[null,null,null,null,null,"AUPPEGARD"]
[null,null,null,null,null,"AUPS"]
[null,null,null,null,null,"AURADE"]
[null,null,null,null,null,"AURADOU"]
[null,null,null,null,null,"AURAGNE"]
[null,null,null,null,null,"AURAY"]
[null,null,null,null,null,"AURE"]
[null,null,null,null,null,"AUREC SUR LOIRE"]
[null,null,null,null,null,"AUREIL"]
[null,null,null,null,null,"AUREILHAN"]
[null,null,null,null,null,"AUREILLE"]
[null,null,null,null,null,"AUREL"]
[null,null,null,null,null,"AURENSAN"]
[null,null,null,null,null,"AUREVILLE"]
[null,null,null,null,null,"AURIAC"]
[null,null,null,null,null,"AURIAC DU PERIGORD"]
[null,null,null,null,null,"AURIAC L EGLISE"]
[null,null,null,null,null,"AURIAC LAGAST"]
[null,null,null,null,null,"AURIAC SUR DROPT"]
[null,null,null,null,null,"AURIAC SUR VENDINELLE"]
[null,null,null,null,null,"AURIAT"]
[null,null,null,null,null,"AURIBAIL"]
[null,null,null,null,null,"AURIBEAU"]
[null,null,null,null,null,"AURIBEAU SUR SIAGNE"]
[null,null,null,null,null,"AURICE"]
[null,null,null,null,null,"AURIEBAT"]
[null,null,null,null,null,"AURIERES"]
[null,null,null,null,null,"AURIGNAC"]
[null,null,null,null,null,"AURILLAC"]
[null,null,null,null,null,"AURIMONT"]
[null,null,null,null,null,"AURIN"]
[null,null,null,null,null,"AURIOL"]
[null,null,null,null,null,"AURIOLLES"]
[null,null,null,null,null,"AURIONS IDERNES"]
[null,null,null,null,null,"AURIS"]
[null,null,null,null,null,"AURONS"]
[null,null,null,null,null,"AUROS"]
[null,null,null,null,null,"AUROUER"]
[null,null,null,null,null,"AUROUX"]
[null,null,null,null,null,"AUSSAC"]
[null,null,null,null,null,"AUSSAC VADALLE"]
[null,null,null,null,null,"AUSSEING"]
[null,null,null,null,null,"AUSSEVIELLE"]
[null,null,null,null,null,"AUSSILLON"]
[null,null,null,null,null,"AUSSOIS"]
[null,null,null,null,null,"AUSSON"]
[null,null,null,null,null,"AUSSONCE"]
[null,null,null,null,null,"AUSSONNE"]
[null,null,null,null,null,"AUSSOS"]
[null,null,null,null,null,"AUSSURUCQ"]
[null,null,null,null,null,"AUTAINVILLE"]
[null,null,null,null,null,"AUTECHAUX"]
[null,null,null,null,null,"AUTECHAUX ROIDE"]
[null,null,null,null,null,"AUTERIVE"]
[null,null,null,null,null,"AUTERRIVE"]
[null,null,null,null,null,"AUTET"]
[null,null,null,null,null,"AUTEUIL"]
[null,null,null,null,null,"AUTEVIELLE ST MARTIN BIDEREN"]
[null,null,null,null,null,"AUTHE"]
[null,null,null,null,null,"AUTHEUIL"]
[null,null,null,null,null,"AUTHEUIL AUTHOUILLET"]
[null,null,null,null,null,"AUTHEUIL EN VALOIS"]
[null,null,null,null,null,"AUTHEUX"]
[null,null,null,null,null,"AUTHEVERNES"]
[null,null,null,null,null,"AUTHEZAT"]
[null,null,null,null,null,"AUTHIE"]
[null,null,null,null,null,"AUTHIEULE"]
[null,null,null,null,null,"AUTHIEUX RATIEVILLE"]
[null,null,null,null,null,"AUTHIOU"]
[null,null,null,null,null,"AUTHOISON"]
[null,null,null,null,null,"AUTHON"]
[null,null,null,null,null,"AUTHON DU PERCHE"]
[null,null,null,null,null,"AUTHON EBEON"]
[null,null,null,null,null,"AUTHON LA PLAINE"]
[null,null,null,null,null,"AUTHOU"]
[null,null,null,null,null,"AUTHUILLE"]
[null,null,null,null,null,"AUTHUME"]
[null,null,null,null,null,"AUTHUMES"]
[null,null,null,null,null,"AUTICHAMP"]
[null,null,null,null,null,"AUTIGNAC"]
[null,null,null,null,null,"AUTIGNY"]
[null,null,null,null,null,"AUTIGNY LA TOUR"]
[null,null,null,null,null,"AUTIGNY LE GRAND"]
[null,null,null,null,null,"AUTIGNY LE PETIT"]
[null,null,null,null,null,"AUTINGUES"]
[null,null,null,null,null,"AUTOIRE"]
[null,null,null,null,null,"AUTOREILLE"]
[null,null,null,null,null,"AUTOUILLET"]
[null,null,null,null,null,"AUTRAC"]
[null,null,null,null,null,"AUTRANS MEAUDRE EN VERCORS"]
[null,null,null,null,null,"AUTRECHE"]
[null,null,null,null,null,"AUTRECHENE"]
[null,null,null,null,null,"AUTRECHES"]
[null,null,null,null,null,"AUTRECOURT ET POURRON"]
[null,null,null,null,null,"AUTRECOURT SUR AIRE"]
[null,null,null,null,null,"AUTREMENCOURT"]
[null,null,null,null,null,"AUTREPIERRE"]
[null,null,null,null,null,"AUTREPPES"]
[null,null,null,null,null,"AUTRETOT"]
[null,null,null,null,null,"AUTREVILLE"]
[null,null,null,null,null,"AUTREVILLE ST LAMBERT"]
[null,null,null,null,null,"AUTREVILLE SUR LA RENNE"]
[null,null,null,null,null,"AUTREVILLE SUR MOSELLE"]
[null,null,null,null,null,"AUTREY"]
[null,null,null,null,null,"AUTREY LE VAY"]
[null,null,null,null,null,"AUTREY LES CERRE"]
[null,null,null,null,null,"AUTREY LES GRAY"]
[null,null,null,null,null,"AUTRICOURT"]
[null,null,null,null,null,"AUTRUCHE"]
[null,null,null,null,null,"AUTRUY SUR JUINE"]
[null,null,null,null,null,"AUTRY"]
[null,null,null,null,null,"AUTRY ISSARDS"]
[null,null,null,null,null,"AUTRY LE CHATEL"]
[null,null,null,null,null,"AUTUN"]
[null,null,null,null,null,"AUTY"]
[null,null,null,null,null,"AUVARE"]
[null,null,null,null,null,"AUVE"]
[null,null,null,null,null,"AUVERNAUX"]
[null,null,null,null,null,"AUVERS"]
[null,null,null,null,null,"AUVERS LE HAMON"]
[null,null,null,null,null,"AUVERS SOUS MONTFAUCON"]
[null,null,null,null,null,"AUVERS ST GEORGES"]
[null,null,null,null,null,"AUVERS SUR OISE"]
[null,null,null,null,null,"AUVERSE"]
[null,null,null,null,null,"AUVET ET LA CHAPELOTTE"]
[null,null,null,null,null,"AUVILLAR"]
[null,null,null,null,null,"AUVILLARS"]
[null,null,null,null,null,"AUVILLARS SUR SAONE"]
[null,null,null,null,null,"AUVILLERS LES FORGES"]
[null,null,null,null,null,"AUVILLIERS"]
[null,null,null,null,null,"AUVILLIERS EN GATINAIS"]
[null,null,null,null,null,"AUX AUSSAT"]
[null,null,null,null,null,"AUX MARAIS"]
[null,null,null,null,null,"AUXAIS"]
[null,null,null,null,null,"AUXANGE"]
[null,null,null,null,null,"AUXANT"]
[null,null,null,null,null,"AUXELLES BAS"]
[null,null,null,null,null,"AUXELLES HAUT"]
[null,null,null,null,null,"AUXERRE"]
[null,null,null,null,null,"AUXEY DURESSES"]
[null,null,null,null,null,"AUXI LE CHATEAU"]
[null,null,null,null,null,"AUXON"]
[null,null,null,null,null,"AUXONNE"]
[null,null,null,null,null,"AUXY"]
[null,null,null,null,null,"AUZAINVILLIERS"]
[null,null,null,null,null,"AUZANCES"]
[null,null,null,null,null,"AUZAS"]
[null,null,null,null,null,"AUZAT"]
[null,null,null,null,null,"AUZAT LA COMBELLE"]
[null,null,null,null,null,"AUZAY"]
[null,null,null,null,null,"AUZEBOSC"]
[null,null,null,null,null,"AUZELLES"]
[null,null,null,null,null,"AUZERS"]
[null,null,null,null,null,"AUZET"]
[null,null,null,null,null,"AUZEVILLE TOLOSANE"]
[null,null,null,null,null,"AUZIELLE"]
[null,null,null,null,null,"AUZITS"]
[null,null,null,null,null,"AUZON"]
[null,null,null,null,null,"AUZOUER EN TOURAINE"]
[null,null,null,null,null,"AUZOUVILLE AUBERBOSC"]
[null,null,null,null,null,"AUZOUVILLE L ESNEVAL"]
[null,null,null,null,null,"AUZOUVILLE SUR RY"]
[null,null,null,null,null,"AUZOUVILLE SUR SAANE"]
[null,null,null,null,null,"AVAILLES EN CHATELLERAULT"]
[null,null,null,null,null,"AVAILLES LIMOUZINE"]
[null,null,null,null,null,"AVAILLES SUR SEICHE"]
[null,null,null,null,null,"AVAILLES THOUARSAIS"]
[null,null,null,null,null,"AVAJAN"]
[null,null,null,null,null,"AVALLON"]
[null,null,null,null,null,"AVANCON"]
[null,null,null,null,null,"AVANNE AVENEY"]
[null,null,null,null,null,"AVANT LES MARCILLY"]
[null,null,null,null,null,"AVANT LES RAMERUPT"]
[null,null,null,null,null,"AVANTON"]
[null,null,null,null,null,"AVAPESSA"]
[null,null,null,null,null,"AVARAY"]
[null,null,null,null,null,"AVAUX"]
[null,null,null,null,null,"AVEIZE"]
[null,null,null,null,null,"AVEIZIEUX"]
[null,null,null,null,null,"AVELANGES"]
[null,null,null,null,null,"AVELESGES"]
[null,null,null,null,null,"AVELIN"]
[null,null,null,null,null,"AVELUY"]
[null,null,null,null,null,"AVENAS"]
[null,null,null,null,null,"AVENAY"]
[null,null,null,null,null,"AVENAY VAL D OR"]
[null,null,null,null,null,"AVENE"]
[null,null,null,null,null,"AVENSAC"]
[null,null,null,null,null,"AVENSAN"]
[null,null,null,null,null,"AVENTIGNAN"]
[null,null,null,null,null,"AVERAN"]
[null,null,null,null,null,"AVERDOINGT"]
[null,null,null,null,null,"AVERDON"]
[null,null,null,null,null,"AVERMES"]
[null,null,null,null,null,"AVERNES"]
[null,null,null,null,null,"AVERNES SOUS EXMES"]
[null,null,null,null,null,"AVERNES ST GOURGON"]
[null,null,null,null,null,"AVERON BERGELLE"]
[null,null,null,null,null,"AVERTON"]
[null,null,null,null,null,"AVESNELLES"]
[null,null,null,null,null,"AVESNES"]
[null,null,null,null,null,"AVESNES CHAUSSOY"]
[null,null,null,null,null,"AVESNES EN BRAY"]
[null,null,null,null,null,"AVESNES EN SAOSNOIS"]
[null,null,null,null,null,"AVESNES EN VAL"]
[null,null,null,null,null,"AVESNES LE COMTE"]
[null,null,null,null,null,"AVESNES LE SEC"]
[null,null,null,null,null,"AVESNES LES AUBERT"]
[null,null,null,null,null,"AVESNES LES BAPAUME"]
[null,null,null,null,null,"AVESNES SUR HELPE"]
[null,null,null,null,null,"AVESSAC"]
[null,null,null,null,null,"AVESSE"]
[null,null,null,null,null,"AVEUX"]
[null,null,null,null,null,"AVEZAC PRAT LAHITTE"]
[null,null,null,null,null,"AVEZAN"]
[null,null,null,null,null,"AVEZE"]
[null,null,null,null,null,"AVIERNOZ"]
[null,null,null,null,null,"AVIGNON"]
[null,null,null,null,null,"AVIGNON LES ST CLAUDE"]
[null,null,null,null,null,"AVIGNONET"]
[null,null,null,null,null,"AVIGNONET LAURAGAIS"]
[null,null,null,null,null,"AVILLERS"]
[null,null,null,null,null,"AVILLERS STE CROIX"]
[null,null,null,null,null,"AVILLEY"]
[null,null,null,null,null,"AVILLY ST LEONARD"]
[null,null,null,null,null,"AVION"]
[null,null,null,null,null,"AVIOTH"]
[null,null,null,null,null,"AVIRE"]
[null,null,null,null,null,"AVIREY LINGEY"]
[null,null,null,null,null,"AVIRON"]
[null,null,null,null,null,"AVIZE"]
[null,null,null,null,null,"AVOCOURT"]
[null,null,null,null,null,"AVOINE"]
[null,null,null,null,null,"AVOISE"]
[null,null,null,null,null,"AVOLSHEIM"]
[null,null,null,null,null,"AVON"]
[null,null,null,null,null,"AVON LA PEZE"]
[null,null,null,null,null,"AVON LES ROCHES"]
[null,null,null,null,null,"AVONDANCE"]
[null,null,null,null,null,"AVORD"]
[null,null,null,null,null,"AVOSNES"]
[null,null,null,null,null,"AVOT"]
[null,null,null,null,null,"AVOUDREY"]
[null,null,null,null,null,"AVRAINVILLE"]
[null,null,null,null,null,"AVRANCHES"]
[null,null,null,null,null,"AVRANVILLE"]
[null,null,null,null,null,"AVRECHY"]
[null,null,null,null,null,"AVRECOURT"]
[null,null,null,null,null,"AVREE"]
[null,null,null,null,null,"AVREMESNIL"]
[null,null,null,null,null,"AVRESSIEUX"]
[null,null,null,null,null,"AVREUIL"]
[null,null,null,null,null,"AVRICOURT"]
[null,null,null,null,null,"AVRIEUX"]
[null,null,null,null,null,"AVRIGNEY VIREY"]
[null,null,null,null,null,"AVRIGNY"]
[null,null,null,null,null,"AVRIL"]
[null,null,null,null,null,"AVRIL SUR LOIRE"]
[null,null,null,null,null,"AVRILLE"]
[null,null,null,null,null,"AVRILLE LES PONCEAUX"]
[null,null,null,null,null,"AVRILLY"]
[null,null,null,null,null,"AVROULT"]
[null,null,null,null,null,"AVY"]
[null,null,null,null,null,"AWALA YALIMAPO"]
[null,null,null,null,null,"AWOINGT"]
[null,null,null,null,null,"AX LES THERMES"]
[null,null,null,null,null,"AXAT"]
[null,null,null,null,null,"AXIAT"]
[null,null,null,null,null,"AY CHAMPAGNE"]
[null,null,null,null,null,"AY SUR MOSELLE"]
[null,null,null,null,null,"AYAT SUR SIOULE"]
[null,null,null,null,null,"AYDAT"]
[null,null,null,null,null,"AYDIE"]
[null,null,null,null,null,"AYDIUS"]
[null,null,null,null,null,"AYDOILLES"]
[null,null,null,null,null,"AYEN"]
[null,null,null,null,null,"AYENCOURT"]
[null,null,null,null,null,"AYETTE"]
[null,null,null,null,null,"AYGUATEBIA TALAU"]
[null,null,null,null,null,"AYGUEMORTE LES GRAVES"]
[null,null,null,null,null,"AYGUESVIVES"]
[null,null,null,null,null,"AYGUETINTE"]
[null,null,null,null,null,"AYHERRE"]
[null,null,null,null,null,"AYN"]
[null,null,null,null,null,"AYNAC"]
[null,null,null,null,null,"AYRENS"]
[null,null,null,null,null,"AYRON"]
[null,null,null,null,null,"AYROS ARBOUIX"]
[null,null,null,null,null,"AYSE"]
[null,null,null,null,null,"AYSSENES"]
[null,null,null,null,null,"AYTRE"]
[null,null,null,null,null,"AYZAC OST"]
[null,null,null,null,null,"AYZIEU"]
[null,null,null,null,null,"AZANNES ET SOUMAZANNES"]
[null,null,null,null,null,"AZAS"]
[null,null,null,null,null,"AZAT CHATENET"]
[null,null,null,null,null,"AZAT LE RIS"]
[null,null,null,null,null,"AZAY LE BRULE"]
[null,null,null,null,null,"AZAY LE FERRON"]
[null,null,null,null,null,"AZAY LE RIDEAU"]
[null,null,null,null,null,"AZAY SUR CHER"]
[null,null,null,null,null,"AZAY SUR INDRE"]
[null,null,null,null,null,"AZAY SUR THOUET"]
[null,null,null,null,null,"AZE"]
[null,null,null,null,null,"AZELOT"]
[null,null,null,null,null,"AZERABLES"]
[null,null,null,null,null,"AZERAILLES"]
[null,null,null,null,null,"AZERAT"]
[null,null,null,null,null,"AZEREIX"]
[null,null,null,null,null,"AZET"]
[null,null,null,null,null,"AZEVILLE"]
[null,null,null,null,null,"AZILLANET"]
[null,null,null,null,null,"AZILLE"]
[null,null,null,null,null,"AZILONE AMPAZA"]
[null,null,null,null,null,"AZINCOURT"]
[null,null,null,null,null,"AZOLETTE"]
[null,null,null,null,null,"AZOUDANGE"]
[null,null,null,null,null,"AZUR"]
[null,null,null,null,null,"AZY"]
[null,null,null,null,null,"AZY LE VIF"]
[null,null,null,null,null,"AZY SUR MARNE"]
[null,null,null,null,null,"AZZANA"]
[null,null,null,null,null,"BAALON"]
[null,null,null,null,null,"BAALONS"]
[null,null,null,null,null,"BABEAU BOULDOUX"]
[null,null,null,null,null,"BABOEUF"]
[null,null,null,null,null,"BABY"]
[null,null,null,null,null,"BACCARAT"]
[null,null,null,null,null,"BACCON"]
[null,null,null,null,null,"BACH"]
[null,null,null,null,null,"BACHANT"]
[null,null,null,null,null,"BACHAS"]
[null,null,null,null,null,"BACHIVILLERS"]
[null,null,null,null,null,"BACHOS"]
[null,null,null,null,null,"BACHY"]
[null,null,null,null,null,"BACILLY"]
[null,null,null,null,null,"BACONNES"]
[null,null,null,null,null,"BACOUEL"]
[null,null,null,null,null,"BACOUEL SUR SELLE"]
[null,null,null,null,null,"BACOURT"]
[null,null,null,null,null,"BACQUEPUIS"]
[null,null,null,null,null,"BACQUEVILLE"]
[null,null,null,null,null,"BACQUEVILLE EN CAUX"]
[null,null,null,null,null,"BADAILHAC"]
[null,null,null,null,null,"BADAROUX"]
[null,null,null,null,null,"BADECON LE PIN"]
[null,null,null,null,null,"BADEFOLS D ANS"]
[null,null,null,null,null,"BADEFOLS SUR DORDOGNE"]
[null,null,null,null,null,"BADEN"]
[null,null,null,null,null,"BADENS"]
[null,null,null,null,null,"BADEVEL"]
[null,null,null,null,null,"BADMENIL AUX BOIS"]
[null,null,null,null,null,"BADONVILLER"]
[null,null,null,null,null,"BADONVILLIERS GERAUVILLIERS"]
[null,null,null,null,null,"BAERENDORF"]
[null,null,null,null,null,"BAERENTHAL"]
[null,null,null,null,null,"BAFFIE"]
[null,null,null,null,null,"BAGARD"]
[null,null,null,null,null,"BAGAS"]
[null,null,null,null,null,"BAGAT EN QUERCY"]
[null,null,null,null,null,"BAGE LA VILLE"]
[null,null,null,null,null,"BAGE LE CHATEL"]
[null,null,null,null,null,"BAGERT"]
[null,null,null,null,null,"BAGES"]
[null,null,null,null,null,"BAGIRY"]
[null,null,null,null,null,"BAGNAC SUR CELE"]
[null,null,null,null,null,"BAGNEAUX"]
[null,null,null,null,null,"BAGNEAUX SUR LOING"]
[null,null,null,null,null,"BAGNERES DE BIGORRE"]
[null,null,null,null,null,"BAGNERES DE LUCHON"]
[null,null,null,null,null,"BAGNEUX"]
[null,null,null,null,null,"BAGNEUX LA FOSSE"]
[null,null,null,null,null,"BAGNIZEAU"]
[null,null,null,null,null,"BAGNOLES"]
[null,null,null,null,null,"BAGNOLES DE L ORNE NORMANDIE"]
[null,null,null,null,null,"BAGNOLET"]
[null,null,null,null,null,"BAGNOLS"]
[null,null,null,null,null,"BAGNOLS EN FORET"]
[null,null,null,null,null,"BAGNOLS LES BAINS"]
[null,null,null,null,null,"BAGNOLS SUR CEZE"]
[null,null,null,null,null,"BAGNOT"]
[null,null,null,null,null,"BAGUER MORVAN"]
[null,null,null,null,null,"BAGUER PICAN"]
[null,null,null,null,null,"BAHO"]
[null,null,null,null,null,"BAHUS SOUBIRAN"]
[null,null,null,null,null,"BAIE MAHAULT"]
[null,null,null,null,null,"BAIGNEAUX"]
[null,null,null,null,null,"BAIGNES"]
[null,null,null,null,null,"BAIGNES STE RADEGONDE"]
[null,null,null,null,null,"BAIGNEUX LES JUIFS"]
[null,null,null,null,null,"BAIGTS"]
[null,null,null,null,null,"BAIGTS DE BEARN"]
[null,null,null,null,null,"BAILLARGUES"]
[null,null,null,null,null,"BAILLE"]
[null,null,null,null,null,"BAILLEAU ARMENONVILLE"]
[null,null,null,null,null,"BAILLEAU L EVEQUE"]
[null,null,null,null,null,"BAILLEAU LE PIN"]
[null,null,null,null,null,"BAILLESTAVY"]
[null,null,null,null,null,"BAILLET EN FRANCE"]
[null,null,null,null,null,"BAILLEUL"]
[null,null,null,null,null,"BAILLEUL AUX CORNAILLES"]
[null,null,null,null,null,"BAILLEUL LA VALLEE"]
[null,null,null,null,null,"BAILLEUL LE SOC"]
[null,null,null,null,null,"BAILLEUL LES PERNES"]
[null,null,null,null,null,"BAILLEUL NEUVILLE"]
[null,null,null,null,null,"BAILLEUL SIR BERTHOULT"]
[null,null,null,null,null,"BAILLEUL SUR THERAIN"]
[null,null,null,null,null,"BAILLEULMONT"]
[null,null,null,null,null,"BAILLEULVAL"]
[null,null,null,null,null,"BAILLEVAL"]
[null,null,null,null,null,"BAILLIF"]
[null,null,null,null,null,"BAILLOLET"]
[null,null,null,null,null,"BAILLOU"]
[null,null,null,null,null,"BAILLY"]
[null,null,null,null,null,"BAILLY AUX FORGES"]
[null,null,null,null,null,"BAILLY EN RIVIERE"]
[null,null,null,null,null,"BAILLY LE FRANC"]
[null,null,null,null,null,"BAILLY ROMAINVILLIERS"]
[null,null,null,null,null,"BAIN DE BRETAGNE"]
[null,null,null,null,null,"BAINCTHUN"]
[null,null,null,null,null,"BAINGHEN"]
[null,null,null,null,null,"BAINS"]
[null,null,null,null,null,"BAINS LES BAINS"]
[null,null,null,null,null,"BAINS SUR OUST"]
[null,null,null,null,null,"BAINVILLE AUX MIROIRS"]
[null,null,null,null,null,"BAINVILLE AUX SAULES"]
[null,null,null,null,null,"BAINVILLE SUR MADON"]
[null,null,null,null,null,"BAIROLS"]
[null,null,null,null,null,"BAIRON ET SES ENVIRONS"]
[null,null,null,null,null,"BAIS"]
[null,null,null,null,null,"BAISIEUX"]
[null,null,null,null,null,"BAISSEY"]
[null,null,null,null,null,"BAIVES"]
[null,null,null,null,null,"BAIX"]
[null,null,null,null,null,"BAIXAS"]
[null,null,null,null,null,"BAIZIEUX"]
[null,null,null,null,null,"BAJAMONT"]
[null,null,null,null,null,"BAJONNETTE"]
[null,null,null,null,null,"BAJUS"]
[null,null,null,null,null,"BALACET"]
[null,null,null,null,null,"BALADOU"]
[null,null,null,null,null,"BALAGNY SUR THERAIN"]
[null,null,null,null,null,"BALAGUERES"]
[null,null,null,null,null,"BALAGUIER D OLT"]
[null,null,null,null,null,"BALAGUIER SUR RANCE"]
[null,null,null,null,null,"BALAISEAUX"]
[null,null,null,null,null,"BALAIVES ET BUTZ"]
[null,null,null,null,null,"BALAN"]
[null,null,null,null,null,"BALANOD"]
[null,null,null,null,null,"BALANSUN"]
[null,null,null,null,null,"BALANZAC"]
[null,null,null,null,null,"BALARUC LE VIEUX"]
[null,null,null,null,null,"BALARUC LES BAINS"]
[null,null,null,null,null,"BALATRE"]
[null,null,null,null,null,"BALAZE"]
[null,null,null,null,null,"BALAZUC"]
[null,null,null,null,null,"BALBIGNY"]
[null,null,null,null,null,"BALBINS"]
[null,null,null,null,null,"BALBRONN"]
[null,null,null,null,null,"BALDENHEIM"]
[null,null,null,null,null,"BALDERSHEIM"]
[null,null,null,null,null,"BALEIX"]
[null,null,null,null,null,"BALESTA"]
[null,null,null,null,null,"BALEYSSAGUES"]
[null,null,null,null,null,"BALGAU"]
[null,null,null,null,null,"BALHAM"]
[null,null,null,null,null,"BALIGNAC"]
[null,null,null,null,null,"BALIGNICOURT"]
[null,null,null,null,null,"BALINES"]
[null,null,null,null,null,"BALINGHEM"]
[null,null,null,null,null,"BALIRACQ MAUMUSSON"]
[null,null,null,null,null,"BALIROS"]
[null,null,null,null,null,"BALIZAC"]
[null,null,null,null,null,"BALLAINVILLIERS"]
[null,null,null,null,null,"BALLAISON"]
[null,null,null,null,null,"BALLAN MIRE"]
[null,null,null,null,null,"BALLANCOURT SUR ESSONNE"]
[null,null,null,null,null,"BALLANS"]
[null,null,null,null,null,"BALLAY"]
[null,null,null,null,null,"BALLEDENT"]
[null,null,null,null,null,"BALLEE"]
[null,null,null,null,null,"BALLERAY"]
[null,null,null,null,null,"BALLEROY SUR DROME"]
[null,null,null,null,null,"BALLERSDORF"]
[null,null,null,null,null,"BALLEVILLE"]
[null,null,null,null,null,"BALLON"]
[null,null,null,null,null,"BALLON ST MARS"]
[null,null,null,null,null,"BALLONS"]
[null,null,null,null,null,"BALLORE"]
[null,null,null,null,null,"BALLOTS"]
[null,null,null,null,null,"BALLOY"]
[null,null,null,null,null,"BALMA"]
[null,null,null,null,null,"BALNOT LA GRANGE"]
[null,null,null,null,null,"BALNOT SUR LAIGNES"]
[null,null,null,null,null,"BALOGNA"]
[null,null,null,null,null,"BALOT"]
[null,null,null,null,null,"BALSAC"]
[null,null,null,null,null,"BALSCHWILLER"]
[null,null,null,null,null,"BALSIEGES"]
[null,null,null,null,null,"BALTZENHEIM"]
[null,null,null,null,null,"BALZAC"]
[null,null,null,null,null,"BAMBECQUE"]
[null,null,null,null,null,"BAMBIDERSTROFF"]
[null,null,null,null,null,"BAN DE LAVELINE"]
[null,null,null,null,null,"BAN DE SAPT"]
[null,null,null,null,null,"BAN SUR MEURTHE CLEFCY"]
[null,null,null,null,null,"BANASSAC CANILHAC"]
[null,null,null,null,null,"BANCA"]
[null,null,null,null,null,"BANCIGNY"]
[null,null,null,null,null,"BANCOURT"]
[null,null,null,null,null,"BANDOL"]
[null,null,null,null,null,"BANDRABOUA"]
[null,null,null,null,null,"BANDRELE"]
[null,null,null,null,null,"BANEINS"]
[null,null,null,null,null,"BANEUIL"]
[null,null,null,null,null,"BANGOR"]
[null,null,null,null,null,"BANIOS"]
[null,null,null,null,null,"BANIZE"]
[null,null,null,null,null,"BANNALEC"]
[null,null,null,null,null,"BANNANS"]
[null,null,null,null,null,"BANNAY"]
[null,null,null,null,null,"BANNE"]
[null,null,null,null,null,"BANNEGON"]
[null,null,null,null,null,"BANNES"]
[null,null,null,null,null,"BANNEVILLE LA CAMPAGNE"]
[null,null,null,null,null,"BANNIERES"]
[null,null,null,null,null,"BANNONCOURT"]
[null,null,null,null,null,"BANNOST VILLEGAGNON"]
[null,null,null,null,null,"BANOGNE RECOUVRANCE"]
[null,null,null,null,null,"BANON"]
[null,null,null,null,null,"BANOS"]
[null,null,null,null,null,"BANS"]
[null,null,null,null,null,"BANSAT"]
[null,null,null,null,null,"BANTANGES"]
[null,null,null,null,null,"BANTEUX"]
[null,null,null,null,null,"BANTHELU"]
[null,null,null,null,null,"BANTHEVILLE"]
[null,null,null,null,null,"BANTIGNY"]
[null,null,null,null,null,"BANTOUZELLE"]
[null,null,null,null,null,"BANTZENHEIM"]
[null,null,null,null,null,"BANVILLARS"]
[null,null,null,null,null,"BANVILLE"]
[null,null,null,null,null,"BANVOU"]
[null,null,null,null,null,"BANYULS DELS ASPRES"]
[null,null,null,null,null,"BANYULS SUR MER"]
[null,null,null,null,null,"BAON"]
[null,null,null,null,null,"BAONS LE COMTE"]
[null,null,null,null,null,"BAPAUME"]
[null,null,null,null,null,"BAR"]
[null,null,null,null,null,"BAR LE DUC"]
[null,null,null,null,null,"BAR LES BUZANCY"]
[null,null,null,null,null,"BARBEVILLE"]
[null,null,null,null,null,"BARBIZON"]
[null,null,null,null,null,"BAREN"]
[null,null,null,null,null,"BARESIA SUR L AIN"]
[null,null,null,null,null,"BARNEVILLE LA BERTRAN"]
[null,null,null,null,null,"BARONVILLE"]
[null,null,null,null,null,"BARRE DES CEVENNES"]
[null,null,null,null,null,"BARVILLE"]
[null,null,null,null,null,"BASLIEUX LES FISMES"]
[null,null,null,null,null,"BASSEVELLE"]
[null,null,null,null,null,"BASSUSSARRY"]
[null,null,null,null,null,"BATTENHEIM"]
[null,null,null,null,null,"BAUDRECOURT"]
[null,null,null,null,null,"BAULOU"]
[null,null,null,null,null,"BAX"]
[null,null,null,null,null,"BAYON"]
[null,null,null,null,null,"BAZELAT"]
[null,null,null,null,null,"BAZINGHEN"]
[null,null,null,null,null,"BAZOUGERS"]
[null,null,null,null,null,"BEAUBEC LA ROSIERE"]
[null,null,null,null,null,"BEAUCOURT"]
[null,null,null,null,null,"BEAUFAY"]
[null,null,null,null,null,"BEAUFORT EN ANJOU"]
[null,null,null,null,null,"BEAULON"]
[null,null,null,null,null,"BEAUMESNIL"]
[null,null,null,null,null,"BEAUMONT LE ROGER"]
[null,null,null,null,null,"BEAUMONT SUR GROSNE"]
[null,null,null,null,null,"BEAURAINS"]
[null,null,null,null,null,"BEAUREPAIRE"]
[null,null,null,null,null,"BEAUVAL"]
[null,null,null,null,null,"BEAUVOIR EN ROYANS"]
[null,null,null,null,null,"BECON LES GRANITS"]
[null,null,null,null,null,"BEDOIN"]
[null,null,null,null,null,"BEHASQUE LAPISTE"]
[null,null,null,null,null,"BEIRE LE CHATEL"]
[null,null,null,null,null,"BELESTA"]
[null,null,null,null,null,"BELFAHY"]
[null,null,null,null,null,"BELLECOMBE EN BAUGES"]
[null,null,null,null,null,"BELLECOMBE TARENDOL"]
[null,null,null,null,null,"BELLEME"]
[null,null,null,null,null,"BELLEVAUX"]
[null,null,null,null,null,"BELLOCQ"]
[null,null,null,null,null,"BELMONT D AZERGUES"]
[null,null,null,null,null,"BELVAL SOUS CHATILLON"]
[null,null,null,null,null,"BENAGUES"]
[null,null,null,null,null,"BENEVENT L ABBAYE"]
[null,null,null,null,null,"BENOISEY"]
[null,null,null,null,null,"BERCHERES LES PIERRES"]
[null,null,null,null,null,"BEREZIAT"]
[null,null,null,null,null,"BERHET"]
[null,null,null,null,null,"BERLING"]
[null,null,null,null,null,"BERNAY EN PONTHIEU"]
[null,null,null,null,null,"BERNEUIL"]
[null,null,null,null,null,"BERRE L ETANG"]
[null,null,null,null,null,"BERROGAIN LARUNS"]
[null,null,null,null,null,"BERSON"]
[null,null,null,null,null,"BERTONCOURT"]
[null,null,null,null,null,"BERTRIMONT"]
[null,null,null,null,null,"BESCAT"]
[null,null,null,null,null,"BESSAMOREL"]
[null,null,null,null,null,"BESSIERES"]
[null,null,null,null,null,"BETBEZE"]
[null,null,null,null,null,"BETHON"]
[null,null,null,null,null,"BETRACQ"]
[null,null,null,null,null,"BETTLACH"]
[null,null,null,null,null,"BEULOTTE ST LAURENT"]
[null,null,null,null,null,"BEUVILLERS"]
[null,null,null,null,null,"BEVENAIS"]
[null,null,null,null,null,"BEYREDE JUMET"]
[null,null,null,null,null,"BEZENAC"]
[null,null,null,null,null,"BEZENET"]
[null,null,null,null,null,"BICHANCOURT"]
[null,null,null,null,null,"BIDACHE"]
[null,null,null,null,null,"BIESLES"]
[null,null,null,null,null,"BIEVILLE"]
[null,null,null,null,null,"BIGORNO"]
[null,null,null,null,null,"BILLY"]
[null,null,null,null,null,"BILTZHEIM"]
[null,null,null,null,null,"BIRAC SUR TREC"]
[null,null,null,null,null,"BISCHOFFSHEIM"]
[null,null,null,null,null,"BIVILLE LA BAIGNARDE"]
[null,null,null,null,null,"BIZONNES"]
[null,null,null,null,null,"BLAISY HAUT"]
[null,null,null,null,null,"BLANCHE EGLISE"]
[null,null,null,null,null,"BLANZY"]
[null,null,null,null,null,"BLARINGHEM"]
[null,null,null,null,null,"BLAY"]
[null,null,null,null,null,"BLESMES"]
[null,null,null,null,null,"BLIESBRUCK"]
[null,null,null,null,null,"BLONVILLE SUR MER"]
[null,null,null,null,null,"BOBIGNY"]
[null,null,null,null,null,"BOFFRES"]
[null,null,null,null,null,"BOIRY NOTRE DAME"]
[null,null,null,null,null,"BOIS GUILBERT"]
[null,null,null,null,null,"BOISEMONT"]
[null,null,null,null,null,"BOISSEAU"]
[null,null,null,null,null,"BOISSIA"]
[null,null,null,null,null,"BOISSY LE SEC"]
[null,null,null,null,null,"BOLQUERE"]
[null,null,null,null,null,"BONCHAMP LES LAVAL"]
[null,null,null,null,null,"BONNAT"]
[null,null,null,null,null,"BONNEFONTAINE"]
[null,null,null,null,null,"BONNEMAZON"]
[null,null,null,null,null,"BONNIEUX"]
[null,null,null,null,null,"BONO"]
[null,null,null,null,null,"BORCE"]
[null,null,null,null,null,"BORDERES SUR L ECHEZ"]
[null,null,null,null,null,"BORREZE"]
[null,null,null,null,null,"BOSNORMAND"]
[null,null,null,null,null,"BOSSET"]
[null,null,null,null,null,"BOUCAU"]
[null,null,null,null,null,"BOUCHY ST GENEST"]
[null,null,null,null,null,"BOUERE"]
[null,null,null,null,null,"BOUGES LE CHATEAU"]
[null,null,null,null,null,"BOUHY"]
[null,null,null,null,null,"BOUILLE ST PAUL"]
[null,null,null,null,null,"BOUILLY"]
[null,null,null,null,null,"BOULLAY LES TROUX"]
[null,null,null,null,null,"BOULLEVILLE"]
[null,null,null,null,null,"BOUMOURT"]
[null,null,null,null,null,"BOURBON LANCY"]
[null,null,null,null,null,"BOURDON"]
[null,null,null,null,null,"BOURG BRUCHE"]
[null,null,null,null,null,"BOURG LES VALENCE"]
[null,null,null,null,null,"BOURGHEIM"]
[null,null,null,null,null,"BOURGVALLEES"]
[null,null,null,null,null,"BOURNEAU"]
[null,null,null,null,null,"BOURSCHEID"]
[null,null,null,null,null,"BOUSBECQUE"]
[null,null,null,null,null,"BOUSSIERES SUR SAMBRE"]
[null,null,null,null,null,"BOUTENAC TOUVENT"]
[null,null,null,null,null,"BOUVINCOURT EN VERMANDOIS"]
[null,null,null,null,null,"BOUXURULLES"]
[null,null,null,null,null,"BOVEL"]
[null,null,null,null,null,"BOYNES"]
[null,null,null,null,null,"BRACHAY"]
[null,null,null,null,null,"BRAISNES SUR ARONDE"]
[null,null,null,null,null,"BRANCOURT EN LAONNOIS"]
[null,null,null,null,null,"BRANVILLE"]
[null,null,null,null,null,"BRASSAC"]
[null,null,null,null,null,"BRAY SUR SOMME"]
[null,null,null,null,null,"BREAUTE"]
[null,null,null,null,null,"BREHAIN"]
[null,null,null,null,null,"BREMES"]
[null,null,null,null,null,"BRENOD"]
[null,null,null,null,null,"BRESSOLLES"]
[null,null,null,null,null,"BRETHEL"]
[null,null,null,null,null,"BRETTEVILLE L ORGUEILLEUSE"]
[null,null,null,null,null,"BREUIL LE VERT"]
[null,null,null,null,null,"BREVAL"]
[null,null,null,null,null,"BREVANS"]
[null,null,null,null,null,"BRICONVILLE"]
[null,null,null,null,null,"BRICQUEVILLE"]
[null,null,null,null,null,"BRIEY"]
[null,null,null,null,null,"BRIGNANCOURT"]
[null,null,null,null,null,"BRILLON"]
[null,null,null,null,null,"BRIOUDE"]
[null,null,null,null,null,"BRISSY HAMEGICOURT"]
[null,null,null,null,null,"BROISSIA"]
[null,null,null,null,null,"BROSSAC"]
[null,null,null,null,null,"BROUSSE LE CHATEAU"]
[null,null,null,null,null,"BROUVELIEURES"]
[null,null,null,null,null,"BRUGAIROLLES"]
[null,null,null,null,null,"BRUGUIERES"]
[null,null,null,null,null,"BRUTELLES"]
[null,null,null,null,null,"BRUYERES SUR FERE"]
[null,null,null,null,null,"BUCAMPS"]
[null,null,null,null,null,"BUEIL EN TOURAINE"]
[null,null,null,null,null,"BUGNIERES"]
[null,null,null,null,null,"BUISSONCOURT"]
[null,null,null,null,null,"BULLION"]
[null,null,null,null,null,"BURDIGNIN"]
[null,null,null,null,null,"BURGY"]
[null,null,null,null,null,"BURZY"]
[null,null,null,null,null,"BUSSEROTTE ET MONTENAILLE"]
[null,null,null,null,null,"BUSSY ALBIEUX"]
[null,null,null,null,null,"BUTOT"]
[null,null,null,null,null,"BUYSSCHEURE"]
[null,null,null,null,null,"CABANAC CAZAUX"]
[null,null,null,null,null,"CABRIS"]
[null,null,null,null,null,"CADEN"]
[null,null,null,null,null,"CAHAGNES"]
[null,null,null,null,null,"CAILHAU"]
[null,null,null,null,null,"CAILLEVILLE"]
[null,null,null,null,null,"CALLAC"]
[null,null,null,null,null,"CALMEILLES"]
[null,null,null,null,null,"CAMBES"]
[null,null,null,null,null,"CAMBLIGNEUL"]
[null,null,null,null,null,"CAMJAC"]
[null,null,null,null,null,"CAMPAGNAC"]
[null,null,null,null,null,"CAMPHIN EN CAREMBAULT"]
[null,null,null,null,null,"CAMPNEUSEVILLE"]
[null,null,null,null,null,"CANAPLES"]
[null,null,null,null,null,"CANDE SUR BEUVRON"]
[null,null,null,null,null,"CANEHAN"]
[null,null,null,null,null,"CANTARON"]
[null,null,null,null,null,"CANTELOUP"]
[null,null,null,null,null,"CAPIAN"]
[null,null,null,null,null,"CAPOULET ET JUNAC"]
[null,null,null,null,null,"CARBAY"]
[null,null,null,null,null,"CARDESSE"]
[null,null,null,null,null,"CARISEY"]
[null,null,null,null,null,"CARNET"]
[null,null,null,null,null,"CARQUEIRANNE"]
[null,null,null,null,null,"CARTELEGUE"]
[null,null,null,null,null,"CASENEUVE"]
[null,null,null,null,null,"CASSENEUIL"]
[null,null,null,null,null,"CASTEIL"]
[null,null,null,null,null,"CASTELLAR"]
[null,null,null,null,null,"CASTELNAU DE MEDOC"]
[null,null,null,null,null,"CASTELNAU TURSAN"]
[null,null,null,null,null,"CASTERETS"]
[null,null,null,null,null,"CASTETS EN DORTHE"]
[null,null,null,null,null,"CASTIRLA"]
[null,null,null,null,null,"CASTRES"]
[null,null,null,null,null,"CAUCHY A LA TOUR"]
[null,null,null,null,null,"CAUDRY"]
[null,null,null,null,null,"CAUROY"]
[null,null,null,null,null,"CAUSSINIOJOULS"]
[null,null,null,null,null,"CAVIGNY"]
[null,null,null,null,null,"CAYRIECH"]
[null,null,null,null,null,"CAZAUX VILLECOMTAL"]
[null,null,null,null,null,"CAZILLAC"]
[null,null,null,null,null,"CELLE LEVESCAULT"]
[null,null,null,null,null,"CELOUX"]
[null,null,null,null,null,"CENSY"]
[null,null,null,null,null,"CERCOUX"]
[null,null,null,null,null,"CERISY BULEUX"]
[null,null,null,null,null,"CERNON"]
[null,null,null,null,null,"CERTINES"]
[null,null,null,null,null,"CERVIERES"]
[null,null,null,null,null,"CETTE EYGUN"]
[null,null,null,null,null,"CEYRAT"]
[null,null,null,null,null,"CHABANAIS"]
[null,null,null,null,null,"CHADRON"]
[null,null,null,null,null,"CHAILLAND"]
[null,null,null,null,null,"CHAIX"]
[null,null,null,null,null,"CHALANDRAY"]
[null,null,null,null,null,"CHALLERANGE"]
[null,null,null,null,null,"CHALMAZEL JEANSAGNIERE"]
[null,null,null,null,null,"CHAMARANDE"]
[null,null,null,null,null,"CHAMBERAUD"]
[null,null,null,null,null,"CHAMBONAS"]
[null,null,null,null,null,"CHAMBORS"]
[null,null,null,null,null,"CHAMOUILLE"]
[null,null,null,null,null,"CHAMP D OISEAU"]
[null,null,null,null,null,"CHAMPAGNAC LA PRUNE"]
[null,null,null,null,null,"CHAMPAGNOLE"]
[null,null,null,null,null,"CHAMPCEVRAIS"]
[null,null,null,null,null,"CHAMPENOUX"]
[null,null,null,null,null,"CHAMPIGNEULLE"]
[null,null,null,null,null,"CHAMPILLET"]
[null,null,null,null,null,"CHAMPOLEON"]
[null,null,null,null,null,"CHAMPS SUR TARENTAINE MARCHAL"]
[null,null,null,null,null,"CHAMVRES"]
[null,null,null,null,null,"CHANCIA"]
[null,null,null,null,null,"CHANONAT"]
[null,null,null,null,null,"CHANTEMERLE LES BLES"]
[null,null,null,null,null,"CHANTONNAY"]
[null,null,null,null,null,"CHAPELLE DES BOIS"]
[null,null,null,null,null,"CHAPTELAT"]
[null,null,null,null,null,"CHARDENY"]
[null,null,null,null,null,"CHARENTON DU CHER"]
[null,null,null,null,null,"CHAREY"]
[null,null,null,null,null,"CHARMES SUR L HERBASSE"]
[null,null,null,null,null,"CHARMONT"]
[null,null,null,null,null,"CHARQUEMONT"]
[null,null,null,null,null,"CHARREY SUR SEINE"]
[null,null,null,null,null,"CHASSAGNE"]
[null,null,null,null,null,"CHASSEGUEY"]
[null,null,null,null,null,"CHASSILLE"]
[null,null,null,null,null,"CHASTREIX"]
[null,null,null,null,null,"CHATEAU BREHAIN"]
[null,null,null,null,null,"CHATEAU THEBAUD"]
[null,null,null,null,null,"CHATEAUBLEAU"]
[null,null,null,null,null,"CHATEAUNEUF LES MARTIGUES"]
[null,null,null,null,null,"CHATEAUNEUF SUR ISERE"]
[null,null,null,null,null,"CHATELAIS"]
[null,null,null,null,null,"CHATELAY"]
[null,null,null,null,null,"CHATENAY MALABRY"]
[null,null,null,null,null,"CHATILLON EN VENDELAIS"]
[null,null,null,null,null,"CHATILLON SUR LISON"]
[null,null,null,null,null,"CHATTE"]
[null,null,null,null,null,"CHAUDEYRAC"]
[null,null,null,null,null,"CHAUGEY"]
[null,null,null,null,null,"CHAUMONT"]
[null,null,null,null,null,"CHAUNY"]
[null,null,null,null,null,"CHAUVIGNE"]
[null,null,null,null,null,"CHAVAGNES"]
[null,null,null,null,null,"CHAVANNES"]
[null,null,null,null,null,"CHAVONNE"]
[null,null,null,null,null,"CHAZELLES"]
[null,null,null,null,null,"CHELAN"]
[null,null,null,null,null,"CHEMENOT"]
[null,null,null,null,null,"CHEMILLE SUR DEME"]
[null,null,null,null,null,"CHENELETTE"]
[null,null,null,null,null,"CHENICOURT"]
[null,null,null,null,null,"CHEPPY"]
[null,null,null,null,null,"CHERENCE LE ROUSSEL"]
[null,null,null,null,null,"CHERVES CHATELARS"]
[null,null,null,null,null,"CHESNOIS AUBONCOURT"]
[null,null,null,null,null,"CHEVENON"]
[null,null,null,null,null,"CHEVILLE"]
[null,null,null,null,null,"CHEVRU"]
[null,null,null,null,null,"CHEZELLES"]
[null,null,null,null,null,"CHIEULLES"]
[null,null,null,null,null,"CHINON"]
[null,null,null,null,null,"CHISSERIA"]
[null,null,null,null,null,"CHOISEL"]
[null,null,null,null,null,"CHOOZ"]
[null,null,null,null,null,"CHOQUEUSE LES BENARDS"]
[null,null,null,null,null,"CHOUZELOT"]
[null,null,null,null,null,"CIER DE LUCHON"]
[null,null,null,null,null,"CINAIS"]
[null,null,null,null,null,"CIREY LES PONTAILLER"]
[null,null,null,null,null,"CISTERNES LA FORET"]
[null,null,null,null,null,"CIZANCOURT"]
[null,null,null,null,null,"CLAIRFAYTS"]
[null,null,null,null,null,"CLARAFOND ARCINE"]
[null,null,null,null,null,"CLAVE"]
[null,null,null,null,null,"CLELLES"]
[null,null,null,null,null,"CLEREY SUR BRENON"]
[null,null,null,null,null,"CLERMONT DESSOUS"]
[null,null,null,null,null,"CLEUVILLE"]
[null,null,null,null,null,"CLIMBACH"]
[null,null,null,null,null,"CLUX VILLENEUVE"]
[null,null,null,null,null,"COATREVEN"]
[null,null,null,null,null,"COESMES"]
[null,null,null,null,null,"COHENNOZ"]
[null,null,null,null,null,"COINCOURT"]
[null,null,null,null,null,"COLLANDRES QUINCARNON"]
[null,null,null,null,null,"COLLINE BEAUMONT"]
[null,null,null,null,null,"COLMEY"]
[null,null,null,null,null,"COLOMBIER"]
[null,null,null,null,null,"COLOMIEU"]
[null,null,null,null,null,"COMBEROUGER"]
[null,null,null,null,null,"COMBRAND"]
[null,null,null,null,null,"COMMEAUX"]
[null,null,null,null,null,"COMPAINVILLE"]
[null,null,null,null,null,"CONCEVREUX"]
[null,null,null,null,null,"CONCRESSAULT"]
[null,null,null,null,null,"CONDE STE LIBIAIRE"]
[null,null,null,null,null,"CONDEON"]
[null,null,null,null,null,"CONDILLAC"]
[null,null,null,null,null,"CONILHAC DE LA MONTAGNE"]
[null,null,null,null,null,"CONNANTRAY VAUREFROY"]
[null,null,null,null,null,"CONTEST"]
[null,null,null,null,null,"CONTILLY"]
[null,null,null,null,null,"CORBARIEU"]
[null,null,null,null,null,"CORBELIN"]
[null,null,null,null,null,"CORBIERES"]
[null,null,null,null,null,"CORDON"]
[null,null,null,null,null,"CORGNAC SUR L ISLE"]
[null,null,null,null,null,"CORMOZ"]
[null,null,null,null,null,"CORNEBARRIEU"]
[null,null,null,null,null,"CORPEAU"]
[null,null,null,null,null,"CORSAINT"]
[null,null,null,null,null,"CORSEUL"]
[null,null,null,null,null,"COSNAC"]
[null,null,null,null,null,"COUBERT"]
[null,null,null,null,null,"COUCY LE CHATEAU AUFFRIQUE"]
[null,null,null,null,null,"COUEILLES"]
[null,null,null,null,null,"COULAINES"]
[null,null,null,null,null,"COULMIER LE SEC"]
[null,null,null,null,null,"COULONGE"]
[null,null,null,null,null,"COUPELLE NEUVE"]
[null,null,null,null,null,"COURANT"]
[null,null,null,null,null,"COURCAY"]
[null,null,null,null,null,"COURCELLES SAPICOURT"]
[null,null,null,null,null,"COURCERAC"]
[null,null,null,null,null,"COURDIMANCHE SUR ESSONNE"]
[null,null,null,null,null,"COURJEONNET"]
[null,null,null,null,null,"COURNONSEC"]
[null,null,null,null,null,"COURRIS"]
[null,null,null,null,null,"COURSAC"]
[null,null,null,null,null,"COURTENOT"]
[null,null,null,null,null,"COURTHIEZY"]
[null,null,null,null,null,"COUSSAC BONNEVAL"]
[null,null,null,null,null,"COUSTOUGES"]
[null,null,null,null,null,"COUVILLE"]
[null,null,null,null,null,"COUZIERS"]
[null,null,null,null,null,"CRAMANT"]
[null,null,null,null,null,"CRANTENOY"]
[null,null,null,null,null,"CRAVENT"]
[null,null,null,null,null,"CRECY EN PONTHIEU"]
[null,null,null,null,null,"CRENNES SUR FRAUBEE"]
[null,null,null,null,null,"CRESPIERES"]
[null,null,null,null,null,"CREST VOLAND"]
[null,null,null,null,null,"CREVECOEUR EN AUGE"]
[null,null,null,null,null,"CREZANCY EN SANCERRE"]
[null,null,null,null,null,"CREZIERES"]
[null,null,null,null,null,"CRIQUIERS"]
[null,null,null,null,null,"CROIGNON"]
[null,null,null,null,null,"CROIX MOLIGNEAUX"]
[null,null,null,null,null,"CROS DE MONTVERT"]
[null,null,null,null,null,"CROUTELLE"]
[null,null,null,null,null,"CROZES HERMITAGE"]
[null,null,null,null,null,"CRUZILLE"]
[null,null,null,null,null,"CUBNEZAIS"]
[null,null,null,null,null,"CUGNY"]
[null,null,null,null,null,"CUIRY HOUSSE"]
[null,null,null,null,null,"CULMONT"]
[null,null,null,null,null,"CUNCY LES VARZY"]
[null,null,null,null,null,"CURIERES"]
[null,null,null,null,null,"CURTIL SOUS BUFFIERES"]
[null,null,null,null,null,"CUSY"]
[null,null,null,null,null,"CUVE"]
[null,null,null,null,null,"CUXAC D AUDE"]
[null,null,null,null,null,"DAIGNY"]
[null,null,null,null,null,"DALOU"]
[null,null,null,null,null,"DAMGAN"]
[null,null,null,null,null,"DAMMARTIN MARPAIN"]
[null,null,null,null,null,"DAMPIERRE SOUS BOUHY"]
[null,null,null,null,null,"DAMPVALLEY LES COLOMBE"]
[null,null,null,null,null,"DANGY"]
[null,null,null,null,null,"DAOURS"]
[null,null,null,null,null,"DARNEY AUX CHENES"]
[null,null,null,null,null,"DAUX"]
[null,null,null,null,null,"DECINES CHARPIEU"]
[null,null,null,null,null,"DEMANGE AUX EAUX"]
[null,null,null,null,null,"DENEUILLE LES MINES"]
[null,null,null,null,null,"DERCY"]
[null,null,null,null,null,"DESNES"]
[null,null,null,null,null,"DESTORD"]
[null,null,null,null,null,"DEZIZE LES MARANGES"]
[null,null,null,null,null,"DIANCEY"]
[null,null,null,null,null,"DIEUDONNE"]
[null,null,null,null,null,"DIEUZE"]
[null,null,null,null,null,"DINAN"]
[null,null,null,null,null,"DINTEVILLE"]
[null,null,null,null,null,"DIZIMIEU"]
[null,null,null,null,null,"DOHEM"]
[null,null,null,null,null,"DOMAIZE"]
[null,null,null,null,null,"DOMAZAN"]
[null,null,null,null,null,"DOMFAING"]
[null,null,null,null,null,"DOMINOIS"]
[null,null,null,null,null,"DOMME"]
[null,null,null,null,null,"DOMPAIRE"]
[null,null,null,null,null,"DOMPIERRE SUR BESBRE"]
[null,null,null,null,null,"DOMREMY LANDEVILLE"]
[null,null,null,null,null,"DONGES"]
[null,null,null,null,null,"DONZERE"]
[null,null,null,null,null,"DORNES"]
[null,null,null,null,null,"DOUCHY LES MINES"]
[null,null,null,null,null,"DOULEVANT LE CHATEAU"]
[null,null,null,null,null,"DOURS"]
[null,null,null,null,null,"DOUZILLAC"]
[null,null,null,null,null,"DRAILLANT"]
[null,null,null,null,null,"DRINCHAM"]
[null,null,null,null,null,"DROUPT ST BASLE"]
[null,null,null,null,null,"DUAULT"]
[null,null,null,null,null,"DUINGT"]
[null,null,null,null,null,"DURAN"]
[null,null,null,null,null,"DURDAT LAREQUILLE"]
[null,null,null,null,null,"DURLINSDORF"]
[null,null,null,null,null,"EBBLINGHEM"]
[null,null,null,null,null,"EBREON"]
[null,null,null,null,null,"ECHENANS"]
[null,null,null,null,null,"ECHEVRONNE"]
[null,null,null,null,null,"ECLY"]
[null,null,null,null,null,"ECORPAIN"]
[null,null,null,null,null,"ECRILLE"]
[null,null,null,null,null,"ECUILLE"]
[null,null,null,null,null,"EFFIAT"]
[null,null,null,null,null,"EGUILLES"]
[null,null,null,null,null,"ELBACH"]
[null,null,null,null,null,"ELSENHEIM"]
[null,null,null,null,null,"EMERCHICOURT"]
[null,null,null,null,null,"EMIEVILLE"]
[null,null,null,null,null,"ENGWILLER"]
[null,null,null,null,null,"ENNEMAIN"]
[null,null,null,null,null,"ENTRAMMES"]
[null,null,null,null,null,"ENTREVERNES"]
[null,null,null,null,null,"EPARGNES"]
[null,null,null,null,null,"EPERLECQUES"]
[null,null,null,null,null,"EPINAL"]
[null,null,null,null,null,"EPINONVILLE"]
[null,null,null,null,null,"EPREVILLE PRES LE NEUBOURG"]
[null,null,null,null,null,"ERAGNY"]
[null,null,null,null,null,"EREAC"]
[null,null,null,null,null,"ERLON"]
[null,null,null,null,null,"ERQUERY"]
[null,null,null,null,null,"ERSTEIN"]
[null,null,null,null,null,"ESCAUDAIN"]
[null,null,null,null,null,"ESCHBOURG"]
[null,null,null,null,null,"ESCORPAIN"]
[null,null,null,null,null,"ESCOULIS"]
[null,null,null,null,null,"ESCRENNES"]
[null,null,null,null,null,"ESPALEM"]
[null,null,null,null,null,"ESPAUBOURG"]
[null,null,null,null,null,"ESPINASSES"]
[null,null,null,null,null,"ESPRELS"]
[null,null,null,null,null,"ESSERTENNE ET CECEY"]
[null,null,null,null,null,"ESSON"]
[null,null,null,null,null,"ESTENOS"]
[null,null,null,null,null,"ESTISSAC"]
[null,null,null,null,null,"ESTREE CAUCHY"]
[null,null,null,null,null,"ETABLE"]
[null,null,null,null,null,"ETANG SUR ARROUX"]
[null,null,null,null,null,"ETERNOZ"]
[null,null,null,null,null,"ETORMAY"]
[null,null,null,null,null,"ETREHAM"]
[null,null,null,null,null,"ETRELLES"]
[null,null,null,null,null,"ETZLING"]
[null,null,null,null,null,"EUILLY ET LOMBUT"]
[null,null,null,null,null,"EVOSGES"]
[null,null,null,null,null,"EVREUX"]
[null,null,null,null,null,"EXMES"]
[null,null,null,null,null,"EYMOUTIERS"]
[null,null,null,null,null,"EYSUS"]
[null,null,null,null,null,"FAIN LES MONTBARD"]
[null,null,null,null,null,"FAKARAVA"]
[null,null,null,null,null,"FAREBERSVILLER"]
[null,null,null,null,null,"FARGUES"]
[null,null,null,null,null,"FAUILLET"]
[null,null,null,null,null,"FAUSSERGUES"]
[null,null,null,null,null,"FAY"]
[null,null,null,null,null,"FAY LES ETANGS"]
[null,null,null,null,null,"FAYET RONAYE"]
[null,null,null,null,null,"FEINGS"]
[null,null,null,null,null,"FELINES TERMENES"]
[null,null,null,null,null,"FENOUILLET DU RAZES"]
[null,null,null,null,null,"FERNOEL"]
[null,null,null,null,null,"FERRIERES"]
[null,null,null,null,null,"FERRIERES SUR SICHON"]
[null,null,null,null,null,"FESTIGNY"]
[null,null,null,null,null,"FEURS"]
[null,null,null,null,null,"FIENNES"]
[null,null,null,null,null,"FILLOLS"]
[null,null,null,null,null,"FITZ JAMES"]
[null,null,null,null,null,"FLAMETS FRETILS"]
[null,null,null,null,null,"FLAUJAGUES"]
[null,null,null,null,null,"FLECHIN"]
[null,null,null,null,null,"FLESSELLES"]
[null,null,null,null,null,"FLEURAT"]
[null,null,null,null,null,"FLEURY EN BIERE"]
[null,null,null,null,null,"FLIREY"]
[null,null,null,null,null,"FLOIRAC"]
[null,null,null,null,null,"FOCICCHIA"]
[null,null,null,null,null,"FOLCARDE"]
[null,null,null,null,null,"FONGUEUSEMARE"]
[null,null,null,null,null,"FONTAINE AU PIRE"]
[null,null,null,null,null,"FONTAINE LAVAGANNE"]
[null,null,null,null,null,"FONTAINE LES CLERVAL"]
[null,null,null,null,null,"FONTAINEBLEAU"]
[null,null,null,null,null,"FONTAN"]
[null,null,null,null,null,"FONTENAY EN PARISIS"]
[null,null,null,null,null,"FONTENAY SUR EURE"]
[null,null,null,null,null,"FONTENAY SUR VEGRE"]
[null,null,null,null,null,"FONTOY"]
[null,null,null,null,null,"FONTRABIOUSE"]
[null,null,null,null,null,"FOREST EN CAMBRESIS"]
[null,null,null,null,null,"FORMIGUERES"]
[null,null,null,null,null,"FOSSEMAGNE"]
[null,null,null,null,null,"FOUCHERES AUX BOIS"]
[null,null,null,null,null,"FOUILLOUSE"]
[null,null,null,null,null,"FOUQUEREUIL"]
[null,null,null,null,null,"FOURMAGNAC"]
[null,null,null,null,null,"FOURNIVAL"]
[null,null,null,null,null,"FRAIGNOT ET VESVROTTE"]
[null,null,null,null,null,"FRAISSINES"]
[null,null,null,null,null,"FRANCHEVILLE"]
[null,null,null,null,null,"FRANCOURT"]
[null,null,null,null,null,"FRAROZ"]
[null,null,null,null,null,"FRAVAUX"]
[null,null,null,null,null,"FREJAIROLLES"]
[null,null,null,null,null,"FREMEREVILLE SOUS LES COTES"]
[null,null,null,null,null,"FRENELLE LA PETITE"]
[null,null,null,null,null,"FRESNEAUX MONTCHEVREUIL"]
[null,null,null,null,null,"FRESNES SUR MARNE"]
[null,null,null,null,null,"FRESNOY LE CHATEAU"]
[null,null,null,null,null,"FRETIGNY"]
[null,null,null,null,null,"FREVIN CAPELLE"]
[null,null,null,null,null,"FRISE"]
[null,null,null,null,null,"FROIDETERRE"]
[null,null,null,null,null,"FRONTENAS"]
[null,null,null,null,null,"FROUARD"]
[null,null,null,null,null,"FULLEREN"]
[null,null,null,null,null,"FYE"]
[null,null,null,null,null,"GAGEAC ET ROUILLAC"]
[null,null,null,null,null,"GAILLON SUR MONTCIENT"]
[null,null,null,null,null,"GALGAN"]
[null,null,null,null,null,"GALIAX"]
[null,null,null,null,null,"GAPREE"]
[null,null,null,null,null,"GARANCIERES EN BEAUCE"]
[null,null,null,null,null,"GARIGNY"]
[null,null,null,null,null,"GARLIN"]
[null,null,null,null,null,"GARRIS"]
[null,null,null,null,null,"GAUCIEL"]
[null,null,null,null,null,"GAURE"]
[null,null,null,null,null,"GAZERAN"]
[null,null,null,null,null,"GEISPOLSHEIM"]
[null,null,null,null,null,"GEMOZAC"]
[null,null,null,null,null,"GENDREY"]
[null,null,null,null,null,"GENNES IVERGNY"]
[null,null,null,null,null,"GENNEVILLE"]
[null,null,null,null,null,"GERBECOURT"]
[null,null,null,null,null,"GERCY"]
[null,null,null,null,null,"GERMAINE"]
[null,null,null,null,null,"GERMONT"]
[null,null,null,null,null,"GERVILLE"]
[null,null,null,null,null,"GEVILLE"]
[null,null,null,null,null,"GHISONI"]
[null,null,null,null,null,"GIEZ"]
[null,null,null,null,null,"GIGOUZAC"]
[null,null,null,null,null,"GIMBREDE"]
[null,null,null,null,null,"GINOLES"]
[null,null,null,null,null,"GIRIVILLER"]
[null,null,null,null,null,"GISORS"]
[null,null,null,null,null,"GIVRAND"]
[null,null,null,null,null,"GLAIGNES"]
[null,null,null,null,null,"GLENIC"]
[null,null,null,null,null,"GOAS"]
[null,null,null,null,null,"GOLINHAC"]
[null,null,null,null,null,"GOMMENEC H"]
[null,null,null,null,null,"GONCOURT"]
[null,null,null,null,null,"GONNEVILLE SUR SCIE"]
[null,null,null,null,null,"GORDES"]
[null,null,null,null,null,"GOUDELANCOURT LES PIERREPONT"]
[null,null,null,null,null,"GOUEX"]
[null,null,null,null,null,"GOURDON"]
[null,null,null,null,null,"GOURNAY"]
[null,null,null,null,null,"GOUVERNES"]
[null,null,null,null,null,"GOUY EN ARTOIS"]
[null,null,null,null,null,"GRAFFIGNY CHEMIN"]
[null,null,null,null,null,"GRAISSESSAC"]
[null,null,null,null,null,"GRAMMOND"]
[null,null,null,null,null,"GRAND SANTI"]
[null,null,null,null,null,"GRANDCHAMP LE CHATEAU"]
[null,null,null,null,null,"GRANDVILLE"]
[null,null,null,null,null,"GRANDVILLIERS"]
[null,null,null,null,null,"GRANGUES"]
[null,null,null,null,null,"GRAULHET"]
[null,null,null,null,null,"GRAYSSAS"]
[null,null,null,null,null,"GRENADE SUR L ADOUR"]
[null,null,null,null,null,"GRESSEY"]
[null,null,null,null,null,"GREZAC"]
[null,null,null,null,null,"GRIGNOLS"]
[null,null,null,null,null,"GRINDORFF BIZING"]
[null,null,null,null,null,"GRONARD"]
[null,null,null,null,null,"GROSMAGNY"]
[null,null,null,null,null,"GRUGNY"]
[null,null,null,null,null,"GUCHEN"]
[null,null,null,null,null,"GUECELARD"]
[null,null,null,null,null,"GUERET"]
[null,null,null,null,null,"GUERNY"]
[null,null,null,null,null,"GUESNAIN"]
[null,null,null,null,null,"GUIGNES"]
[null,null,null,null,null,"GUILLAC"]
[null,null,null,null,null,"GUINES"]
[null,null,null,null,null,"GUIRY EN VEXIN"]
[null,null,null,null,null,"GUMOND"]
[null,null,null,null,null,"GURGY"]
[null,null,null,null,null,"GY LES NONAINS"]
[null,null,null,null,null,"HACQUEVILLE"]
[null,null,null,null,null,"HAIGNEVILLE"]
[null,null,null,null,null,"HALLIGNICOURT"]
[null,null,null,null,null,"HAMBYE"]
[null,null,null,null,null,"HANCHES"]
[null,null,null,null,null,"HANS"]
[null,null,null,null,null,"HARCANVILLE"]
[null,null,null,null,null,"HAREVILLE"]
[null,null,null,null,null,"HARGARTEN AUX MINES"]
[null,null,null,null,null,"HATTENCOURT"]
[null,null,null,null,null,"HATTMATT"]
[null,null,null,null,null,"HAULCHIN"]
[null,null,null,null,null,"HAUTAGET"]
[null,null,null,null,null,"HAUTEFAGE"]
[null,null,null,null,null,"HAUTEVILLE SUR FIER"]
[null,null,null,null,null,"HAUTTEVILLE BOCAGE"]
[null,null,null,null,null,"HECHES"]
[null,null,null,null,null,"HEGENHEIM"]
[null,null,null,null,null,"HELLEVILLE"]
[null,null,null,null,null,"HEMEVILLERS"]
[null,null,null,null,null,"HENOUVILLE"]
[null,null,null,null,null,"HERBECOURT"]
[null,null,null,null,null,"HERIMENIL"]
[null,null,null,null,null,"HERMENT"]
[null,null,null,null,null,"HERMILLON"]
[null,null,null,null,null,"HERPONT"]
[null,null,null,null,null,"HESDIGNEUL LES BOULOGNE"]
[null,null,null,null,null,"HETTENSCHLAG"]
[null,null,null,null,null,"HEURTEAUVILLE"]
[null,null,null,null,null,"HIESVILLE"]
[null,null,null,null,null,"HIREL"]
[null,null,null,null,null,"HODENC EN BRAY"]
[null,null,null,null,null,"HOLTZHEIM"]
[null,null,null,null,null,"HONDOUVILLE"]
[null,null,null,null,null,"HOSTA"]
[null,null,null,null,null,"HOUDETOT"]
[null,null,null,null,null,"HOULLE"]
[null,null,null,null,null,"HOUVILLE LA BRANCHE"]
[null,null,null,null,null,"HUDIMESNIL"]
[null,null,null,null,null,"HUMBECOURT"]
[null,null,null,null,null,"HUNINGUE"]
[null,null,null,null,null,"HUPPY"]
[null,null,null,null,null,"IDAUX MENDY"]
[null,null,null,null,null,"IGE"]
[null,null,null,null,null,"ILHEU"]
[null,null,null,null,null,"ILLIAT"]
[null,null,null,null,null,"INDRE"]
[null,null,null,null,null,"INGRANDES DE TOURAINE"]
[null,null,null,null,null,"IRANCY"]
[null,null,null,null,null,"IS EN BASSIGNY"]
[null,null,null,null,null,"ISIGNY SUR MER"]
[null,null,null,null,null,"ISSENDOLUS"]
[null,null,null,null,null,"ISSIGEAC"]
[null,null,null,null,null,"IVRY LA BATAILLE"]
[null,null,null,null,null,"IZAOURT"]
[null,null,null,null,null,"JAINVILLOTTE"]
[null,null,null,null,null,"JALIGNY SUR BESBRE"]
[null,null,null,null,null,"JANCIGNY"]
[null,null,null,null,null,"JARNAGES"]
[null,null,null,null,null,"JASSERON"]
[null,null,null,null,null,"JAUSIERS"]
[null,null,null,null,null,"JAZENNES"]
[null,null,null,null,null,"JEUGNY"]
[null,null,null,null,null,"JOIGNY SUR MEUSE"]
[null,null,null,null,null,"JONQUERY"]
[null,null,null,null,null,"JOSNES"]
[null,null,null,null,null,"JOUE LES TOURS"]
[null,null,null,null,null,"JOURNET"]
[null,null,null,null,null,"JOUY SUR MORIN"]
[null,null,null,null,null,"JUGON LES LACS COMMUNE NOUVELLE"]
[null,null,null,null,null,"JULLIANGES"]
[null,null,null,null,null,"JUMEL"]
[null,null,null,null,null,"JUNAY"]
[null,null,null,null,null,"JUTIGNY"]
[null,null,null,null,null,"JUVIGNIES"]
[null,null,null,null,null,"KANFEN"]
[null,null,null,null,null,"KEMPLICH"]
[null,null,null,null,null,"KESKASTEL"]
[null,null,null,null,null,"KIRRBERG"]
[null,null,null,null,null,"KOUROU"]
[null,null,null,null,null,"L ABERGEMENT DE VAREY"]
[null,null,null,null,null,"L ESCALE"]
[null,null,null,null,null,"L HERMENAULT"]
[null,null,null,null,null,"L HOTELLERIE DE FLEE"]
[null,null,null,null,null,"L ISLE DE NOE"]
[null,null,null,null,null,"LA BALME LES GROTTES"]
[null,null,null,null,null,"LA BASTIDE DE SEROU"]
[null,null,null,null,null,"LA BAUCHE"]
[null,null,null,null,null,"LA BAULE ESCOUBLAC"]
[null,null,null,null,null,"LA BELLIERE"]
[null,null,null,null,null,"LA BOISSIERE DE MONTAIGU"]
[null,null,null,null,null,"LA BOULAYE"]
[null,null,null,null,null,"LA BROUSSE"]
[null,null,null,null,null,"LA CADIERE D AZUR"]
[null,null,null,null,null,"LA CELETTE"]
[null,null,null,null,null,"LA CHABANNE"]
[null,null,null,null,null,"LA CHAPELAUDE"]
[null,null,null,null,null,"LA CHAPELLE BICHE"]
[null,null,null,null,null,"LA CHAPELLE D ANGILLON"]
[null,null,null,null,null,"LA CHAPELLE EN SERVAL"]
[null,null,null,null,null,"LA CHAPELLE FORTIN"]
[null,null,null,null,null,"LA CHAPELLE MONTLIGEON"]
[null,null,null,null,null,"LA CHAPELLE NEUVE"]
[null,null,null,null,null,"LA CHAPELLE ST LUC"]
[null,null,null,null,null,"LA CHAPELLE ST OUEN"]
[null,null,null,null,null,"LA CHAPELLE SUR ERDRE"]
[null,null,null,null,null,"LA CHARMEE"]
[null,null,null,null,null,"LA CHAUSSEE"]
[null,null,null,null,null,"LA CLAYETTE"]
[null,null,null,null,null,"LA CONDAMINE CHATELARD"]
[null,null,null,null,null,"LA COUTURE BOUSSEY"]
[null,null,null,null,null,"LA CROIX COMTESSE"]
[null,null,null,null,null,"LA DIGNE D AMONT"]
[null,null,null,null,null,"LA FAVIERE"]
[null,null,null,null,null,"LA FERTE BEAUHARNAIS"]
[null,null,null,null,null,"LA FEUILLADE"]
[null,null,null,null,null,"LA FOREST LANDERNEAU"]
[null,null,null,null,null,"LA FRASNEE"]
[null,null,null,null,null,"LA GARNACHE"]
[null,null,null,null,null,"LA GOULAFRIERE"]
[null,null,null,null,null,"LA GREE ST LAURENT"]
[null,null,null,null,null,"LA GRIMAUDIERE"]
[null,null,null,null,null,"LA HAYE LE COMTE"]
[null,null,null,null,null,"LA HERLIERE"]
[null,null,null,null,null,"LA LANDE PATRY"]
[null,null,null,null,null,"LA LAUPIE"]
[null,null,null,null,null,"LA MADELEINE SUR LOING"]
[null,null,null,null,null,"LA MALMAISON"]
[null,null,null,null,null,"LA MAZIERE AUX BONS HOMMES"]
[null,null,null,null,null,"LA MOTTE D AVEILLANS"]
[null,null,null,null,null,"LA MURE ARGENS"]
[null,null,null,null,null,"LA NEUVEVILLE SOUS CHATENOIS"]
[null,null,null,null,null,"LA NEUVILLE VAULT"]
[null,null,null,null,null,"LA NOUAILLE"]
[null,null,null,null,null,"LA PLAGNE TARENTAISE"]
[null,null,null,null,null,"LA PLANCHE"]
[null,null,null,null,null,"LA PRENESSAYE"]
[null,null,null,null,null,"LA REOLE"]
[null,null,null,null,null,"LA ROBINE SUR GALABRE"]
[null,null,null,null,null,"LA ROCHE RIGAULT"]
[null,null,null,null,null,"LA ROE"]
[null,null,null,null,null,"LA ROQUETTE SUR SIAGNE"]
[null,null,null,null,null,"LA SALVETAT PEYRALES"]
[null,null,null,null,null,"LA SEGALASSIERE"]
[null,null,null,null,null,"LA SOUTERRAINE"]
[null,null,null,null,null,"LA TIEULE"]
[null,null,null,null,null,"LA TREMBLADE"]
[null,null,null,null,null,"LA TRUCHERE"]
[null,null,null,null,null,"LA VENTROUZE"]
[null,null,null,null,null,"LA VESPIERE FRIARDEL"]
[null,null,null,null,null,"LA VILLENEUVE AU CHATELOT"]
[null,null,null,null,null,"LA VOIVRE"]
[null,null,null,null,null,"LABARDE"]
[null,null,null,null,null,"LABASTIDE ESPARBAIRENQUE"]
[null,null,null,null,null,"LABASTIDE ST PIERRE"]
[null,null,null,null,null,"LABESSERETTE"]
[null,null,null,null,null,"LABOISSIERE EN THELLE"]
[null,null,null,null,null,"LACADEE"]
[null,null,null,null,null,"LACAPELLE PINET"]
[null,null,null,null,null,"LACHAPELLE AUZAC"]
[null,null,null,null,null,"LACHAUSSEE DU BOIS D ECU"]
[null,null,null,null,null,"LACROIX ST OUEN"]
[null,null,null,null,null,"LADINHAC"]
[null,null,null,null,null,"LAFFREY"]
[null,null,null,null,null,"LAGARDE HACHAN"]
[null,null,null,null,null,"LAGNY LE SEC"]
[null,null,null,null,null,"LAGUEPIE"]
[null,null,null,null,null,"LAHOUSSOYE"]
[null,null,null,null,null,"LAIFOUR"]
[null,null,null,null,null,"LAIRE"]
[null,null,null,null,null,"LALACELLE"]
[null,null,null,null,null,"LALLEU"]
[null,null,null,null,null,"LAMAGUERE"]
[null,null,null,null,null,"LAMAZIERE HAUTE"]
[null,null,null,null,null,"LAMELOUZE"]
[null,null,null,null,null,"LAMOTHE FENELON"]
[null,null,null,null,null,"LAMPAUL PLOUARZEL"]
[null,null,null,null,null,"LANDAUL"]
[null,null,null,null,null,"LANDELLES ET COUPIGNY"]
[null,null,null,null,null,"LANDOS"]
[null,null,null,null,null,"LANDRESSE"]
[null,null,null,null,null,"LANEUVEVILLE LES LORQUIN"]
[null,null,null,null,null,"LANGAST"]
[null,null,null,null,null,"LANGUEVOISIN QUIQUERY"]
[null,null,null,null,null,"LANILDUT"]
[null,null,null,null,null,"LANNE EN BARETOUS"]
[null,null,null,null,null,"LANOUX"]
[null,null,null,null,null,"LANSAC"]
[null,null,null,null,null,"LANTON"]
[null,null,null,null,null,"LANZAC"]
[null,null,null,null,null,"LAPEYROUSE MORNAY"]
[null,null,null,null,null,"LARAGNE MONTEGLIN"]
[null,null,null,null,null,"LAREOLE"]
[null,null,null,null,null,"LARNAUD"]
[null,null,null,null,null,"LARRA"]
[null,null,null,null,null,"LARROQUE SUR L OSSE"]
[null,null,null,null,null,"LASLADES"]
[null,null,null,null,null,"LASSY"]
[null,null,null,null,null,"LATOUR EN WOEVRE"]
[null,null,null,null,null,"LAUJUZAN"]
[null,null,null,null,null,"LAURAET"]
[null,null,null,null,null,"LAURENAN"]
[null,null,null,null,null,"LAUWIN PLANQUE"]
[null,null,null,null,null,"LAVALLEE"]
[null,null,null,null,null,"LAVANS QUINGEY"]
[null,null,null,null,null,"LAVELINE DEVANT BRUYERES"]
[null,null,null,null,null,"LAVERGNE"]
[null,null,null,null,null,"LAVEYRUNE"]
[null,null,null,null,null,"LAVOUX"]
[null,null,null,null,null,"LAYMONT"]
[null,null,null,null,null,"LE BELIEU"]
[null,null,null,null,null,"LE BEZ"]
[null,null,null,null,null,"LE BOUCHET"]
[null,null,null,null,null,"LE BOULLAY LES DEUX EGLISES"]
[null,null,null,null,null,"LE BREUIL EN BESSIN"]
[null,null,null,null,null,"LE BROUILH MONBERT"]
[null,null,null,null,null,"LE CAILAR"]
[null,null,null,null,null,"LE CERCUEIL"]
[null,null,null,null,null,"LE CHANGE"]
[null,null,null,null,null,"LE CHAUTAY"]
[null,null,null,null,null,"LE CLOITRE PLEYBEN"]
[null,null,null,null,null,"LE CROCQ"]
[null,null,null,null,null,"LE DONZEIL"]
[null,null,null,null,null,"LE FAYEL"]
[null,null,null,null,null,"LE FRAYSSE"]
[null,null,null,null,null,"LE GAULT SOIGNY"]
[null,null,null,null,null,"LE GRAND SERRE"]
[null,null,null,null,null,"LE GUISLAIN"]
[null,null,null,null,null,"LE JARDIN"]
[null,null,null,null,null,"LE LAVANDOU"]
[null,null,null,null,null,"LE LUOT"]
[null,null,null,null,null,"LE MARIGOT"]
[null,null,null,null,null,"LE MAS D AZIL"]
[null,null,null,null,null,"LE MENOUX"]
[null,null,null,null,null,"LE MESNIL AMAND"]
[null,null,null,null,null,"LE MESNIL LIEUBRAY"]
[null,null,null,null,null,"LE MESNIL SIMON"]
[null,null,null,null,null,"LE MINIHIC SUR RANCE"]
[null,null,null,null,null,"LE MOUSTOIR"]
[null,null,null,null,null,"LE NOUVION EN THIERACHE"]
[null,null,null,null,null,"LE PERRAY EN YVELINES"]
[null,null,null,null,null,"LE PETIT MERCEY"]
[null,null,null,null,null,"LE PLESSIER ROZAINVILLERS"]
[null,null,null,null,null,"LE PLESSIS HEBERT"]
[null,null,null,null,null,"LE POIRE SUR VIE"]
[null,null,null,null,null,"LE PORTEL"]
[null,null,null,null,null,"LE POULIGUEN"]
[null,null,null,null,null,"LE RETAIL"]
[null,null,null,null,null,"LE REVEST LES EAUX"]
[null,null,null,null,null,"LE RUSSEY"]
[null,null,null,null,null,"LE SOUICH"]
[null,null,null,null,null,"LE TEILLEUL"]
[null,null,null,null,null,"LE THOLY"]
[null,null,null,null,null,"LE TOUQUET PARIS PLAGE"]
[null,null,null,null,null,"LE TREPORT"]
[null,null,null,null,null,"LE VAL ST PERE"]
[null,null,null,null,null,"LE VERDON SUR MER"]
[null,null,null,null,null,"LE VIEUX MARCHE"]
[null,null,null,null,null,"LE VIVIER SUR MER"]
[null,null,null,null,null,"LECUSSAN"]
[null,null,null,null,null,"LEE"]
[null,null,null,null,null,"LEIGNEUX"]
[null,null,null,null,null,"LEMBEYE"]
[null,null,null,null,null,"LENNON"]
[null,null,null,null,null,"LENTILLERES"]
[null,null,null,null,null,"LEON"]
[null,null,null,null,null,"LERY"]
[null,null,null,null,null,"LES ALBRES"]
[null,null,null,null,null,"LES AUTHIEUX"]
[null,null,null,null,null,"LES BAROCHES"]
[null,null,null,null,null,"LES BREVIAIRES"]
[null,null,null,null,null,"LES CHAMPS GERAUX"]
[null,null,null,null,null,"LES COTES DE CORPS"]
[null,null,null,null,null,"LES EPARGES"]
[null,null,null,null,null,"LES FINS"]
[null,null,null,null,null,"LES GRANGES GONTARDES"]
[null,null,null,null,null,"LES HOGUES"]
[null,null,null,null,null,"LES LEVES ET THOUMEYRAGUES"]
[null,null,null,null,null,"LES MARTYS"]
[null,null,null,null,null,"LES MOLUNES"]
[null,null,null,null,null,"LES MONTILS"]
[null,null,null,null,null,"LES PETITES LOGES"]
[null,null,null,null,null,"LES PINEAUX"]
[null,null,null,null,null,"LES ROSIERS SUR LOIRE"]
[null,null,null,null,null,"LES SALCES"]
[null,null,null,null,null,"LES TERNES"]
[null,null,null,null,null,"LES VASTRES"]
[null,null,null,null,null,"LES VILLETTES"]
[null,null,null,null,null,"LESCURRY"]
[null,null,null,null,null,"LESMONT"]
[null,null,null,null,null,"LESSEUX"]
[null,null,null,null,null,"LESTIOU"]
[null,null,null,null,null,"LEURVILLE"]
[null,null,null,null,null,"LEVAL"]
[null,null,null,null,null,"LEYMEN"]
[null,null,null,null,null,"LEYRAT"]
[null,null,null,null,null,"LEZENNES"]
[null,null,null,null,null,"LHUIS"]
[null,null,null,null,null,"LIBERMONT"]
[null,null,null,null,null,"LIEHON"]
[null,null,null,null,null,"LIESSE NOTRE DAME"]
[null,null,null,null,null,"LIEZ"]
[null,null,null,null,null,"LIGNAREIX"]
[null,null,null,null,null,"LIGNON"]
[null,null,null,null,null,"LIGUGE"]
[null,null,null,null,null,"LIME"]
[null,null,null,null,null,"LIMONS"]
[null,null,null,null,null,"LINDEBEUF"]
[null,null,null,null,null,"LINTHES"]
[null,null,null,null,null,"LIPOSTHEY"]
[null,null,null,null,null,"LISLE SUR TARN"]
[null,null,null,null,null,"LIVAIE"]
[null,null,null,null,null,"LIVINHAC LE HAUT"]
[null,null,null,null,null,"LIVRY GARGAN"]
[null,null,null,null,null,"LOCHE SUR INDROIS"]
[null,null,null,null,null,"LOCMARIA BERRIEN"]
[null,null,null,null,null,"LOGE FOUGEREUSE"]
[null,null,null,null,null,"LOHEAC"]
[null,null,null,null,null,"LOISY SUR MARNE"]
[null,null,null,null,null,"LOMBREUIL"]
[null,null,null,null,null,"LONGCHAUMOIS"]
[null,null,null,null,null,"LONGES"]
[null,null,null,null,null,"LONGPONT SUR ORGE"]
[null,null,null,null,null,"LONGUEIL STE MARIE"]
[null,null,null,null,null,"LONLAY L ABBAYE"]
[null,null,null,null,null,"LOPERHET"]
[null,null,null,null,null,"LOR"]
[null,null,null,null,null,"LORREZ LE BOCAGE PREAUX"]
[null,null,null,null,null,"LORRY LES METZ"]
[null,null,null,null,null,"LOUARGAT"]
[null,null,null,null,null,"LOUBRESSAC"]
[null,null,null,null,null,"LOUESTAULT"]
[null,null,null,null,null,"LOUPERSHOUSE"]
[null,null,null,null,null,"LOURENTIES"]
[null,null,null,null,null,"LOUSSOUS DEBAT"]
[null,null,null,null,null,"LOUVIGNE"]
[null,null,null,null,null,"LOUZAC ST ANDRE"]
[null,null,null,null,null,"LUBINE"]
[null,null,null,null,null,"LUCAY LE LIBRE"]
[null,null,null,null,null,"LUCHY"]
[null,null,null,null,null,"LUDES"]
[null,null,null,null,null,"LUGY"]
[null,null,null,null,null,"LUMBRES"]
[null,null,null,null,null,"LUPSAULT"]
[null,null,null,null,null,"LUPSTEIN"]
[null,null,null,null,null,"LUSSAC"]
[null,null,null,null,null,"LUSSAT"]
[null,null,null,null,null,"LUYERES"]
[null,null,null,null,null,"LUZILLE"]
[null,null,null,null,null,"LYONS LA FORET"]
[null,null,null,null,null,"MACEY"]
[null,null,null,null,null,"MACOURIA"]
[null,null,null,null,null,"MADRIAT"]
[null,null,null,null,null,"MAGNE"]
[null,null,null,null,null,"MAGNY CHATELARD"]
[null,null,null,null,null,"MAGNY LES VILLERS"]
[null,null,null,null,null,"MAIGNAUT TAUZIA"]
[null,null,null,null,null,"MAILLEY ET CHAZELOT"]
[null,null,null,null,null,"MAINTENAY"]
[null,null,null,null,null,"MAISNIL LES RUITZ"]
[null,null,null,null,null,"MAISON DES CHAMPS"]
[null,null,null,null,null,"MAISSEMY"]
[null,null,null,null,null,"MAIZEROY"]
[null,null,null,null,null,"MALAUCENE"]
[null,null,null,null,null,"MALAUSSENE"]
[null,null,null,null,null,"MALBUISSON"]
[null,null,null,null,null,"MALLERET"]
[null,null,null,null,null,"MALONS ET ELZE"]
[null,null,null,null,null,"MAMIROLLE"]
[null,null,null,null,null,"MANCIET"]
[null,null,null,null,null,"MANENT MONTANE"]
[null,null,null,null,null,"MANICAMP"]
[null,null,null,null,null,"MANSAC"]
[null,null,null,null,null,"MANSLE"]
[null,null,null,null,null,"MARANDEUIL"]
[null,null,null,null,null,"MARANVILLE"]
[null,null,null,null,null,"MARBEVILLE"]
[null,null,null,null,null,"MARCHAMP"]
[null,null,null,null,null,"MARCHESIEUX"]
[null,null,null,null,null,"MARCILLE LA VILLE"]
[null,null,null,null,null,"MARCILLY LE HAYER"]
[null,null,null,null,null,"MARCONNELLE"]
[null,null,null,null,null,"MAREIL EN FRANCE"]
[null,null,null,null,null,"MARESTMONTIERS"]
[null,null,null,null,null,"MAREY LES FUSSEY"]
[null,null,null,null,null,"MARGOUET MEYMES"]
[null,null,null,null,null,"MARIGNAC LASPEYRES"]
[null,null,null,null,null,"MARIGNY MARMANDE"]
[null,null,null,null,null,"MARIZY ST MARD"]
[null,null,null,null,null,"MARLY SUR ARROUX"]
[null,null,null,null,null,"MARNAY SUR SEINE"]
[null,null,null,null,null,"MAROLS"]
[null,null,null,null,null,"MARQUEIN"]
[null,null,null,null,null,"MARQUILLIES"]
[null,null,null,null,null,"MARSANNAY LE BOIS"]
[null,null,null,null,null,"MARSEILLE 02"]
[null,null,null,null,null,"MARSSAC SUR TARN"]
[null,null,null,null,null,"MARTHEMONT"]
[null,null,null,null,null,"MARTINPUICH"]
[null,null,null,null,null,"MARTRES SUR MORGE"]
[null,null,null,null,null,"MAS GRENIER"]
[null,null,null,null,null,"MASLIVES"]
[null,null,null,null,null,"MASSIAC"]
[null,null,null,null,null,"MASSOINS"]
[null,null,null,null,null,"MASTAING"]
[null,null,null,null,null,"MAUCOR"]
[null,null,null,null,null,"MAUGES SUR LOIRE"]
[null,null,null,null,null,"MAUREGARD"]
[null,null,null,null,null,"MAUREILLAS LAS ILLAS"]
[null,null,null,null,null,"MAURRIN"]
[null,null,null,null,null,"MAUVEZIN DE STE CROIX"]
[null,null,null,null,null,"MAXEY SUR VAISE"]
[null,null,null,null,null,"MAYRES"]
[null,null,null,null,null,"MAZERES"]
[null,null,null,null,null,"MAZIERES DE TOURAINE"]
[null,null,null,null,null,"MEASNES"]
[null,null,null,null,null,"MEDIERE"]
[null,null,null,null,null,"MEHERS"]
[null,null,null,null,null,"MEILLY SUR ROUVRES"]
[null,null,null,null,null,"MELICOCQ"]
[null,null,null,null,null,"MELUN"]
[null,null,null,null,null,"MENAUCOURT"]
[null,null,null,null,null,"MENETREOL SOUS SANCERRE"]
[null,null,null,null,null,"MENGLON"]
[null,null,null,null,null,"MENIL FROGER"]
[null,null,null,null,null,"MENOU"]
[null,null,null,null,null,"MENTHONNEX SOUS CLERMONT"]
[null,null,null,null,null,"MERCOEUR"]
[null,null,null,null,null,"MERDRIGNAC"]
[null,null,null,null,null,"MERIEL"]
[null,null,null,null,null,"MERINDOL"]
[null,null,null,null,null,"MERPINS"]
[null,null,null,null,null,"MERTRUD"]
[null,null,null,null,null,"MERY SUR SEINE"]
[null,null,null,null,null,"MESLAY LE VIDAME"]
[null,null,null,null,null,"MESNIL PANNEVILLE"]
[null,null,null,null,null,"MESPLEDE"]
[null,null,null,null,null,"MESSIMY SUR SAONE"]
[null,null,null,null,null,"METZ EN COUTURE"]
[null,null,null,null,null,"MEUNG SUR LOIRE"]
[null,null,null,null,null,"MEURCHIN"]
[null,null,null,null,null,"MEYRIGNAC L EGLISE"]
[null,null,null,null,null,"MEYS"]
[null,null,null,null,null,"MEZERVILLE"]
[null,null,null,null,null,"MEZY MOULINS"]
[null,null,null,null,null,"MIERMAIGNE"]
[null,null,null,null,null,"MIGRON"]
[null,null,null,null,null,"MILLAC"]
[null,null,null,null,null,"MIMIZAN"]
[null,null,null,null,null,"MINVERSHEIM"]
[null,null,null,null,null,"MIRANDOL BOURGNOUNAC"]
[null,null,null,null,null,"MIREFLEURS"]
[null,null,null,null,null,"MISSILLAC"]
[null,null,null,null,null,"MITTOIS"]
[null,null,null,null,null,"MOELAN SUR MER"]
[null,null,null,null,null,"MOISDON LA RIVIERE"]
[null,null,null,null,null,"MOISSANNES"]
[null,null,null,null,null,"MOITRON"]
[null,null,null,null,null,"MOLIETS ET MAA"]
[null,null,null,null,null,"MOLLEGES"]
[null,null,null,null,null,"MOMY"]
[null,null,null,null,null,"MONCALE"]
[null,null,null,null,null,"MONCEL SUR SEILLE"]
[null,null,null,null,null,"MONCHY CAYEUX"]
[null,null,null,null,null,"MONDAVEZAN"]
[null,null,null,null,null,"MONDRAGON"]
[null,null,null,null,null,"MONETEAU"]
[null,null,null,null,null,"MONISTROL SUR LOIRE"]
[null,null,null,null,null,"MONNETAY"]
[null,null,null,null,null,"MONSEGUR"]
[null,null,null,null,null,"MONT DAUPHIN"]
[null,null,null,null,null,"MONT LOUIS"]
[null,null,null,null,null,"MONT ST PERE"]
[null,null,null,null,null,"MONT SUR MEURTHE"]
[null,null,null,null,null,"MONTAGNY LES BEAUNE"]
[null,null,null,null,null,"MONTAGNY SUR GROSNE"]
[null,null,null,null,null,"MONTAMAT"]
[null,null,null,null,null,"MONTANEL"]
[null,null,null,null,null,"MONTAUDIN"]
[null,null,null,null,null,"MONTAUVILLE"]
[null,null,null,null,null,"MONTBERTHAULT"]
[null,null,null,null,null,"MONTBOUCHER"]
[null,null,null,null,null,"MONTBRAND"]
[null,null,null,null,null,"MONTCEL"]
[null,null,null,null,null,"MONTCHALONS"]
[null,null,null,null,null,"MONTDARDIER"]
[null,null,null,null,null,"MONTDOUMERC"]
[null,null,null,null,null,"MONTENESCOURT"]
[null,null,null,null,null,"MONTENEUF"]
[null,null,null,null,null,"MONTESPAN"]
[null,null,null,null,null,"MONTEYNARD"]
[null,null,null,null,null,"MONTFERRIER"]
[null,null,null,null,null,"MONTFRIN"]
[null,null,null,null,null,"MONTGENOST"]
[null,null,null,null,null,"MONTGRU ST HILAIRE"]
[null,null,null,null,null,"MONTHION"]
[null,null,null,null,null,"MONTIES"]
[null,null,null,null,null,"MONTIGNY EN CAMBRESIS"]
[null,null,null,null,null,"MONTIGNY LES MONTS"]
[null,null,null,null,null,"MONTIGNY SUR CRECY"]
[null,null,null,null,null,"MONTJAY"]
[null,null,null,null,null,"MONTLANDON"]
[null,null,null,null,null,"MONTMACQ"]
[null,null,null,null,null,"MONTMARTIN SUR MER"]
[null,null,null,null,null,"MONTMELAS ST SORLIN"]
[null,null,null,null,null,"MONTOIR DE BRETAGNE"]
[null,null,null,null,null,"MONTORD"]
[null,null,null,null,null,"MONTPITOL"]
[null,null,null,null,null,"MONTREAL"]
[null,null,null,null,null,"MONTREUIL JUIGNE"]
[null,null,null,null,null,"MONTREUIL SUR EPTE"]
[null,null,null,null,null,"MONTRIOND"]
[null,null,null,null,null,"MONTROUVEAU"]
[null,null,null,null,null,"MONTSERET"]
[null,null,null,null,null,"MONTUSCLAT"]
[null,null,null,null,null,"MOOSCH"]
[null,null,null,null,null,"MORAS"]
[null,null,null,null,null,"MOREUIL"]
[null,null,null,null,null,"MORIEZ"]
[null,null,null,null,null,"MORLET"]
[null,null,null,null,null,"MORLEY"]
[null,null,null,null,null,"MORNE A L EAU"]
[null,null,null,null,null,"MORTAGNE AU PERCHE"]
[null,null,null,null,null,"MORTROUX"]
[null,null,null,null,null,"MORZINE"]
[null,null,null,null,null,"MOUANS SARTOUX"]
[null,null,null,null,null,"MOUFLAINES"]
[null,null,null,null,null,"MOULEYDIER"]
[null,null,null,null,null,"MOULINET"]
[null,null,null,null,null,"MOUREDE"]
[null,null,null,null,null,"MOURMELON LE GRAND"]
[null,null,null,null,null,"MOUSSY LE NEUF"]
[null,null,null,null,null,"MOUSTIERS STE MARIE"]
[null,null,null,null,null,"MOUTROT"]
[null,null,null,null,null,"MOUZEIL"]
[null,null,null,null,null,"MOZE SUR LOUET"]
[null,null,null,null,null,"MUESPACH LE HAUT"]
[null,null,null,null,null,"MULCEY"]
[null,null,null,null,null,"MURAT LE QUAIRE"]
[null,null,null,null,null,"MURLES"]
[null,null,null,null,null,"MUSSEY SUR MARNE"]
[null,null,null,null,null,"MUZILLAC"]
[null,null,null,null,null,"NAILLAT"]
[null,null,null,null,null,"NAMPCELLES LA COUR"]
[null,null,null,null,null,"NANCY"]
[null,null,null,null,null,"NANTES"]
[null,null,null,null,null,"NANTILLOIS"]
[null,null,null,null,null,"NARP"]
[null,null,null,null,null,"NAUSSANNES"]
[null,null,null,null,null,"NEAUFLES ST MARTIN"]
[null,null,null,null,null,"NEDONCHEL"]
[null,null,null,null,null,"NERCILLAC"]
[null,null,null,null,null,"NERVIEUX"]
[null,null,null,null,null,"NESCUS"]
[null,null,null,null,null,"NEUFCHATEAU"]
[null,null,null,null,null,"NEUFCHELLES"]
[null,null,null,null,null,"NEUILLY EN DUN"]
[null,null,null,null,null,"NEUILLY LE BISSON"]
[null,null,null,null,null,"NEUVECELLE"]
[null,null,null,null,null,"NEUVICQ"]
[null,null,null,null,null,"NEUVILLE FERRIERES"]
[null,null,null,null,null,"NEUVILLE ST AMAND"]
[null,null,null,null,null,"NEUVILLY EN ARGONNE"]
[null,null,null,null,null,"NEUVY EN BEAUCE"]
[null,null,null,null,null,"NEZEL"]
[null,null,null,null,null,"NIBELLE"]
[null,null,null,null,null,"NIERGNIES"]
[null,null,null,null,null,"NIEUL"]
[null,null,null,null,null,"NIMES"]
[null,null,null,null,null,"NOAILHAC"]
[null,null,null,null,null,"NOEL CERNEUX"]
[null,null,null,null,null,"NOGENT SUR LOIR"]
[null,null,null,null,null,"NOIDANS LE FERROUX"]
[null,null,null,null,null,"NOIRONTE"]
[null,null,null,null,null,"NOMAIN"]
[null,null,null,null,null,"NONGLARD"]
[null,null,null,null,null,"NOROLLES"]
[null,null,null,null,null,"NORT SUR ERDRE"]
[null,null,null,null,null,"NOTRE DAME DE L ISLE"]
[null,null,null,null,null,"NOTRE DAME DU BEC"]
[null,null,null,null,null,"NOUILLY"]
[null,null,null,null,null,"NOUVION LE COMTE"]
[null,null,null,null,null,"NOVION PORCIEN"]
[null,null,null,null,null,"NOYANT"]
[null,null,null,null,null,"NOYELLES EN CHAUSSEE"]
[null,null,null,null,null,"NUAILLE"]
[null,null,null,null,null,"NUILLE LE JALAIS"]
[null,null,null,null,null,"OBERHASLACH"]
[null,null,null,null,null,"OBERMORSCHWILLER"]
[null,null,null,null,null,"OCHES"]
[null,null,null,null,null,"ODEREN"]
[null,null,null,null,null,"OFFWILLER"]
[null,null,null,null,null,"OHERVILLE"]
[null,null,null,null,null,"OISSEAU LE PETIT"]
[null,null,null,null,null,"OLEMPS"]
[null,null,null,null,null,"OLLOIX"]
[null,null,null,null,null,"OMERVILLE"]
[null,null,null,null,null,"OMPS"]
[null,null,null,null,null,"ONLAY"]
[null,null,null,null,null,"OPTEVOZ"]
[null,null,null,null,null,"ORAAS"]
[null,null,null,null,null,"ORBEY"]
[null,null,null,null,null,"ORCINES"]
[null,null,null,null,null,"ORGEIX"]
[null,null,null,null,null,"ORICOURT"]
[null,null,null,null,null,"ORIVAL"]
[null,null,null,null,null,"ORMERSVILLER"]
[null,null,null,null,null,"ORNY"]
[null,null,null,null,null,"ORRY LA VILLE"]
[null,null,null,null,null,"ORVAL"]
[null,null,null,null,null,"OS MARSILLON"]
[null,null,null,null,null,"OSSERAIN RIVAREYTE"]
[null,null,null,null,null,"OSTHOUSE"]
[null,null,null,null,null,"OUDAN"]
[null,null,null,null,null,"OUEILLOUX"]
[null,null,null,null,null,"OULON"]
[null,null,null,null,null,"OURDIS COTDOUSSAN"]
[null,null,null,null,null,"OURTON"]
[null,null,null,null,null,"OUVILLE L ABBAYE"]
[null,null,null,null,null,"OVANCHES"]
[null,null,null,null,null,"OZILLAC"]
[null,null,null,null,null,"PACY SUR EURE"]
[null,null,null,null,null,"PAILHEROLS"]
[null,null,null,null,null,"PAISY COSDON"]
[null,null,null,null,null,"PALAVAS LES FLOTS"]
[null,null,null,null,null,"PALLUD"]
[null,null,null,null,null,"PANDRIGNES"]
[null,null,null,null,null,"PAPARA"]
[null,null,null,null,null,"PARCAY SUR VIENNE"]
[null,null,null,null,null,"PARENTIGNAT"]
[null,null,null,null,null,"PARGUES"]
[null,null,null,null,null,"PARIS 06"]
[null,null,null,null,null,"PARIS 09"]
[null,null,null,null,null,"PAROY SUR SAULX"]
[null,null,null,null,null,"PARS LES CHAVANGES"]
[null,null,null,null,null,"PASSONFONTAINE"]
[null,null,null,null,null,"PASTRICCIOLA"]
[null,null,null,null,null,"PAVANT"]
[null,null,null,null,null,"PAYRE"]
[null,null,null,null,null,"PAZY"]
[null,null,null,null,null,"PEIGNEY"]
[null,null,null,null,null,"PELISSANNE"]
[null,null,null,null,null,"PENNE D AGENAIS"]
[null,null,null,null,null,"PENTA DI CASINCA"]
[null,null,null,null,null,"PERIERS SUR LE DAN"]
[null,null,null,null,null,"PERIGNY"]
[null,null,null,null,null,"PERPIGNAN"]
[null,null,null,null,null,"PERREUIL"]
[null,null,null,null,null,"PERRIGNY SUR L OGNON"]
[null,null,null,null,null,"PERTUIS"]
[null,null,null,null,null,"PESSINES"]
[null,null,null,null,null,"PETIT TENQUIN"]
[null,null,null,null,null,"PEUMERIT"]
[null,null,null,null,null,"PEYRAT LA NONIERE"]
[null,null,null,null,null,"PEYRET ST ANDRE"]
[null,null,null,null,null,"PEYROLLES EN PROVENCE"]
[null,null,null,null,null,"PEZENAS"]
[null,null,null,null,null,"PHILIPPSBOURG"]
[null,null,null,null,null,"PIE D OREZZA"]
[null,null,null,null,null,"PIERLAS"]
[null,null,null,null,null,"PIERREFITTE ES BOIS"]
[null,null,null,null,null,"PIERRELAYE"]
[null,null,null,null,null,"PIETROSELLA"]
[null,null,null,null,null,"PIGNY"]
[null,null,null,null,null,"PILLON"]
[null,null,null,null,null,"PIOBETTA"]
[null,null,null,null,null,"PIQUECOS"]
[null,null,null,null,null,"PISSY"]
[null,null,null,null,null,"PLAINE"]
[null,null,null,null,null,"PLAINVILLE"]
[null,null,null,null,null,"PLANFOY"]
[null,null,null,null,null,"PLASNES"]
[null,null,null,null,null,"PLELAUFF"]
[null,null,null,null,null,"PLESIDY"]
[null,null,null,null,null,"PLEUMEUR BODOU"]
[null,null,null,null,null,"PLIBOUX"]
[null,null,null,null,null,"PLOMBIERES LES DIJON"]
[null,null,null,null,null,"PLOUARZEL"]
[null,null,null,null,null,"PLOUBALAY"]
[null,null,null,null,null,"PLOUGUIEL"]
[null,null,null,null,null,"PLOUGUIN"]
[null,null,null,null,null,"PLOUNEVEZ MOEDEC"]
[null,null,null,null,null,"PLOUZEVEDE"]
[null,null,null,null,null,"PLUMONT"]
[null,null,null,null,null,"POEY DE LESCAR"]
[null,null,null,null,null,"POILLY LEZ GIEN"]
[null,null,null,null,null,"POINTIS INARD"]
[null,null,null,null,null,"POIX"]
[null,null,null,null,null,"POLISOT"]
[null,null,null,null,null,"POMMEREVAL"]
[null,null,null,null,null,"POMMIERS MOULONS"]
[null,null,null,null,null,"PONCIN"]
[null,null,null,null,null,"PONSON DEBAT POUTS"]
[null,null,null,null,null,"PONT DE METZ"]
[null,null,null,null,null,"PONT DU CASSE"]
[null,null,null,null,null,"PONT ST VINCENT"]
[null,null,null,null,null,"PONT SUR VANNE"]
[null,null,null,null,null,"PONTAUBAULT"]
[null,null,null,null,null,"PONTHEVRARD"]
[null,null,null,null,null,"PONTONX SUR L ADOUR"]
[null,null,null,null,null,"PORDIC"]
[null,null,null,null,null,"PORT DES BARQUES"]
[null,null,null,null,null,"PORTA"]
[null,null,null,null,null,"POSES"]
[null,null,null,null,null,"POUCHARRAMET"]
[null,null,null,null,null,"POUILLEY FRANCAIS"]
[null,null,null,null,null,"POUJOLS"]
[null,null,null,null,null,"POULX"]
[null,null,null,null,null,"POURSAY GARNAUD"]
[null,null,null,null,null,"POUY ROQUELAURE"]
[null,null,null,null,null,"POYANNE"]
[null,null,null,null,null,"PRADES SUR VERNAZOBRE"]
[null,null,null,null,null,"PRADIERS"]
[null,null,null,null,null,"PRAZ SUR ARLY"]
[null,null,null,null,null,"PREAUX"]
[null,null,null,null,null,"PREIGNEY"]
[null,null,null,null,null,"PREMESQUES"]
[null,null,null,null,null,"PRENY"]
[null,null,null,null,null,"PRESSY"]
[null,null,null,null,null,"PREURES"]
[null,null,null,null,null,"PRIGNAC ET MARCAMPS"]
[null,null,null,null,null,"PRINQUIAU"]
[null,null,null,null,null,"PROPRIANO"]
[null,null,null,null,null,"PROVENCHERE"]
[null,null,null,null,null,"PRUNELLI DI CASACCONI"]
[null,null,null,null,null,"PRUNO"]
[null,null,null,null,null,"PUICHERIC"]
[null,null,null,null,null,"PUILLY ET CHARBEAUX"]
[null,null,null,null,null,"PUISEUX PONTOISE"]
[null,null,null,null,null,"PULLIGNY"]
[null,null,null,null,null,"PUSIGNAN"]
[null,null,null,null,null,"PUY SANIERES"]
[null,null,null,null,null,"PUYDANIEL"]
[null,null,null,null,null,"PUYNORMAND"]
[null,null,null,null,null,"PYS"]
[null,null,null,null,null,"QUELAINES ST GAULT"]
[null,null,null,null,null,"QUERRE"]
[null,null,null,null,null,"QUEUDES"]
[null,null,null,null,null,"QUIBOU"]
[null,null,null,null,null,"QUINCAMPOIX FLEUZY"]
[null,null,null,null,null,"QUINCY VOISINS"]
[null,null,null,null,null,"QUIVIERES"]
[null,null,null,null,null,"RACQUINGHEM"]
[null,null,null,null,null,"RAILLIMONT"]
[null,null,null,null,null,"RAISSAC"]
[null,null,null,null,null,"RAIZEUX"]
[null,null,null,null,null,"RANCENAY"]
[null,null,null,null,null,"RANCON"]
[null,null,null,null,null,"RANTZWILLER"]
[null,null,null,null,null,"RAPA"]
[null,null,null,null,null,"RAUWILLER"]
[null,null,null,null,null,"RAVILLE SUR SANON"]
[null,null,null,null,null,"REALVILLE"]
[null,null,null,null,null,"REBERGUES"]
[null,null,null,null,null,"RECOLOGNE"]
[null,null,null,null,null,"RECURT"]
[null,null,null,null,null,"REGNEY"]
[null,null,null,null,null,"REICHSHOFFEN"]
[null,null,null,null,null,"REIGNAC SUR INDRE"]
[null,null,null,null,null,"REMECOURT"]
[null,null,null,null,null,"REMELFING"]
[null,null,null,null,null,"REMILLY LES POTHEES"]
[null,null,null,null,null,"REMUZAT"]
[null,null,null,null,null,"RENNEMOULIN"]
[null,null,null,null,null,"REPARSAC"]
[null,null,null,null,null,"RETHEL"]
[null,null,null,null,null,"REUGNY"]
[null,null,null,null,null,"REVEST DES BROUSSES"]
[null,null,null,null,null,"REYERSVILLER"]
[null,null,null,null,null,"RIA SIRACH"]
[null,null,null,null,null,"RIBECOURT DRESLINCOURT"]
[null,null,null,null,null,"RICHERENCHES"]
[null,null,null,null,null,"RIENCOURT"]
[null,null,null,null,null,"RIGNAC"]
[null,null,null,null,null,"RILLANS"]
[null,null,null,null,null,"RIMAUCOURT"]
[null,null,null,null,null,"RIMOGNE"]
[null,null,null,null,null,"RIQUEWIHR"]
[null,null,null,null,null,"RIVAS"]
[null,null,null,null,null,"RIVIERES"]
[null,null,null,null,null,"ROBECOURT"]
[null,null,null,null,null,"ROCHE ST SECRET BECONNE"]
[null,null,null,null,null,"ROCHEFORT MONTAGNE"]
[null,null,null,null,null,"ROCHETAILLEE"]
[null,null,null,null,null,"ROCQUEMONT"]
[null,null,null,null,null,"ROEZE SUR SARTHE"]
[null,null,null,null,null,"ROGNY"]
[null,null,null,null,null,"ROISSARD"]
[null,null,null,null,null,"ROMAGNE SOUS MONTFAUCON"]
[null,null,null,null,null,"ROMAZY"]
[null,null,null,null,null,"ROMILLY"]
[null,null,null,null,null,"RONCHEROLLES SUR LE VIVIER"]
[null,null,null,null,null,"RONCHOIS"]
[null,null,null,null,null,"ROQUEFIXADE"]
[null,null,null,null,null,"ROQUEFORT DES CORBIERES"]
[null,null,null,null,null,"ROSCANVEL"]
[null,null,null,null,null,"ROSET FLUANS"]
[null,null,null,null,null,"ROSIS"]
[null,null,null,null,null,"ROTHBACH"]
[null,null,null,null,null,"ROUBAIX"]
[null,null,null,null,null,"ROUFFIGNAC DE SIGOULES"]
[null,null,null,null,null,"ROUGEMONTIERS"]
[null,null,null,null,null,"ROUMAZIERES LOUBERT"]
[null,null,null,null,null,"ROUPERROUX LE COQUET"]
[null,null,null,null,null,"ROUVIGNIES"]
[null,null,null,null,null,"ROUVREL"]
[null,null,null,null,null,"ROUZEDE"]
[null,null,null,null,null,"ROY BOISSY"]
[null,null,null,null,null,"ROYERE DE VASSIVIERE"]
[null,null,null,null,null,"ROZIERES SUR MOUZON"]
[null,null,null,null,null,"RUDELLE"]
[null,null,null,null,null,"RUFFEY SUR SEILLE"]
[null,null,null,null,null,"RUMESNIL"]
[null,null,null,null,null,"RUPT DEVANT ST MIHIEL"]
[null,null,null,null,null,"RUVIGNY"]
[null,null,null,null,null,"SABARAT"]
[null,null,null,null,null,"SACHE"]
[null,null,null,null,null,"SADOURNIN"]
[null,null,null,null,null,"SAI"]
[null,null,null,null,null,"SAILLY FLIBEAUCOURT"]
[null,null,null,null,null,"SAINS"]
[null,null,null,null,null,"SAISSAC"]
[null,null,null,null,null,"SALASC"]
[null,null,null,null,null,"SALEUX"]
[null,null,null,null,null,"SALIGNY"]
[null,null,null,null,null,"SALINS"]
[null,null,null,null,null,"SALLES ET PRATVIEL"]
[null,null,null,null,null,"SALLES SUR MER"]
[null,null,null,null,null,"SAMADET"]
[null,null,null,null,null,"SAMER"]
[null,null,null,null,null,"SAN GAVINO DI FIUMORBO"]
[null,null,null,null,null,"SANCE"]
[null,null,null,null,null,"SANNAT"]
[null,null,null,null,null,"SANSAIS"]
[null,null,null,null,null,"SANTES"]
[null,null,null,null,null,"SANZEY"]
[null,null,null,null,null,"SAOSNES"]
[null,null,null,null,null,"SARGE LES LE MANS"]
[null,null,null,null,null,"SARIAC MAGNOAC"]
[null,null,null,null,null,"SARREWERDEN"]
[null,null,null,null,null,"SARRIANS"]
[null,null,null,null,null,"SARTON"]
[null,null,null,null,null,"SASSY"]
[null,null,null,null,null,"SAUCLIERES"]
[null,null,null,null,null,"SAULCES MONCLIN"]
[null,null,null,null,null,"SAULMORY ET VILLEFRANCHE"]
[null,null,null,null,null,"SAULX LES CHAMPLON"]
[null,null,null,null,null,"SAUMANE DE VAUCLUSE"]
[null,null,null,null,null,"SAUSSENAC"]
[null,null,null,null,null,"SAUTRON"]
[null,null,null,null,null,"SAUVETERRE ST DENIS"]
[null,null,null,null,null,"SAUVILLE"]
[null,null,null,null,null,"SAVERES"]
[null,null,null,null,null,"SAVIGNAC LEDRIER"]
[null,null,null,null,null,"SAVIGNY LEVESCAULT"]
[null,null,null,null,null,"SAVIGNY SUR ORGE"]
[null,null,null,null,null,"SAVONNIERES"]
[null,null,null,null,null,"SCEAUX SUR HUISNE"]
[null,null,null,null,null,"SCHEIBENHARD"]
[null,null,null,null,null,"SCHWERDORFF"]
[null,null,null,null,null,"SCIONZIER"]
[null,null,null,null,null,"SECONDIGNE SUR BELLE"]
[null,null,null,null,null,"SEGALAS"]
[null,null,null,null,null,"SEICHEPREY"]
[null,null,null,null,null,"SEILLANS"]
[null,null,null,null,null,"SELONGEY"]
[null,null,null,null,null,"SEMECOURT"]
[null,null,null,null,null,"SEMOY"]
[null,null,null,null,null,"SENANTES"]
[null,null,null,null,null,"SENIERGUES"]
[null,null,null,null,null,"SENONCHES"]
[null,null,null,null,null,"SENTELIE"]
[null,null,null,null,null,"SENTENAC DE SEROU"]
[null,null,null,null,null,"SERAIN"]
[null,null,null,null,null,"SERANON"]
[null,null,null,null,null,"SERE"]
[null,null,null,null,null,"SERICOURT"]
[null,null,null,null,null,"SERLEY"]
[null,null,null,null,null,"SEROCOURT"]
[null,null,null,null,null,"SERRE LES MOULIERES"]
[null,null,null,null,null,"SERVAIS"]
[null,null,null,null,null,"SERVIGNY"]
[null,null,null,null,null,"SERVOZ"]
[null,null,null,null,null,"SEVIGNAC"]
[null,null,null,null,null,"SEVRAN"]
[null,null,null,null,null,"SEYSSUEL"]
[null,null,null,null,null,"SICCIEU ST JULIEN ET CARISIEU"]
[null,null,null,null,null,"SIGNY MONTLIBERT"]
[null,null,null,null,null,"SIGOURNAIS"]
[null,null,null,null,null,"SILLAS"]
[null,null,null,null,null,"SIMANDRES"]
[null,null,null,null,null,"SINDERES"]
[null,null,null,null,null,"SIREIX"]
[null,null,null,null,null,"SIVRY LA PERCHE"]
[null,null,null,null,null,"SOIGNOLLES EN BRIE"]
[null,null,null,null,null,"SOLAURE EN DIOIS"]
[null,null,null,null,null,"SOLIGNY LA TRAPPE"]
[null,null,null,null,null,"SOMBRIN"]
[null,null,null,null,null,"SOMMELONNE"]
[null,null,null,null,null,"SOMPT"]
[null,null,null,null,null,"SONNAC SUR L HERS"]
[null,null,null,null,null,"SORCY BAUTHEMONT"]
[null,null,null,null,null,"SORIGNY"]
[null,null,null,null,null,"SOTTEVILLE SOUS LE VAL"]
[null,null,null,null,null,"SOUBRAN"]
[null,null,null,null,null,"SOUCHT"]
[null,null,null,null,null,"SOUGY"]
[null,null,null,null,null,"SOUILLE"]
[null,null,null,null,null,"SOULITRE"]
[null,null,null,null,null,"SOULTZ LES BAINS"]
[null,null,null,null,null,"SOURDUN"]
[null,null,null,null,null,"SOUSMOULINS"]
[null,null,null,null,null,"SOYANS"]
[null,null,null,null,null,"SPELONCATO"]
[null,null,null,null,null,"SPYCKER"]
[null,null,null,null,null,"ST AIGNAN DES GUES"]
[null,null,null,null,null,"ST ALBAN DU RHONE"]
[null,null,null,null,null,"ST ALBIN DE VAULSERRE"]
[null,null,null,null,null,"ST AMANS VALTORET"]
[null,null,null,null,null,"ST AMANT DE NOUERE"]
[null,null,null,null,null,"ST ANDEOL DE VALS"]
[null,null,null,null,null,"ST ANDRE DE CORCY"]
[null,null,null,null,null,"ST ANDRE DE SANGONIS"]
[null,null,null,null,null,"ST ANDRE LE BOUCHOUX"]
[null,null,null,null,null,"ST ANGEL"]
[null,null,null,null,null,"ST ANTONIN DU VAR"]
[null,null,null,null,null,"ST ARMEL"]
[null,null,null,null,null,"ST AUBIN D APPENAI"]
[null,null,null,null,null,"ST AUBIN DES CHAUMES"]
[null,null,null,null,null,"ST AUBIN FOSSE LOUVAIN"]
[null,null,null,null,null,"ST AUBIN SUR YONNE"]
[null,null,null,null,null,"ST AVE"]
[null,null,null,null,null,"ST BARBANT"]
[null,null,null,null,null,"ST BARTHELEMY GROZON"]
[null,null,null,null,null,"ST BEAULIZE"]
[null,null,null,null,null,"ST BENOIST SUR MER"]
[null,null,null,null,null,"ST BENOIT DU SAULT"]
[null,null,null,null,null,"ST BOINGT"]
[null,null,null,null,null,"ST BONNET DE BELLAC"]
[null,null,null,null,null,"ST BONNET LE CHASTEL"]
[null,null,null,null,null,"ST BONNET PRES RIOM"]
[null,null,null,null,null,"ST BRIEUC DES IFFS"]
[null,null,null,null,null,"ST CALAIS"]
[null,null,null,null,null,"ST CEOLS"]
[null,null,null,null,null,"ST CHAFFREY"]
[null,null,null,null,null,"ST CHRISTOL DE RODIERES"]
[null,null,null,null,null,"ST CHRISTOPHE DU BOIS"]
[null,null,null,null,null,"ST CHRISTOPHE SUR ROC"]
[null,null,null,null,null,"ST CIRGUES DE MALBERT"]
[null,null,null,null,null,"ST CLAIR SUR GALAURE"]
[null,null,null,null,null,"ST CLEMENT DES LEVEES"]
[null,null,null,null,null,"ST CONGARD"]
[null,null,null,null,null,"ST CONNAN"]
[null,null,null,null,null,"ST CREPIN DE RICHEMONT"]
[null,null,null,null,null,"ST CYR DE VALORGES"]
[null,null,null,null,null,"ST CYR LES CHAMPAGNES"]
[null,null,null,null,null,"ST DENIS CATUS"]
[null,null,null,null,null,"ST DENIS DES MURS"]
[null,null,null,null,null,"ST DENIS LES MARTEL"]
[null,null,null,null,null,"ST DIDIER D ALLIER"]
[null,null,null,null,null,"ST DIDIER SOUS AUBENAS"]
[null,null,null,null,null,"ST DOMET"]
[null,null,null,null,null,"ST EDMOND"]
[null,null,null,null,null,"ST EPAIN"]
[null,null,null,null,null,"ST ESTEVE JANSON"]
[null,null,null,null,null,"ST ETIENNE DE MAURS"]
[null,null,null,null,null,"ST ETIENNE DE VALOUX"]
[null,null,null,null,null,"ST ETIENNE LES ORGUES"]
[null,null,null,null,null,"ST ETIENNE SUR CHALARONNE"]
[null,null,null,null,null,"ST EUSTACHE"]
[null,null,null,null,null,"ST FELIX DE LUNEL"]
[null,null,null,null,null,"ST FERREOL D AUROURE"]
[null,null,null,null,null,"ST FLOUR DE MERCOIRE"]
[null,null,null,null,null,"ST FRAIGNE"]
[null,null,null,null,null,"ST FRONT LA RIVIERE"]
[null,null,null,null,null,"ST GAUDENS"]
[null,null,null,null,null,"ST GENES DE LOMBAUD"]
[null,null,null,null,null,"ST GENIES BELLEVUE"]
[null,null,null,null,null,"ST GENIS POUILLY"]
[null,null,null,null,null,"ST GEORGES D OLERON"]
[null,null,null,null,null,"ST GEORGES DE MONTCLARD"]
[null,null,null,null,null,"ST GEORGES LA POUGE"]
[null,null,null,null,null,"ST GEORGES SUR ERVE"]
[null,null,null,null,null,"ST GERMAIN BEAUPRE"]
[null,null,null,null,null,"ST GERMAIN DE FRESNEY"]
[null,null,null,null,null,"ST GERMAIN DE LA GRANGE"]
[null,null,null,null,null,"ST GERMAIN DU PINEL"]
[null,null,null,null,null,"ST GERMAIN DU TEIL"]
[null,null,null,null,null,"ST GERMAIN LE CHATELET"]
[null,null,null,null,null,"ST GERMAIN SUR ILLE"]
[null,null,null,null,null,"ST GERMAIN VILLAGE"]
[null,null,null,null,null,"ST GEYRAC"]
[null,null,null,null,null,"ST GILLES DES MARAIS"]
[null,null,null,null,null,"ST GIRONS D AIGUEVIVES"]
[null,null,null,null,null,"ST GROUX"]
[null,null,null,null,null,"ST HAON"]
[null,null,null,null,null,"ST HILAIRE DE LA COTE"]
[null,null,null,null,null,"ST HILAIRE DE VILLEFRANCHE"]
[null,null,null,null,null,"ST HILAIRE LES MONGES"]
[null,null,null,null,null,"ST HILAIRE PETITVILLE"]
[null,null,null,null,null,"ST HILLIERS"]
[null,null,null,null,null,"ST ILLIDE"]
[null,null,null,null,null,"ST JACQUES DE THOUARS"]
[null,null,null,null,null,"ST JEAN CHAMBRE"]
[null,null,null,null,null,"ST JEAN D ETREUX"]
[null,null,null,null,null,"ST JEAN DE BUEGES"]
[null,null,null,null,null,"ST JEAN DE LA LEQUERAYE"]
[null,null,null,null,null,"ST JEAN DE MARUEJOLS ET AVEJAN"]
[null,null,null,null,null,"ST JEAN DE THURAC"]
[null,null,null,null,null,"ST JEAN DES MAUVRETS"]
[null,null,null,null,null,"ST JEAN KERDANIEL"]
[null,null,null,null,null,"ST JEAN LE VIEUX"]
[null,null,null,null,null,"ST JEAN ST NICOLAS"]
[null,null,null,null,null,"ST JEOIRE"]
[null,null,null,null,null,"ST JOUIN DE MARNES"]
[null,null,null,null,null,"ST JULIEN AUX BOIS"]
[null,null,null,null,null,"ST JULIEN D EYMET"]
[null,null,null,null,null,"ST JULIEN DU PUY"]
[null,null,null,null,null,"ST JULIEN EN CHAMPSAUR"]
[null,null,null,null,null,"ST JULIEN MOLHESABATE"]
[null,null,null,null,null,"ST JULIEN SUR DHEUNE"]
[null,null,null,null,null,"ST JUST LA PENDUE"]
[null,null,null,null,null,"ST JUVAT"]
[null,null,null,null,null,"ST LAUNEUC"]
[null,null,null,null,null,"ST LAURENT DE CUVES"]
[null,null,null,null,null,"ST LAURENT DE NESTE"]
[null,null,null,null,null,"ST LAURENT EN BRIONNAIS"]
[null,null,null,null,null,"ST LAURENT LES TOURS"]
[null,null,null,null,null,"ST LEGER DE LA MARTINIERE"]
[null,null,null,null,null,"ST LEGER EN BRAY"]
[null,null,null,null,null,"ST LEGER SUR BRESLE"]
[null,null,null,null,null,"ST LEONARD EN BEAUCE"]
[null,null,null,null,null,"ST LEONS"]
[null,null,null,null,null,"ST LONGIS"]
[null,null,null,null,null,"ST LOUP D ORDON"]
[null,null,null,null,null,"ST LOUP SUR SEMOUSE"]
[null,null,null,null,null,"ST LUPICIN"]
[null,null,null,null,null,"ST MAIME"]
[null,null,null,null,null,"ST MALO DES TROIS FONTAINES"]
[null,null,null,null,null,"ST MARC SUR COUESNON"]
[null,null,null,null,null,"ST MARCEL EN MARCILLAT"]
[null,null,null,null,null,"ST MARDS"]
[null,null,null,null,null,"ST MARS LA BRIERE"]
[null,null,null,null,null,"ST MARTIN AU BOSC"]
[null,null,null,null,null,"ST MARTIN CANTALES"]
[null,null,null,null,null,"ST MARTIN D ONEY"]
[null,null,null,null,null,"ST MARTIN DE BLAGNY"]
[null,null,null,null,null,"ST MARTIN DE L ARCON"]
[null,null,null,null,null,"ST MARTIN DE LA PORTE"]
[null,null,null,null,null,"ST MARTIN DE NIGELLES"]
[null,null,null,null,null,"ST MARTIN DES LANDES"]
[null,null,null,null,null,"ST MARTIN DU BOSCHET"]
[null,null,null,null,null,"ST MARTIN L AIGUILLON"]
[null,null,null,null,null,"ST MARTIN LACAUSSADE"]
[null,null,null,null,null,"ST MARTIN LES MELLE"]
[null,null,null,null,null,"ST MARTIN SUR ARMANCON"]
[null,null,null,null,null,"ST MATHIEU DE TREVIERS"]
[null,null,null,null,null,"ST MAURICE CRILLAT"]
[null,null,null,null,null,"ST MAURICE EN GOURGOIS"]
[null,null,null,null,null,"ST MAURICE NAVACELLES"]
[null,null,null,null,null,"ST MAXIMIN"]
[null,null,null,null,null,"ST MEDARD EN FOREZ"]
[null,null,null,null,null,"ST MERD LES OUSSINES"]
[null,null,null,null,null,"ST MICHEL DE BOULOGNE"]
[null,null,null,null,null,"ST MICHEL DE CHAILLOL"]
[null,null,null,null,null,"ST MICHEL LABADIE"]
[null,null,null,null,null,"ST MICHEL SUR LOIRE"]
[null,null,null,null,null,"ST NAZAIRE DE VALENTANE"]
[null,null,null,null,null,"ST NECTAIRE"]
[null,null,null,null,null,"ST NIZIER DU MOUCHEROTTE"]
[null,null,null,null,null,"ST OFFENGE"]
[null,null,null,null,null,"ST ORENS POUY PETIT"]
[null,null,null,null,null,"ST OUEN LE BRISOULT"]
[null,null,null,null,null,"ST OUEN SUR LOIRE"]
[null,null,null,null,null,"ST PANTALEON DE LAPLEAU"]
[null,null,null,null,null,"ST PARDOULT"]
[null,null,null,null,null,"ST PATRICE"]
[null,null,null,null,null,"ST PAUL D ESPIS"]
[null,null,null,null,null,"ST PAUL FLAUGNAC"]
[null,null,null,null,null,"ST PAUL LE JEUNE"]
[null,null,null,null,null,"ST PAULET"]
[null,null,null,null,null,"ST PERN"]
[null,null,null,null,null,"ST PHILIBERT"]
[null,null,null,null,null,"ST PIERRE D ALVEY"]
[null,null,null,null,null,"ST PIERRE DE BOEUF"]
[null,null,null,null,null,"ST PIERRE DE GENEBROZ"]
[null,null,null,null,null,"ST PIERRE DE SALERNE"]
[null,null,null,null,null,"ST PIERRE DES LOGES"]
[null,null,null,null,null,"ST PIERRE EGLISE"]
[null,null,null,null,null,"ST PIERRE LAFEUILLE"]
[null,null,null,null,null,"ST PIERRE SUR DIVES"]
[null,null,null,null,null,"ST PLANTAIRE"]
[null,null,null,null,null,"ST POUANGE"]
[null,null,null,null,null,"ST PRIEST DES CHAMPS"]
[null,null,null,null,null,"ST PRIVAT DU DRAGON"]
[null,null,null,null,null,"ST QUENTIN DE BARON"]
[null,null,null,null,null,"ST QUENTIN LA MOTTE CROIX AU BAILLY"]
[null,null,null,null,null,"ST QUENTIN LES MARAIS"]
[null,null,null,null,null,"ST REMY CHAUSSEE"]
[null,null,null,null,null,"ST REMY DU NORD"]
[null,null,null,null,null,"ST RIQUIER"]
[null,null,null,null,null,"ST ROMAIN"]
[null,null,null,null,null,"ST ROMAIN SOUS VERSIGNY"]
[null,null,null,null,null,"ST ROME DE CERNON"]
[null,null,null,null,null,"ST SATURNIN DE LENNE"]
[null,null,null,null,null,"ST SAUVANT"]
[null,null,null,null,null,"ST SAUVEUR LA POMMERAYE"]
[null,null,null,null,null,"ST SAVIOL"]
[null,null,null,null,null,"ST SERIES"]
[null,null,null,null,null,"ST SEURIN DE PRATS"]
[null,null,null,null,null,"ST SEVER"]
[null,null,null,null,null,"ST SORLIN EN VALLOIRE"]
[null,null,null,null,null,"ST SORNIN"]
[null,null,null,null,null,"ST SULPICE DE FAVIERES"]
[null,null,null,null,null,"ST SULPICE LE DUNOIS"]
[null,null,null,null,null,"ST SYMPHORIEN DE LAY"]
[null,null,null,null,null,"ST THIBAULT"]
[null,null,null,null,null,"ST THURIAU"]
[null,null,null,null,null,"ST UNIAC"]
[null,null,null,null,null,"ST VAIZE"]
[null,null,null,null,null,"ST VAURY"]
[null,null,null,null,null,"ST VICTOR L ABBAYE"]
[null,null,null,null,null,"ST VICTOUR"]
[null,null,null,null,null,"ST VINCENT DE PERTIGNAS"]
[null,null,null,null,null,"ST VINCENT EN BRESSE"]
[null,null,null,null,null,"ST VOIR"]
[null,null,null,null,null,"ST YAN"]
[null,null,null,null,null,"STE AGATHE"]
[null,null,null,null,null,"STE ANASTASIE SUR ISSOLE"]
[null,null,null,null,null,"STE AUSTREBERTHE"]
[null,null,null,null,null,"STE CHRISTINE"]
[null,null,null,null,null,"STE CROIX DE MAREUIL"]
[null,null,null,null,null,"STE CROIX VOLVESTRE"]
[null,null,null,null,null,"STE FLAIVE DES LOUPS"]
[null,null,null,null,null,"STE FOY LES LYON"]
[null,null,null,null,null,"STE HELENE SUR ISERE"]
[null,null,null,null,null,"STE LHEURINE"]
[null,null,null,null,null,"STE MARIE A PY"]
[null,null,null,null,null,"STE MARIE DU BOIS"]
[null,null,null,null,null,"STE MENEHOULD"]
[null,null,null,null,null,"STE PAULE"]
[null,null,null,null,null,"STE SEGREE"]
[null,null,null,null,null,"STE TULLE"]
[null,null,null,null,null,"STEINSELTZ"]
[null,null,null,null,null,"STERNENBERG"]
[null,null,null,null,null,"SUGNY"]
[null,null,null,null,null,"SUIPPES"]
[null,null,null,null,null,"SURQUES"]
[null,null,null,null,null,"SURVILLE"]
[null,null,null,null,null,"SUSSAC"]
[null,null,null,null,null,"TABRE"]
[null,null,null,null,null,"TAHAA"]
[null,null,null,null,null,"TAIX"]
[null,null,null,null,null,"TALANT"]
[null,null,null,null,null,"TALUYERS"]
[null,null,null,null,null,"TANCONVILLE"]
[null,null,null,null,null,"TARBES"]
[null,null,null,null,null,"TARGASSONNE"]
[null,null,null,null,null,"TASSIN LA DEMI LUNE"]
[null,null,null,null,null,"TAULIGNAN"]
[null,null,null,null,null,"TAUSSAC LA BILLIERE"]
[null,null,null,null,null,"TAZILLY"]
[null,null,null,null,null,"TELGRUC SUR MER"]
[null,null,null,null,null,"TENTELING"]
[null,null,null,null,null,"TERNAS"]
[null,null,null,null,null,"TERROU"]
[null,null,null,null,null,"TETHIEU"]
[null,null,null,null,null,"THAL MARMOUTIER"]
[null,null,null,null,null,"THEHILLAC"]
[null,null,null,null,null,"THENELLES"]
[null,null,null,null,null,"THERINES"]
[null,null,null,null,null,"THEZAC"]
[null,null,null,null,null,"THIAUCOURT REGNIEVILLE"]
[null,null,null,null,null,"THIERS"]
[null,null,null,null,null,"THIEVRES"]
[null,null,null,null,null,"THIRAUCOURT"]
[null,null,null,null,null,"THIVILLE"]
[null,null,null,null,null,"THOIGNE"]
[null,null,null,null,null,"THONON LES BAINS"]
[null,null,null,null,null,"THORE LA ROCHETTE"]
[null,null,null,null,null,"THOUARS SUR ARIZE"]
[null,null,null,null,null,"THUBOEUF"]
[null,null,null,null,null,"THUY"]
[null,null,null,null,null,"TIFFAUGES"]
[null,null,null,null,null,"TILLOY FLORIVILLE"]
[null,null,null,null,null,"TILQUES"]
[null,null,null,null,null,"TOCQUEVILLE EN CAUX"]
[null,null,null,null,null,"TONNAC"]
[null,null,null,null,null,"TORCY LE GRAND"]
[null,null,null,null,null,"TORTERON"]
[null,null,null,null,null,"TORVILLIERS"]
[null,null,null,null,null,"TOULON"]
[null,null,null,null,null,"TOULON SUR ARROUX"]
[null,null,null,null,null,"TOURCELLES CHAUMONT"]
[null,null,null,null,null,"TOURNEBU"]
[null,null,null,null,null,"TOURNON ST PIERRE"]
[null,null,null,null,null,"TOURS SUR MARNE"]
[null,null,null,null,null,"TOURVILLE SUR SIENNE"]
[null,null,null,null,null,"TOUTLEMONDE"]
[null,null,null,null,null,"TRAITIEFONTAINE"]
[null,null,null,null,null,"TRAMONT ST ANDRE"]
[null,null,null,null,null,"TRAVERSERES"]
[null,null,null,null,null,"TRECON"]
[null,null,null,null,null,"TREFFLEAN"]
[null,null,null,null,null,"TREGUNC"]
[null,null,null,null,null,"TREIZE SEPTIERS"]
[null,null,null,null,null,"TREMENTINES"]
[null,null,null,null,null,"TREMOLAT"]
[null,null,null,null,null,"TREMOUILLES"]
[null,null,null,null,null,"TRESQUES"]
[null,null,null,null,null,"TRESSON"]
[null,null,null,null,null,"TREVRON"]
[null,null,null,null,null,"TRIE CHATEAU"]
[null,null,null,null,null,"TRIZAC"]
[null,null,null,null,null,"TROIS FONTAINES L ABBAYE"]
[null,null,null,null,null,"TRONGET"]
[null,null,null,null,null,"TROUSSENCOURT"]
[null,null,null,null,null,"TRUNGY"]
[null,null,null,null,null,"TULLE"]
[null,null,null,null,null,"TURRIERS"]
[null,null,null,null,null,"UCHON"]
[null,null,null,null,null,"ULLY ST GEORGES"]
[null,null,null,null,null,"URBEIS"]
[null,null,null,null,null,"URIMENIL"]
[null,null,null,null,null,"UROST"]
[null,null,null,null,null,"USTARITZ"]
[null,null,null,null,null,"UTTENHEIM"]
[null,null,null,null,null,"VACHERAUVILLE"]
[null,null,null,null,null,"VACQUERIE LE BOUCQ"]
[null,null,null,null,null,"VAGNEY"]
[null,null,null,null,null,"VAITE"]
[null,null,null,null,null,"VAL D ORONAYE"]
[null,null,null,null,null,"VAL DU LAYON"]
[null,null,null,null,null,"VALAURIE"]
[null,null,null,null,null,"VALDURENQUE"]
[null,null,null,null,null,"VALENCE EN BRIE"]
[null,null,null,null,null,"VALHUON"]
[null,null,null,null,null,"VALLE DI MEZZANA"]
[null,null,null,null,null,"VALLENTIGNY"]
[null,null,null,null,null,"VALLON SUR GEE"]
[null,null,null,null,null,"VALMEINIER"]
[null,null,null,null,null,"VALOUSE"]
[null,null,null,null,null,"VANAULT LE CHATEL"]
[null,null,null,null,null,"VANDOEUVRE LES NANCY"]
[null,null,null,null,null,"VANVILLE"]
[null,null,null,null,null,"VARANGEVILLE"]
[null,null,null,null,null,"VARENNES ST SAUVEUR"]
[null,null,null,null,null,"VARIZE"]
[null,null,null,null,null,"VASPERVILLER"]
[null,null,null,null,null,"VATIMONT"]
[null,null,null,null,null,"VAUCHELLES LES DOMART"]
[null,null,null,null,null,"VAUDEBARRIER"]
[null,null,null,null,null,"VAUDONCOURT"]
[null,null,null,null,null,"VAULNAVEYS LE BAS"]
[null,null,null,null,null,"VAUNAVEYS LA ROCHETTE"]
[null,null,null,null,null,"VAUX EN BEAUJOLAIS"]
[null,null,null,null,null,"VAUX LES PALAMEIX"]
[null,null,null,null,null,"VAUX ROUILLAC"]
[null,null,null,null,null,"VAY"]
[null,null,null,null,null,"VAZERAC"]
[null,null,null,null,null,"VELAINE EN HAYE"]
[null,null,null,null,null,"VELESMES ESSARTS"]
[null,null,null,null,null,"VELLUIRE"]
[null,null,null,null,null,"VELZIC"]
[null,null,null,null,null,"VENDEUIL"]
[null,null,null,null,null,"VENDOEUVRES"]
[null,null,null,null,null,"VENEY"]
[null,null,null,null,null,"VENOUSE"]
[null,null,null,null,null,"VENTALON EN CEVENNES"]
[null,null,null,null,null,"VERCHENY"]
[null,null,null,null,null,"VERCLAUSE"]
[null,null,null,null,null,"VERGEAL"]
[null,null,null,null,null,"VERGETOT"]
[null,null,null,null,null,"VERGT"]
[null,null,null,null,null,"VERMELLES"]
[null,null,null,null,null,"VERNEIX"]
[null,null,null,null,null,"VERNEUIL SUR INDRE"]
[null,null,null,null,null,"VERNOIS SUR MANCE"]
[null,null,null,null,null,"VERON"]
[null,null,null,null,null,"VERRICOURT"]
[null,null,null,null,null,"VERSAUGUES"]
[null,null,null,null,null,"VERTAIN"]
[null,null,null,null,null,"VERZENAY"]
[null,null,null,null,null,"VESIGNEUL SUR MARNE"]
[null,null,null,null,null,"VEVY"]
[null,null,null,null,null,"VEYRINES DE DOMME"]
[null,null,null,null,null,"VEZOT"]
[null,null,null,null,null,"VIANNE"]
[null,null,null,null,null,"VIBRAYE"]
[null,null,null,null,null,"VICQ SUR MER"]
[null,null,null,null,null,"VIDEIX"]
[null,null,null,null,null,"VIELLE LOURON"]
[null,null,null,null,null,"VIELS MAISONS"]
[null,null,null,null,null,"VIEUSSAN"]
[null,null,null,null,null,"VIEUX FERRETTE"]
[null,null,null,null,null,"VIEVIGNE"]
[null,null,null,null,null,"VIGNACOURT"]
[null,null,null,null,null,"VIGNOLES"]
[null,null,null,null,null,"VIJON"]
[null,null,null,null,null,"VILLAINES SOUS BOIS"]
[null,null,null,null,null,"VILLAR EN VAL"]
[null,null,null,null,null,"VILLARDEBELLE"]
[null,null,null,null,null,"VILLARS FONTAINE"]
[null,null,null,null,null,"VILLAUDRIC"]
[null,null,null,null,null,"VILLAVARD"]
[null,null,null,null,null,"VILLE SUR JARNIOUX"]
[null,null,null,null,null,"VILLE SUR SAULX"]
[null,null,null,null,null,"VILLEBOIS"]
[null,null,null,null,null,"VILLECIEN"]
[null,null,null,null,null,"VILLEDOUX"]
[null,null,null,null,null,"VILLEFRANCHE D ALLIER"]
[null,null,null,null,null,"VILLEGOUGE"]
[null,null,null,null,null,"VILLELONGUE D AUDE"]
[null,null,null,null,null,"VILLEMOISSON SUR ORGE"]
[null,null,null,null,null,"VILLEMOUTIERS"]
[null,null,null,null,null,"VILLENEUVE DE DURAS"]
[null,null,null,null,null,"VILLENEUVE EN PERSEIGNE"]
[null,null,null,null,null,"VILLENEUVE LES SABLONS"]
[null,null,null,null,null,"VILLENEUVE ST DENIS"]
[null,null,null,null,null,"VILLEPERDUE"]
[null,null,null,null,null,"VILLEQUIER AUMONT"]
[null,null,null,null,null,"VILLEROMAIN"]
[null,null,null,null,null,"VILLERS CANIVET"]
[null,null,null,null,null,"VILLERS EN ARTHIES"]
[null,null,null,null,null,"VILLERS LE SEC"]
[null,null,null,null,null,"VILLERS PATER"]
[null,null,null,null,null,"VILLERS ST CHRISTOPHE"]
[null,null,null,null,null,"VILLERS SUR MER"]
[null,null,null,null,null,"VILLESELVE"]
[null,null,null,null,null,"VILLETTE D ANTHON"]
[null,null,null,null,null,"VILLEVOQUES"]
[null,null,null,null,null,"VILLIERS EN DESOEUVRE"]
[null,null,null,null,null,"VILLIERS LE SEC"]
[null,null,null,null,null,"VILLIERS SUR THOLON"]
[null,null,null,null,null,"VILLOTTE"]
[null,null,null,null,null,"VILSBERG"]
[null,null,null,null,null,"VINAX"]
[null,null,null,null,null,"VINCENNES"]
[null,null,null,null,null,"VIOLAY"]
[null,null,null,null,null,"VION"]
[null,null,null,null,null,"VIRIEU LE PETIT"]
[null,null,null,null,null,"VIROLLET"]
[null,null,null,null,null,"VITRAC ST VINCENT"]
[null,null,null,null,null,"VITRIMONT"]
[null,null,null,null,null,"VITTARVILLE"]
[null,null,null,null,null,"VIUZ EN SALLAZ"]
[null,null,null,null,null,"VIUZ LA CHIESAZ"]
[null,null,null,null,null,"VIVAISE"]
[null,null,null,null,null,"VIVANS"]
[null,null,null,null,null,"VIVARIO"]
[null,null,null,null,null,"VIVEN"]
[null,null,null,null,null,"VIVEROLS"]
[null,null,null,null,null,"VIVES"]
[null,null,null,null,null,"VIVEY"]
[null,null,null,null,null,"VIVIER AU COURT"]
[null,null,null,null,null,"VIVIERES"]
[null,null,null,null,null,"VIVIERS"]
[null,null,null,null,null,"VIVIERS DU LAC"]
[null,null,null,null,null,"VIVIERS LE GRAS"]
[null,null,null,null,null,"VIVIERS LES LAVAUR"]
[null,null,null,null,null,"VIVIERS LES MONTAGNES"]
[null,null,null,null,null,"VIVIERS LES OFFROICOURT"]
[null,null,null,null,null,"VIVIERS SUR ARTAUT"]
[null,null,null,null,null,"VIVIERS SUR CHIERS"]
[null,null,null,null,null,"VIVIES"]
[null,null,null,null,null,"VIVIEZ"]
[null,null,null,null,null,"VIVILLE"]
[null,null,null,null,null,"VIVOIN"]
[null,null,null,null,null,"VIVONNE"]
[null,null,null,null,null,"VIVY"]
[null,null,null,null,null,"VIX"]
[null,null,null,null,null,"VIZILLE"]
[null,null,null,null,null,"VIZOS"]
[null,null,null,null,null,"VOCANCE"]
[null,null,null,null,null,"VODABLE"]
[null,null,null,null,null,"VOEGTLINSHOFFEN"]
[null,null,null,null,null,"VOELFLING LES BOUZONVILLE"]
[null,null,null,null,null,"VOELLERDINGEN"]
[null,null,null,null,null,"VOEUIL ET GIGET"]
[null,null,null,null,null,"VOGELGRUN"]
[null,null,null,null,null,"VOGLANS"]
[null,null,null,null,null,"VOGUE"]
[null,null,null,null,null,"VOH"]
[null,null,null,null,null,"VOHARIES"]
[null,null,null,null,null,"VOID VACON"]
[null,null,null,null,null,"VOIGNY"]
[null,null,null,null,null,"VOILEMONT"]
[null,null,null,null,null,"VOILLANS"]
[null,null,null,null,null,"VOILLECOMTE"]
[null,null,null,null,null,"VOIMHAUT"]
[null,null,null,null,null,"VOINEMONT"]
[null,null,null,null,null,"VOINGT"]
[null,null,null,null,null,"VOINSLES"]
[null,null,null,null,null,"VOIPREUX"]
[null,null,null,null,null,"VOIRES"]
[null,null,null,null,null,"VOIRON"]
[null,null,null,null,null,"VOISCREVILLE"]
[null,null,null,null,null,"VOISE"]
[null,null,null,null,null,"VOISENON"]
[null,null,null,null,null,"VOISEY"]
[null,null,null,null,null,"VOISINES"]
[null,null,null,null,null,"VOISINS LE BRETONNEUX"]
[null,null,null,null,null,"VOISSANT"]
[null,null,null,null,null,"VOISSAY"]
[null,null,null,null,null,"VOITEUR"]
[null,null,null,null,null,"VOIVRES LES LE MANS"]
[null,null,null,null,null,"VOLCKERINCKHOVE"]
[null,null,null,null,null,"VOLESVRES"]
[null,null,null,null,null,"VOLGELSHEIM"]
[null,null,null,null,null,"VOLGRE"]
[null,null,null,null,null,"VOLKSBERG"]
[null,null,null,null,null,"VOLLORE MONTAGNE"]
[null,null,null,null,null,"VOLLORE VILLE"]
[null,null,null,null,null,"VOLMERANGE LES BOULAY"]
[null,null,null,null,null,"VOLMERANGE LES MINES"]
[null,null,null,null,null,"VOLMUNSTER"]
[null,null,null,null,null,"VOLNAY"]
[null,null,null,null,null,"VOLON"]
[null,null,null,null,null,"VOLONNE"]
[null,null,null,null,null,"VOLPAJOLA"]
[null,null,null,null,null,"VOLSTROFF"]
[null,null,null,null,null,"VOLVENT"]
[null,null,null,null,null,"VOLVIC"]
[null,null,null,null,null,"VOLX"]
[null,null,null,null,null,"VOMECOURT"]
[null,null,null,null,null,"VOMECOURT SUR MADON"]
[null,null,null,null,null,"VONCOURT"]
[null,null,null,null,null,"VONCQ"]
[null,null,null,null,null,"VONGES"]
[null,null,null,null,null,"VONGNES"]
[null,null,null,null,null,"VONNAS"]
[null,null,null,null,null,"VORAY SUR L OGNON"]
[null,null,null,null,null,"VOREPPE"]
[null,null,null,null,null,"VOREY"]
[null,null,null,null,null,"VORGES"]
[null,null,null,null,null,"VORGES LES PINS"]
[null,null,null,null,null,"VORLY"]
[null,null,null,null,null,"VORNAY"]
[null,null,null,null,null,"VOSBLES"]
[null,null,null,null,null,"VOSNE ROMANEE"]
[null,null,null,null,null,"VOSNON"]
[null,null,null,null,null,"VOU"]
[null,null,null,null,null,"VOUARCES"]
[null,null,null,null,null,"VOUDENAY"]
[null,null,null,null,null,"VOUE"]
[null,null,null,null,null,"VOUECOURT"]
[null,null,null,null,null,"VOUGECOURT"]
[null,null,null,null,null,"VOUGEOT"]
[null,null,null,null,null,"VOUGREY"]
[null,null,null,null,null,"VOUGY"]
[null,null,null,null,null,"VOUHARTE"]
[null,null,null,null,null,"VOUHE"]
[null,null,null,null,null,"VOUHENANS"]
[null,null,null,null,null,"VOUILLE"]
[null,null,null,null,null,"VOUILLE LES MARAIS"]
[null,null,null,null,null,"VOUILLERS"]
[null,null,null,null,null,"VOUILLON"]
[null,null,null,null,null,"VOUILLY"]
[null,null,null,null,null,"VOUJEAUCOURT"]
[null,null,null,null,null,"VOULAINES LES TEMPLIERS"]
[null,null,null,null,null,"VOULANGIS"]
[null,null,null,null,null,"VOULEME"]
[null,null,null,null,null,"VOULGEZAC"]
[null,null,null,null,null,"VOULMENTIN"]
[null,null,null,null,null,"VOULON"]
[null,null,null,null,null,"VOULPAIX"]
[null,null,null,null,null,"VOULTON"]
[null,null,null,null,null,"VOULX"]
[null,null,null,null,null,"VOUNEUIL SOUS BIARD"]
[null,null,null,null,null,"VOUNEUIL SUR VIENNE"]
[null,null,null,null,null,"VOUREY"]
[null,null,null,null,null,"VOURLES"]
[null,null,null,null,null,"VOUSSAC"]
[null,null,null,null,null,"VOUTENAY SUR CURE"]
[null,null,null,null,null,"VOUTEZAC"]
[null,null,null,null,null,"VOUTHON"]
[null,null,null,null,null,"VOUTHON BAS"]
[null,null,null,null,null,"VOUTHON HAUT"]
[null,null,null,null,null,"VOUTRE"]
[null,null,null,null,null,"VOUVANT"]
[null,null,null,null,null,"VOUVRAY"]
[null,null,null,null,null,"VOUVRAY SUR HUISNE"]
[null,null,null,null,null,"VOUVRAY SUR LOIR"]
[null,null,null,null,null,"VOUXEY"]
[null,null,null,null,null,"VOUZAILLES"]
[null,null,null,null,null,"VOUZAN"]
[null,null,null,null,null,"VOUZERON"]
[null,null,null,null,null,"VOUZIERS"]
[null,null,null,null,null,"VOUZON"]
[null,null,null,null,null,"VOUZY"]
[null,null,null,null,null,"VOVRAY EN BORNES"]
[null,null,null,null,null,"VOYENNE"]
[null,null,null,null,null,"VOYENNES"]
[null,null,null,null,null,"VOYER"]
[null,null,null,null,null,"VRAIGNES EN VERMANDOIS"]
[null,null,null,null,null,"VRAIGNES LES HORNOY"]
[null,null,null,null,null,"VRAINCOURT"]
[null,null,null,null,null,"VRAIVILLE"]
[null,null,null,null,null,"VRAUX"]
[null,null,null,null,null,"VRECOURT"]
[null,null,null,null,null,"VRED"]
[null,null,null,null,null,"VREGILLE"]
[null,null,null,null,null,"VREGNY"]
[null,null,null,null,null,"VRELY"]
[null,null,null,null,null,"VRIANGE"]
[null,null,null,null,null,"VRIGNE AUX BOIS"]
[null,null,null,null,null,"VRIGNE MEUSE"]
[null,null,null,null,null,"VRIGNY"]
[null,null,null,null,null,"VRITZ"]
[null,null,null,null,null,"VRIZY"]
[null,null,null,null,null,"VROCOURT"]
[null,null,null,null,null,"VROIL"]
[null,null,null,null,null,"VRON"]
[null,null,null,null,null,"VRONCOURT"]
[null,null,null,null,null,"VRONCOURT LA COTE"]
[null,null,null,null,null,"VROVILLE"]
[null,null,null,null,null,"VRY"]
[null,null,null,null,null,"VUE"]
[null,null,null,null,null,"VUILLAFANS"]
[null,null,null,null,null,"VUILLECIN"]
[null,null,null,null,null,"VUILLERY"]
[null,null,null,null,null,"VULAINES"]
[null,null,null,null,null,"VULAINES LES PROVINS"]
[null,null,null,null,null,"VULAINES SUR SEINE"]
[null,null,null,null,null,"VULBENS"]
[null,null,null,null,null,"VULMONT"]
[null,null,null,null,null,"VULVOZ"]
[null,null,null,null,null,"VY LE FERROUX"]
[null,null,null,null,null,"VY LES FILAIN"]
[null,null,null,null,null,"VY LES LURE"]
[null,null,null,null,null,"VY LES RUPT"]
[null,null,null,null,null,"VYANS LE VAL"]
[null,null,null,null,null,"VYT LES BELVOIR"]
[null,null,null,null,null,"WABEN"]
[null,null,null,null,null,"WACQUEMOULIN"]
[null,null,null,null,null,"WACQUINGHEN"]
[null,null,null,null,null,"WADELINCOURT"]
[null,null,null,null,null,"WAGNON"]
[null,null,null,null,null,"WAHAGNIES"]
[null,null,null,null,null,"WAHLBACH"]
[null,null,null,null,null,"WAHLENHEIM"]
[null,null,null,null,null,"WAIL"]
[null,null,null,null,null,"WAILLY"]
[null,null,null,null,null,"WAILLY BEAUCAMP"]
[null,null,null,null,null,"WALBACH"]
[null,null,null,null,null,"WALBOURG"]
[null,null,null,null,null,"WALDERSBACH"]
[null,null,null,null,null,"WALDHAMBACH"]
[null,null,null,null,null,"WALDHOUSE"]
[null,null,null,null,null,"WALDIGHOFEN"]
[null,null,null,null,null,"WALDOLWISHEIM"]
[null,null,null,null,null,"WALDWEISTROFF"]
[null,null,null,null,null,"WALDWISSE"]
[null,null,null,null,null,"WALHEIM"]
[null,null,null,null,null,"WALINCOURT SELVIGNY"]
[null,null,null,null,null,"WALLERS"]
[null,null,null,null,null,"WALLERS EN FAGNE"]
[null,null,null,null,null,"WALLON CAPPEL"]
[null,null,null,null,null,"WALSCHBRONN"]
[null,null,null,null,null,"WALSCHEID"]
[null,null,null,null,null,"WALTEMBOURG"]
[null,null,null,null,null,"WALTENHEIM"]
[null,null,null,null,null,"WALTENHEIM SUR ZORN"]
[null,null,null,null,null,"WALY"]
[null,null,null,null,null,"WAMBAIX"]
[null,null,null,null,null,"WAMBERCOURT"]
[null,null,null,null,null,"WAMBEZ"]
[null,null,null,null,null,"WAMBRECHIES"]
[null,null,null,null,null,"WAMIN"]
[null,null,null,null,null,"WANCHY CAPVAL"]
[null,null,null,null,null,"WANCOURT"]
[null,null,null,null,null,"WANDIGNIES HAMAGE"]
[null,null,null,null,null,"WANGEN"]
[null,null,null,null,null,"WANGENBOURG ENGENTHAL"]
[null,null,null,null,null,"WANNEHAIN"]
[null,null,null,null,null,"WANQUETIN"]
[null,null,null,null,null,"WARCQ"]
[null,null,null,null,null,"WARDRECQUES"]
[null,null,null,null,null,"WARGEMOULIN HURLUS"]
[null,null,null,null,null,"WARGNIES"]
[null,null,null,null,null,"WARGNIES LE GRAND"]
[null,null,null,null,null,"WARGNIES LE PETIT"]
[null,null,null,null,null,"WARHEM"]
[null,null,null,null,null,"WARLAING"]
[null,null,null,null,null,"WARLENCOURT EAUCOURT"]
[null,null,null,null,null,"WARLINCOURT LES PAS"]
[null,null,null,null,null,"WARLOY BAILLON"]
[null,null,null,null,null,"WARLUIS"]
[null,null,null,null,null,"WARLUS"]
[null,null,null,null,null,"WARLUZEL"]
[null,null,null,null,null,"WARMERIVILLE"]
[null,null,null,null,null,"WARNECOURT"]
[null,null,null,null,null,"WARNETON"]
[null,null,null,null,null,"WARSY"]
[null,null,null,null,null,"WARVILLERS"]
[null,null,null,null,null,"WASIGNY"]
[null,null,null,null,null,"WASNES AU BAC"]
[null,null,null,null,null,"WASQUEHAL"]
[null,null,null,null,null,"WASSELONNE"]
[null,null,null,null,null,"WASSERBOURG"]
[null,null,null,null,null,"WASSIGNY"]
[null,null,null,null,null,"WASSY"]
[null,null,null,null,null,"WATIGNY"]
[null,null,null,null,null,"WATRONVILLE"]
[null,null,null,null,null,"WATTEN"]
[null,null,null,null,null,"WATTIGNIES"]
[null,null,null,null,null,"WATTIGNIES LA VICTOIRE"]
[null,null,null,null,null,"WATTRELOS"]
[null,null,null,null,null,"WATTWILLER"]
[null,null,null,null,null,"WAVIGNIES"]
[null,null,null,null,null,"WAVILLE"]
[null,null,null,null,null,"WAVRANS SUR L AA"]
[null,null,null,null,null,"WAVRANS SUR TERNOISE"]
[null,null,null,null,null,"WAVRECHAIN SOUS DENAIN"]
[null,null,null,null,null,"WAVRECHAIN SOUS FAULX"]
[null,null,null,null,null,"WAVRILLE"]
[null,null,null,null,null,"WAVRIN"]
[null,null,null,null,null,"WAZIERS"]
[null,null,null,null,null,"WECKOLSHEIM"]
[null,null,null,null,null,"WEGSCHEID"]
[null,null,null,null,null,"WEINBOURG"]
[null,null,null,null,null,"WEISLINGEN"]
[null,null,null,null,null,"WEITBRUCH"]
[null,null,null,null,null,"WEITERSWILLER"]
[null,null,null,null,null,"WELLES PERENNES"]
[null,null,null,null,null,"WEMAERS CAPPEL"]
[null,null,null,null,null,"WENTZWILLER"]
[null,null,null,null,null,"WERENTZHOUSE"]
[null,null,null,null,null,"WERVICQ SUD"]
[null,null,null,null,null,"WEST CAPPEL"]
[null,null,null,null,null,"WESTHALTEN"]
[null,null,null,null,null,"WESTHOFFEN"]
[null,null,null,null,null,"WESTHOUSE"]
[null,null,null,null,null,"WESTHOUSE MARMOUTIER"]
[null,null,null,null,null,"WESTREHEM"]
[null,null,null,null,null,"WETTOLSHEIM"]
[null,null,null,null,null,"WEYER"]
[null,null,null,null,null,"WEYERSHEIM"]
[null,null,null,null,null,"WICKERSCHWIHR"]
[null,null,null,null,null,"WICKERSHEIM WILSHAUSEN"]
[null,null,null,null,null,"WICQUINGHEM"]
[null,null,null,null,null,"WICRES"]
[null,null,null,null,null,"WIDEHEM"]
[null,null,null,null,null,"WIDENSOLEN"]
[null,null,null,null,null,"WIEGE FATY"]
[null,null,null,null,null,"WIENCOURT L EQUIPEE"]
[null,null,null,null,null,"WIERRE AU BOIS"]
[null,null,null,null,null,"WIERRE EFFROY"]
[null,null,null,null,null,"WIESVILLER"]
[null,null,null,null,null,"WIGNEHIES"]
[null,null,null,null,null,"WIGNICOURT"]
[null,null,null,null,null,"WIHR AU VAL"]
[null,null,null,null,null,"WILDENSTEIN"]
[null,null,null,null,null,"WILDERSBACH"]
[null,null,null,null,null,"WILLEMAN"]
[null,null,null,null,null,"WILLEMS"]
[null,null,null,null,null,"WILLENCOURT"]
[null,null,null,null,null,"WILLER"]
[null,null,null,null,null,"WILLER SUR THUR"]
[null,null,null,null,null,"WILLERONCOURT"]
[null,null,null,null,null,"WILLERVAL"]
[null,null,null,null,null,"WILLERWALD"]
[null,null,null,null,null,"WILLGOTTHEIM"]
[null,null,null,null,null,"WILLIERS"]
[null,null,null,null,null,"WILLIES"]
[null,null,null,null,null,"WILWISHEIM"]
[null,null,null,null,null,"WIMEREUX"]
[null,null,null,null,null,"WIMILLE"]
[null,null,null,null,null,"WIMMENAU"]
[null,null,null,null,null,"WIMY"]
[null,null,null,null,null,"WINDSTEIN"]
[null,null,null,null,null,"WINGEN"]
[null,null,null,null,null,"WINGEN SUR MODER"]
[null,null,null,null,null,"WINGERSHEIM LES QUATRE BANS"]
[null,null,null,null,null,"WINGLES"]
[null,null,null,null,null,"WINKEL"]
[null,null,null,null,null,"WINNEZEELE"]
[null,null,null,null,null,"WINTERSBOURG"]
[null,null,null,null,null,"WINTERSHOUSE"]
[null,null,null,null,null,"WINTZENBACH"]
[null,null,null,null,null,"WINTZENHEIM"]
[null,null,null,null,null,"WINTZENHEIM KOCHERSBERG"]
[null,null,null,null,null,"WIRWIGNES"]
[null,null,null,null,null,"WIRY AU MONT"]
[null,null,null,null,null,"WISCHES"]
[null,null,null,null,null,"WISEMBACH"]
[null,null,null,null,null,"WISEPPE"]
[null,null,null,null,null,"WISMES"]
[null,null,null,null,null,"WISQUES"]
[null,null,null,null,null,"WISSANT"]
[null,null,null,null,null,"WISSEMBOURG"]
[null,null,null,null,null,"WISSIGNICOURT"]
[null,null,null,null,null,"WISSOUS"]
[null,null,null,null,null,"WITRY LES REIMS"]
[null,null,null,null,null,"WITTELSHEIM"]
[null,null,null,null,null,"WITTENHEIM"]
[null,null,null,null,null,"WITTERNESSE"]
[null,null,null,null,null,"WITTERNHEIM"]
[null,null,null,null,null,"WITTERSDORF"]
[null,null,null,null,null,"WITTERSHEIM"]
[null,null,null,null,null,"WITTES"]
[null,null,null,null,null,"WITTISHEIM"]
[null,null,null,null,null,"WITTRING"]
[null,null,null,null,null,"WIWERSHEIM"]
[null,null,null,null,null,"WIZERNES"]
[null,null,null,null,null,"WOEL"]
[null,null,null,null,null,"WOELFLING LES SARREGUEMINES"]
[null,null,null,null,null,"WOERTH"]
[null,null,null,null,null,"WOIGNARUE"]
[null,null,null,null,null,"WOIMBEY"]
[null,null,null,null,null,"WOINCOURT"]
[null,null,null,null,null,"WOIPPY"]
[null,null,null,null,null,"WOIREL"]
[null,null,null,null,null,"WOLFERSDORF"]
[null,null,null,null,null,"WOLFGANTZEN"]
[null,null,null,null,null,"WOLFISHEIM"]
[null,null,null,null,null,"WOLFSKIRCHEN"]
[null,null,null,null,null,"WOLSCHHEIM"]
[null,null,null,null,null,"WOLSCHWILLER"]
[null,null,null,null,null,"WOLXHEIM"]
[null,null,null,null,null,"WORMHOUT"]
[null,null,null,null,null,"WOUSTVILLER"]
[null,null,null,null,null,"WUENHEIM"]
[null,null,null,null,null,"WUISSE"]
[null,null,null,null,null,"WULVERDINGHE"]
[null,null,null,null,null,"WY DIT JOLI VILLAGE"]
[null,null,null,null,null,"WYLDER"]
[null,null,null,null,null,"XAFFEVILLERS"]
[null,null,null,null,null,"XAINTRAILLES"]
[null,null,null,null,null,"XAINTRAY"]
[null,null,null,null,null,"XAMBES"]
[null,null,null,null,null,"XAMMES"]
[null,null,null,null,null,"XAMONTARUPT"]
[null,null,null,null,null,"XANREY"]
[null,null,null,null,null,"XANTON CHASSENON"]
[null,null,null,null,null,"XARONVAL"]
[null,null,null,null,null,"XERMAMENIL"]
[null,null,null,null,null,"XERTIGNY"]
[null,null,null,null,null,"XEUILLEY"]
[null,null,null,null,null,"XIROCOURT"]
[null,null,null,null,null,"XIVRAY ET MARVOISIN"]
[null,null,null,null,null,"XIVRY CIRCOURT"]
[null,null,null,null,null,"XOCOURT"]
[null,null,null,null,null,"XONRUPT LONGEMER"]
[null,null,null,null,null,"XONVILLE"]
[null,null,null,null,null,"XOUAXANGE"]
[null,null,null,null,null,"XOUSSE"]
[null,null,null,null,null,"XURES"]
[null,null,null,null,null,"Y"]
[null,null,null,null,null,"YAINVILLE"]
[null,null,null,null,null,"YATE"]
[null,null,null,null,null,"YAUCOURT BUSSUS"]
[null,null,null,null,null,"YCHOUX"]
[null,null,null,null,null,"YDES"]
[null,null,null,null,null,"YEBLERON"]
[null,null,null,null,null,"YEBLES"]
[null,null,null,null,null,"YENNE"]
[null,null,null,null,null,"YERMENONVILLE"]
[null,null,null,null,null,"YERRES"]
[null,null,null,null,null,"YERVILLE"]
[null,null,null,null,null,"YEVRE LA VILLE"]
[null,null,null,null,null,"YEVRES"]
[null,null,null,null,null,"YEVRES LE PETIT"]
[null,null,null,null,null,"YFFINIAC"]
[null,null,null,null,null,"YGOS ST SATURNIN"]
[null,null,null,null,null,"YGRANDE"]
[null,null,null,null,null,"YMARE"]
[null,null,null,null,null,"YMERAY"]
[null,null,null,null,null,"YMONVILLE"]
[null,null,null,null,null,"YOLET"]
[null,null,null,null,null,"YONCQ"]
[null,null,null,null,null,"YONVAL"]
[null,null,null,null,null,"YOUX"]
[null,null,null,null,null,"YPORT"]
[null,null,null,null,null,"YPREVILLE BIVILLE"]
[null,null,null,null,null,"YQUEBEUF"]
[null,null,null,null,null,"YQUELON"]
[null,null,null,null,null,"YRONDE ET BURON"]
[null,null,null,null,null,"YROUERRE"]
[null,null,null,null,null,"YSSAC LA TOURETTE"]
[null,null,null,null,null,"YSSANDON"]
[null,null,null,null,null,"YSSINGEAUX"]
[null,null,null,null,null,"YTRAC"]
[null,null,null,null,null,"YTRES"]
[null,null,null,null,null,"YUTZ"]
[null,null,null,null,null,"YVECRIQUE"]
[null,null,null,null,null,"YVERNAUMONT"]
[null,null,null,null,null,"YVERSAY"]
[null,null,null,null,null,"YVES"]
[null,null,null,null,null,"YVETOT"]
[null,null,null,null,null,"YVETOT BOCAGE"]
[null,null,null,null,null,"YVIAS"]
[null,null,null,null,null,"YVIERS"]
[null,null,null,null,null,"YVIGNAC LA TOUR"]
[null,null,null,null,null,"YVILLE SUR SEINE"]
[null,null,null,null,null,"YVOIRE"]
[null,null,null,null,null,"YVOY LE MARRON"]
[null,null,null,null,null,"YVRAC"]
[null,null,null,null,null,"YVRAC ET MALLEYRAND"]
[null,null,null,null,null,"YVRE L EVEQUE"]
[null,null,null,null,null,"YVRE LE POLIN"]
[null,null,null,null,null,"YVRENCH"]
[null,null,null,null,null,"YVRENCHEUX"]
[null,null,null,null,null,"YZENGREMER"]
[null,null,null,null,null,"YZERNAY"]
[null,null,null,null,null,"YZERON"]
[null,null,null,null,null,"YZEURE"]
[null,null,null,null,null,"YZEURES SUR CREUSE"]
[null,null,null,null,null,"YZEUX"]
[null,null,null,null,null,"YZOSSE"]
[null,null,null,null,null,"ZAESSINGUE"]
[null,null,null,null,null,"ZALANA"]
[null,null,null,null,null,"ZARBELING"]
[null,null,null,null,null,"ZEGERSCAPPEL"]
[null,null,null,null,null,"ZEHNACKER"]
[null,null,null,null,null,"ZEINHEIM"]
[null,null,null,null,null,"ZELLENBERG"]
[null,null,null,null,null,"ZELLWILLER"]
[null,null,null,null,null,"ZERMEZEELE"]
[null,null,null,null,null,"ZERUBIA"]
[null,null,null,null,null,"ZETTING"]
[null,null,null,null,null,"ZEVACO"]
[null,null,null,null,null,"ZICAVO"]
[null,null,null,null,null,"ZIGLIARA"]
[null,null,null,null,null,"ZILIA"]
[null,null,null,null,null,"ZILLING"]
[null,null,null,null,null,"ZILLISHEIM"]
[null,null,null,null,null,"ZIMMERBACH"]
[null,null,null,null,null,"ZIMMERSHEIM"]
[null,null,null,null,null,"ZIMMING"]
[null,null,null,null,null,"ZINCOURT"]
[null,null,null,null,null,"ZINSWILLER"]
[null,null,null,null,null,"ZITTERSHEIM"]
[null,null,null,null,null,"ZOEBERSDORF"]
[null,null,null,null,null,"ZOMMANGE"]
[null,null,null,null,null,"ZONZA"]
[null,null,null,null,null,"ZOTEUX"]
[null,null,null,null,null,"ZOUAFQUES"]
[null,null,null,null,null,"ZOUFFTGEN"]
[null,null,null,null,null,"ZOZA"]
[null,null,null,null,null,"ZUANI"]
[null,null,null,null,null,"ZUDAUSQUES"]
[null,null,null,null,null,"ZUTKERQUE"]
[null,null,null,null,null,"ZUYDCOOTE"]
[null,null,null,null,null,"ZUYTPEENE"]

{"sheet":"LV 5","index":2,"n_rows":739,"n_cols":97,"rows_kept":739,"cut":false,"hidden":false,"merged":[[0,0,0,36]]}
["RESERVATION LV 5"]
["Retour Menu"]
[null,"00:00:00","00:15:00.288","00:29:59.712","00:45:00","01:00:00.288","01:14:59.712","01:30:00","01:45:00.288","01:59:59.712","02:15:00","02:30:00.288","02:44:59.712","03:00:00","03:15:00.288","03:29:59.712","03:45:00","04:00:00.288","04:14:59.712","04:30:00","04:45:00.288","04:59:59.712","05:15:00","05:30:00.288","05:44:59.712","06:00:00","06:15:00.288","06:29:59.712","06:45:00","07:00:00.288","07:14:59.712","07:30:00","07:45:00.288","07:59:59.712","08:15:00","08:30:00.288","08:44:59.712","09:00:00","09:15:00.288","09:29:59.712","09:45:00","10:00:00.288","10:14:59.712","10:30:00","10:45:00.288","10:59:59.712","11:15:00","11:30:00.288","11:44:59.712","12:00:00","12:15:00.288","12:29:59.712","12:45:00","13:00:00.288","13:14:59.712","13:30:00","13:45:00.288","13:59:59.712","14:15:00","14:30:00.288","14:44:59.712","15:00:00","15:15:00.288","15:29:59.712","15:45:00","16:00:00.288","16:14:59.712","16:30:00","16:45:00.288","16:59:59.712","17:15:00","17:30:00.288","17:44:59.712","18:00:00","18:15:00.288","18:29:59.712","18:45:00","19:00:00.288","19:14:59.712","19:30:00","19:45:00.288","19:59:59.712","20:15:00","20:30:00.288","20:44:59.712","21:00:00","21:15:00.288","21:29:59.712","21:45:00","22:00:00.288","22:14:59.712","22:30:00","22:45:00.288","22:59:59.712","23:15:00","23:30:00.288","23:44:59.712"]
["2018-03-01"]
[{"$f":"A4+1","v":"2018-03-02"}]
["2018-03-03"]
["2018-03-04"]
["2018-03-05"]
["2018-03-06"]
["2018-03-07"]
["2018-03-08"]
["2018-03-09"]
["2018-03-10"]
["2018-03-11"]
["2018-03-12"]
["2018-03-13"]
["2018-03-14"]
["2018-03-15"]
["2018-03-16"]
["2018-03-17"]
["2018-03-18"]
["2018-03-19"]
["2018-03-20"]
["2018-03-21"]
["2018-03-22"]
["2018-03-23"]
["2018-03-24"]
["2018-03-25"]
["2018-03-26"]
["2018-03-27",null,null,null,null,null,null,null,null,null,null,null,null,null,null,null,null,null,null,null,null,null,null,null,null,null,null,null,null,null,null,null,null,null,null,null,null,null,null,null,null,null,null,null,null,null,null,null,null,null,null,null,null,null,null,null,null,"redge"]
["2018-03-28"]
["2018-03-29"]
["2018-03-30",null,null,null,null,null,null,null,null,null,null,null,null,null,null,null,null,null,null,null,null,null,null,null,null,null,null,null,null,null,null,null,null,null,null,null,null,null,null,null,null,null,null,null,null,"ezrzerzer",null,null,null,null,null,null,null,null,null,null,null,"redge",null,null,null,null,null,null,null,null,null,null,null,null,null,null,null,null,null,null,null,null,null,null,null,null,null,null,null,null,null,null,null,"redge"]
["2018-03-31"]
["2018-04-01"]
["2018-04-02"]
["2018-04-03"]
["2018-04-04"]
["2018-04-05"]
["2018-04-06"]
["2018-04-07"]
["2018-04-08"]
["2018-04-09",null,null,null,null,null,null,null,null,null,null,null,null,null,null,null,null,null,null,null,null,null,null,null,null,null,null,null,null,null,null,null,null,"redge"]
["2018-04-10","redge"]
["2018-04-11","redge"]
["2018-04-12"]
["2018-04-13"]
["2018-04-14"]
["2018-04-15"]
["2018-04-16"]
["2018-04-17"]
["2018-04-18"]
["2018-04-19"]
["2018-04-20"]
["2018-04-21"]
["2018-04-22"]
["2018-04-23"]
["2018-04-24"]
["2018-04-25",null,null,null,null,null,null,null,null,null,null,null,null,null,null,null,null,null,null,null,null,null,null,null,null,null,null,null,null,null,null,null,null,"redge"]
["2018-04-26","redge"]
["2018-04-27","redge"]
["2018-04-28","redge"]
["2018-04-29"]
["2018-04-30"]
["2018-05-01"]
["2018-05-02"]
["2018-05-03"]
["2018-05-04"]
[{"$f":"A68+1","v":"2018-05-05"}]
["2018-05-06"]
["2018-05-07"]
["2018-05-08"]
["2018-05-09",null,null,null,null,null,null,null,null,null,null,null,null,null,null,null,null,null,null,null,null,null,null,null,null,null,null,null,null,null,null,null,null,"redge"]
["2018-05-10","redge"]
["2018-05-11","redge"]
["2018-05-12"]
["2018-05-13"]
["2018-05-14"]
["2018-05-15"]
["2018-05-16"]
["2018-05-17"]
["2018-05-18"]
["2018-05-19"]
["2018-05-20"]
["2018-05-21"]
["2018-05-22"]
["2018-05-23",null,null,null,null,null,null,null,null,null,null,null,null,null,null,null,null,null,null,null,null,null,null,null,null,null,null,null,null,null,null,null,null,"redge"]
["2018-05-24","redge"]
["2018-05-25","redge"]
["2018-05-26","redge"]
["2018-05-27"]
["2018-05-28"]
["2018-05-29"]
["2018-05-30"]
["2018-05-31"]
["2018-06-01"]
["2018-06-02"]
["2018-06-03"]
["2018-06-04"]
["2018-06-05"]
["2018-06-06"]
["2018-06-07"]
["2018-06-08"]
["2018-06-09"]
["2018-06-10"]
["2018-06-11"]
["2018-06-12"]
["2018-06-13"]
["2018-06-14"]
["2018-06-15"]
["2018-06-16"]
["2018-06-17"]
["2018-06-18"]
["2018-06-19"]
["2018-06-20"]
["2018-06-21"]
["2018-06-22"]
["2018-06-23"]
["2018-06-24"]
["2018-06-25"]
["2018-06-26"]
["2018-06-27"]
["2018-06-28"]
["2018-06-29"]
["2018-06-30"]
["2018-07-01"]
["2018-07-02"]
["2018-07-03"]
["2018-07-04"]
["2018-07-05"]
["2018-07-06"]
["2018-07-07"]
[{"$f":"A132+1","v":"2018-07-08"}]
["2018-07-09"]
["2018-07-10"]
["2018-07-11"]
["2018-07-12"]
["2018-07-13"]
["2018-07-14"]
["2018-07-15"]
["2018-07-16"]
["2018-07-17"]
["2018-07-18"]
["2018-07-19"]
["2018-07-20"]
["2018-07-21"]
["2018-07-22"]
["2018-07-23"]
["2018-07-24"]
["2018-07-25"]
["2018-07-26"]
["2018-07-27"]
["2018-07-28"]
["2018-07-29"]
["2018-07-30"]
["2018-07-31"]
["2018-08-01"]
["2018-08-02"]
["2018-08-03"]
["2018-08-04"]
["2018-08-05"]
["2018-08-06"]
["2018-08-07"]
["2018-08-08"]
["2018-08-09"]
["2018-08-10"]
["2018-08-11"]
["2018-08-12"]
["2018-08-13"]
["2018-08-14"]
["2018-08-15"]
["2018-08-16"]
["2018-08-17"]
["2018-08-18"]
["2018-08-19"]
["2018-08-20"]
["2018-08-21"]
["2018-08-22"]
["2018-08-23"]
["2018-08-24"]
["2018-08-25"]
["2018-08-26"]
["2018-08-27"]
["2018-08-28"]
["2018-08-29"]
["2018-08-30"]
["2018-08-31"]
["2018-09-01"]
["2018-09-02"]
["2018-09-03"]
["2018-09-04"]
["2018-09-05"]
["2018-09-06"]
["2018-09-07"]
["2018-09-08"]
["2018-09-09"]
[{"$f":"A196+1","v":"2018-09-10"}]
["2018-09-11"]
["2018-09-12"]
["2018-09-13"]
["2018-09-14"]
["2018-09-15"]
["2018-09-16"]
["2018-09-17"]
["2018-09-18"]
["2018-09-19"]
["2018-09-20"]
["2018-09-21"]
["2018-09-22"]
["2018-09-23"]
["2018-09-24"]
["2018-09-25"]
["2018-09-26"]
["2018-09-27"]
["2018-09-28"]
["2018-09-29"]
["2018-09-30"]
["2018-10-01"]
["2018-10-02"]
["2018-10-03"]
["2018-10-04"]
["2018-10-05"]
["2018-10-06"]
["2018-10-07"]
["2018-10-08"]
["2018-10-09"]
["2018-10-10"]
["2018-10-11"]
["2018-10-12"]
["2018-10-13"]
["2018-10-14"]
["2018-10-15"]
["2018-10-16"]
["2018-10-17"]
["2018-10-18"]
["2018-10-19"]
["2018-10-20"]
["2018-10-21"]
["2018-10-22"]
["2018-10-23"]
["2018-10-24"]
["2018-10-25"]
["2018-10-26"]
["2018-10-27"]
["2018-10-28"]
["2018-10-29"]
["2018-10-30"]
["2018-10-31"]
["2018-11-01"]
["2018-11-02"]
["2018-11-03"]
["2018-11-04"]
["2018-11-05"]
["2018-11-06"]
["2018-11-07"]
["2018-11-08"]
["2018-11-09"]
["2018-11-10"]
["2018-11-11"]
["2018-11-12"]
[{"$f":"A260+1","v":"2018-11-13"}]
["2018-11-14"]
["2018-11-15"]
["2018-11-16"]
["2018-11-17"]
["2018-11-18"]
["2018-11-19"]
["2018-11-20"]
["2018-11-21"]
["2018-11-22"]
["2018-11-23"]
["2018-11-24"]
["2018-11-25"]
["2018-11-26"]
["2018-11-27"]
["2018-11-28"]
["2018-11-29"]
["2018-11-30"]
["2018-12-01"]
["2018-12-02"]
["2018-12-03"]
["2018-12-04"]
["2018-12-05"]
["2018-12-06"]
["2018-12-07"]
["2018-12-08"]
["2018-12-09"]
["2018-12-10"]
["2018-12-11"]
["2018-12-12"]
["2018-12-13"]
["2018-12-14"]
["2018-12-15"]
["2018-12-16"]
["2018-12-17"]
["2018-12-18"]
["2018-12-19"]
["2018-12-20"]
["2018-12-21"]
["2018-12-22"]
["2018-12-23"]
["2018-12-24"]
["2018-12-25"]
["2018-12-26"]
["2018-12-27"]
["2018-12-28"]
["2018-12-29"]
["2018-12-30"]
["2018-12-31"]
["2019-01-01"]
["2019-01-02"]
["2019-01-03"]
["2019-01-04"]
["2019-01-05"]
["2019-01-06"]
["2019-01-07"]
["2019-01-08"]
["2019-01-09"]
["2019-01-10"]
["2019-01-11"]
["2019-01-12"]
["2019-01-13"]
["2019-01-14"]
["2019-01-15"]
[{"$f":"A324+1","v":"2019-01-16"}]
["2019-01-17"]
["2019-01-18"]
["2019-01-19"]
["2019-01-20"]
["2019-01-21"]
["2019-01-22"]
["2019-01-23"]
["2019-01-24"]
["2019-01-25"]
["2019-01-26"]
["2019-01-27"]
["2019-01-28"]
["2019-01-29"]
["2019-01-30"]
["2019-01-31"]
["2019-02-01"]
["2019-02-02"]
["2019-02-03"]
["2019-02-04"]
["2019-02-05"]
["2019-02-06"]
["2019-02-07"]
["2019-02-08"]
["2019-02-09"]
["2019-02-10"]
["2019-02-11"]
["2019-02-12"]
["2019-02-13"]
["2019-02-14"]
["2019-02-15"]
["2019-02-16"]
["2019-02-17"]
["2019-02-18"]
["2019-02-19"]
["2019-02-20"]
["2019-02-21"]
["2019-02-22"]
["2019-02-23"]
["2019-02-24"]
["2019-02-25"]
["2019-02-26"]
["2019-02-27"]
["2019-02-28"]
["2019-03-01"]
["2019-03-02"]
["2019-03-03"]
["2019-03-04"]
["2019-03-05"]
["2019-03-06"]
["2019-03-07"]
["2019-03-08"]
["2019-03-09"]
["2019-03-10"]
["2019-03-11"]
["2019-03-12"]
["2019-03-13"]
["2019-03-14"]
["2019-03-15"]
["2019-03-16"]
["2019-03-17"]
["2019-03-18"]
["2019-03-19"]
["2019-03-20"]
[{"$f":"A388+1","v":"2019-03-21"}]
["2019-03-22"]
["2019-03-23"]
["2019-03-24"]
["2019-03-25"]
["2019-03-26"]
["2019-03-27"]
["2019-03-28"]
["2019-03-29"]
["2019-03-30"]
["2019-03-31"]
["2019-04-01"]
["2019-04-02"]
["2019-04-03"]
["2019-04-04"]
["2019-04-05"]
["2019-04-06"]
["2019-04-07"]
["2019-04-08"]
["2019-04-09"]
["2019-04-10"]
["2019-04-11"]
["2019-04-12"]
["2019-04-13"]
["2019-04-14"]
["2019-04-15"]
["2019-04-16"]
["2019-04-17"]
["2019-04-18"]
["2019-04-19"]
["2019-04-20"]
["2019-04-21"]
["2019-04-22"]
["2019-04-23"]
["2019-04-24"]
["2019-04-25"]
["2019-04-26"]
["2019-04-27"]
["2019-04-28"]
["2019-04-29"]
["2019-04-30"]
["2019-05-01"]
["2019-05-02"]
["2019-05-03"]
["2019-05-04"]
["2019-05-05"]
["2019-05-06"]
["2019-05-07"]
["2019-05-08"]
["2019-05-09"]
["2019-05-10"]
["2019-05-11"]
["2019-05-12"]
["2019-05-13"]
["2019-05-14"]
["2019-05-15"]
["2019-05-16"]
["2019-05-17"]
["2019-05-18"]
["2019-05-19"]
["2019-05-20"]
["2019-05-21"]
["2019-05-22"]
["2019-05-23"]
[{"$f":"A452+1","v":"2019-05-24"}]
["2019-05-25"]
["2019-05-26"]
["2019-05-27"]
["2019-05-28"]
["2019-05-29"]
["2019-05-30"]
["2019-05-31"]
["2019-06-01"]
["2019-06-02"]
["2019-06-03"]
["2019-06-04"]
["2019-06-05"]
["2019-06-06"]
["2019-06-07"]
["2019-06-08"]
["2019-06-09"]
["2019-06-10"]
["2019-06-11"]
["2019-06-12"]
["2019-06-13"]
["2019-06-14"]
["2019-06-15"]
["2019-06-16"]
["2019-06-17"]
["2019-06-18"]
["2019-06-19"]
["2019-06-20"]
["2019-06-21"]
["2019-06-22"]
["2019-06-23"]
["2019-06-24"]
["2019-06-25"]
["2019-06-26"]
["2019-06-27"]
["2019-06-28"]
["2019-06-29"]
["2019-06-30"]
["2019-07-01"]
["2019-07-02"]
["2019-07-03"]
["2019-07-04"]
["2019-07-05"]
["2019-07-06"]
["2019-07-07"]
["2019-07-08"]
["2019-07-09"]
["2019-07-10"]
["2019-07-11"]
["2019-07-12"]
["2019-07-13"]
["2019-07-14"]
["2019-07-15"]
["2019-07-16"]
["2019-07-17"]
["2019-07-18"]
["2019-07-19"]
["2019-07-20"]
["2019-07-21"]
["2019-07-22"]
["2019-07-23"]
["2019-07-24"]
["2019-07-25"]
["2019-07-26"]
[{"$f":"A516+1","v":"2019-07-27"}]
["2019-07-28"]
["2019-07-29"]
["2019-07-30"]
["2019-07-31"]
["2019-08-01"]
["2019-08-02"]
["2019-08-03"]
["2019-08-04"]
["2019-08-05"]
["2019-08-06"]
["2019-08-07"]
["2019-08-08"]
["2019-08-09"]
["2019-08-10"]
["2019-08-11"]
["2019-08-12"]
["2019-08-13"]
["2019-08-14"]
["2019-08-15"]
["2019-08-16"]
["2019-08-17"]
["2019-08-18"]
["2019-08-19"]
["2019-08-20"]
["2019-08-21"]
["2019-08-22"]
["2019-08-23"]
["2019-08-24"]
["2019-08-25"]
["2019-08-26"]
["2019-08-27"]
["2019-08-28"]
["2019-08-29"]
["2019-08-30"]
["2019-08-31"]
["2019-09-01"]
["2019-09-02"]
["2019-09-03"]
["2019-09-04"]
["2019-09-05"]
["2019-09-06"]
["2019-09-07"]
["2019-09-08"]
["2019-09-09"]
["2019-09-10"]
["2019-09-11"]
["2019-09-12"]
["2019-09-13"]
["2019-09-14"]
["2019-09-15"]
["2019-09-16"]
["2019-09-17"]
["2019-09-18"]
["2019-09-19"]
["2019-09-20"]
["2019-09-21"]
["2019-09-22"]
["2019-09-23"]
["2019-09-24"]
["2019-09-25"]
["2019-09-26"]
["2019-09-27"]
["2019-09-28"]
[{"$f":"A580+1","v":"2019-09-29"}]
["2019-09-30"]
["2019-10-01"]
["2019-10-02"]
["2019-10-03"]
["2019-10-04"]
["2019-10-05"]
["2019-10-06"]
["2019-10-07"]
["2019-10-08"]
["2019-10-09"]
["2019-10-10"]
["2019-10-11"]
["2019-10-12"]
["2019-10-13"]
["2019-10-14"]
["2019-10-15"]
["2019-10-16"]
["2019-10-17"]
["2019-10-18"]
["2019-10-19"]
["2019-10-20"]
["2019-10-21"]
["2019-10-22"]
["2019-10-23"]
["2019-10-24"]
["2019-10-25"]
["2019-10-26"]
["2019-10-27"]
["2019-10-28"]
["2019-10-29"]
["2019-10-30"]
["2019-10-31"]
["2019-11-01"]
["2019-11-02"]
["2019-11-03"]
["2019-11-04"]
["2019-11-05"]
["2019-11-06"]
["2019-11-07"]
["2019-11-08"]
["2019-11-09"]
["2019-11-10"]
["2019-11-11"]
["2019-11-12"]
["2019-11-13"]
["2019-11-14"]
["2019-11-15"]
["2019-11-16"]
["2019-11-17"]
["2019-11-18"]
["2019-11-19"]
["2019-11-20"]
["2019-11-21"]
["2019-11-22"]
["2019-11-23"]
["2019-11-24"]
["2019-11-25"]
["2019-11-26"]
["2019-11-27"]
["2019-11-28"]
["2019-11-29"]
["2019-11-30"]
["2019-12-01"]
[{"$f":"A644+1","v":"2019-12-02"}]
["2019-12-03"]
["2019-12-04"]
["2019-12-05"]
["2019-12-06"]
["2019-12-07"]
["2019-12-08"]
["2019-12-09"]
["2019-12-10"]
["2019-12-11"]
["2019-12-12"]
["2019-12-13"]
["2019-12-14"]
["2019-12-15"]
["2019-12-16"]
["2019-12-17"]
["2019-12-18"]
["2019-12-19"]
["2019-12-20"]
["2019-12-21"]
["2019-12-22"]
["2019-12-23"]
["2019-12-24"]
["2019-12-25"]
["2019-12-26"]
["2019-12-27"]
["2019-12-28"]
["2019-12-29"]
["2019-12-30"]
["2019-12-31"]
["2020-01-01"]
["2020-01-02"]
["2020-01-03"]
["2020-01-04"]
["2020-01-05"]
["2020-01-06"]
["2020-01-07"]
["2020-01-08"]
["2020-01-09"]
["2020-01-10"]
["2020-01-11"]
["2020-01-12"]
["2020-01-13"]
["2020-01-14"]
["2020-01-15"]
["2020-01-16"]
["2020-01-17"]
["2020-01-18"]
["2020-01-19"]
["2020-01-20"]
["2020-01-21"]
["2020-01-22"]
["2020-01-23"]
["2020-01-24"]
["2020-01-25"]
["2020-01-26"]
["2020-01-27"]
["2020-01-28"]
["2020-01-29"]
["2020-01-30"]
["2020-01-31"]
["2020-02-01"]
["2020-02-02"]
["2020-02-03"]
[{"$f":"A708+1","v":"2020-02-04"}]
["2020-02-05"]
["2020-02-06"]
["2020-02-07"]
["2020-02-08"]
["2020-02-09"]
["2020-02-10"]
["2020-02-11"]
["2020-02-12"]
["2020-02-13"]
["2020-02-14"]
["2020-02-15"]
["2020-02-16"]
["2020-02-17"]
["2020-02-18"]
["2020-02-19"]
["2020-02-20"]
["2020-02-21"]
["2020-02-22"]
["2020-02-23"]
["2020-02-24"]
["2020-02-25"]
["2020-02-26"]
["2020-02-27"]
["2020-02-28"]
["2020-02-29"]
["2020-03-01"]
["2020-03-02"]
["2020-03-03"]
["2020-03-04"]
["2020-03-05"]

{"sheet":"Menu","index":3,"n_rows":15,"n_cols":12,"rows_kept":15,"cut":false,"hidden":false,"merged":[[5,5,5,9]]}
[]
[]
[]
[]
[]
[null,null,null,null,null,"Nombre de Séjours en cours de paiement",null,null,null,null,{"$f":"COUNTIF(BD[Payé],0)","v":6},"Pourcentage de réservation sur le mois en cours"]
[]
[]
[]
[]
[]
[]
[]
[]
["                                             "]

{"sheet":"TX Location","index":4,"n_rows":11,"n_cols":5,"rows_kept":11,"cut":false,"hidden":false,"merged":[]}
[]
[]
["Étiquettes de lignes","Nombre de réservation","nb jours","Tx occupation"]
["2018-03-01",4,{"$f":"VALUE(TEXT(EOMONTH(EDATE(0,MONTH(A4)),0),\"JJ\"))","v":31},{"$f":"B4/C4","v":0.12903225806451613}]
["2018-04-01",2,{"$f":"VALUE(TEXT(EOMONTH(EDATE(0,MONTH(A5)),0),\"JJ\"))","v":30},{"$f":"B5/C5","v":6.6666666666666666E-2}]
["2018-05-01",2,{"$f":"VALUE(TEXT(EOMONTH(EDATE(0,MONTH(A6)),0),\"JJ\"))","v":31},{"$f":"B6/C6","v":6.4516129032258063E-2}]
["Total de réservation sur l'année",8]
[]
[]
[]
[null,null,null,null,{"$f":"GETPIVOTDATA(\"nombre de réservation\",A3)","v":8}]